Workbook

Sheet Sheet1 (hidden)
A1: Tenor | B1: EUR Rates 1100 | D1: =NOT(ISNA(MATCH("1 Year",$A$1:$A$17,0))) -> TRUE | E1: =IF($D$1,SUBSTITUTE(SUBSTITUTE(SUBSTITUTE(A1,"ears",""),"ear","")," ",""),"") -> Tenor | F1: =IF($D$1,INDIRECT("E"&$D$2+ROW()),"") -> 1Y | G1: =IF($D$1,INDIRECT("B"&$D$2+ROW()),"") -> -0.32
B2: 2017-11-24 | D2: =IF($D$1,MATCH("1Y",$E$1:$E$17,0)-1,"") -> 2 | E2: =IF($D$1,SUBSTITUTE(SUBSTITUTE(SUBSTITUTE(A2,"ears",""),"ear","")," ",""),"") ->  | F2: =IF($D$1,INDIRECT("E"&$D$2+ROW()),"") -> 2Y | G2: =IF($D$1,INDIRECT("B"&$D$2+ROW()),"") -> -0.183
A3: 1 Year | B3: -0.32 | E3: 1Y | F3: 3Y | G3: -0.058
A4: 2 Years | B4: -0.183 | E4: 2Y | F4: 4Y | G4: 0.079
A5: 3 Years | B5: -0.058 | E5: 3Y | F5: 5Y | G5: 0.216
A6: 4 Years | B6: 0.079 | E6: 4Y | F6: 6Y | G6: 0.348
A7: 5 Years | B7: 0.216 | E7: 5Y | F7: 7Y | G7: 0.477
A8: 6 Years | B8: 0.348 | E8: 6Y | F8: 8Y | G8: 0.601
A9: 7 Years | B9: 0.477 | E9: 7Y | F9: 9Y | G9: 0.72
A10: 8 Years | B10: 0.601 | E10: 8Y | F10: 10Y | G10: 0.829
A11: 9 Years | B11: 0.72 | E11: 9Y | F11: 12Y | G11: 1.014
A12: 10 Years | B12: 0.829 | E12: 10Y | F12: 15Y | G12: 1.215
A13: 12 Years | B13: 1.014 | E13: 12Y | F13: 20Y | G13: 1.396
A14: 15 Years | B14: 1.215 | E14: 15Y | F14: 25Y | G14: 1.468
A15: 20 Years | B15: 1.396 | E15: 20Y | F15: 30Y | G15: 1.501
A16: 25 Years | B16: 1.468 | E16: 25Y
A17: 30 Years | B17: 1.501 | E17: 30Y

Sheet INPUT RENTEVOETEN (hidden)
A1: Input marktrentevoeten EUR op basis van :
D2: de EURIBOR rentevoeten, dagelijks afgebeeld op | F2: ="http://www.emmi-benchmarks.eu/assets/modules/rateisblue/file_processing/publication/processed/hist_EURIBOR_"&YEAR($C$6)&".xlsx" -> http://www.emmi-benchmarks.eu/assets/modules/rateisblue/file_processing/publication/processed/hist_EURIBOR_2019.xlsx
D3: de IRS-ICESWAP rentevoeten, dagelijks afgebeeld op | F3: ="https://www.theice.com/marketdata/reports/icebenchmarkadmin/ISDAFIXHistoricalRates.shtml?excelExport=&criteria.reportDate="&MONTH($C$6)&"%2F"&DAY($C$6)&"%2F"&RIGHT(YEAR($C$6),2)&"&criteria.seriesName=EUR+Rates&criteria.runCode=1100" -> https://www.theice.com/marketdata/reports/icebenchmarkadmin/ISDAFIXHistoricalRates.shtml?excelExport=&criteria.reportDate=1%2F23%2F19&criteria.seriesName=EUR+Rates&criteria.runCode=1100
A5: Opgelet: altijd alle groene cellen invullen. | G5: NL
A6: Marktrentevoeten van | C6: 2019-01-23
C7: Jaarlijks | F7: Gelijkwaardige rentevoet,
A8: Looptijd | B8: Referentie | C8: nominale | D8: Basis | F8: nominaal jaarlijks, | G8: Dagen
C9: rentevoet | F9: basis 360/360 | G9: 360
A10: 1 maand | B10: Euribor | C10: -0.00368 | D10: 365/360 | F10: =ROUND(C10*365/360,5) -> -0.00373 | G10: 30 | I10: =IF(H10="","",H10/100) -> 
A11: 3 maand | B11: =B10 -> Euribor | C11: -0.00308 | D11: =D10 -> 365/360 | F11: =ROUND(C11*365/360,5) -> -0.00312 | G11: 90
A12: 6 maand | B12: =B11 -> Euribor | C12: -0.00237 | D12: =D11 -> 365/360 | F12: -0.0024 | G12: 180
A13: 12 maand | B13: =B12 -> Euribor | C13: -0.00116 | D13: =D12 -> 365/360 | F13: -0.00118 | G13: 360
A14: 1 jaar | B14: ICE SWAP | C14: -0.0029 | D14: 360/360 | F14: =C14 -> -0.0029 | G14: 360 | I14: =IF(H14="","",H14/100) -> 
A15: 2 jaar | B15: =B14 -> ICE SWAP | C15: -0.00156 | D15: 360/360 | F15: -0.00156 | G15: =G14+360 -> 720 | I15: =IF(H15="","",H15/100) -> 
A16: 3 jaar | B16: =B15 -> ICE SWAP | C16: -0.00057 | D16: 360/360 | F16: -0.00057 | G16: =G15+360 -> 1080
A17: 4 jaar | B17: =B16 -> ICE SWAP | C17: 0.00062 | D17: 360/360 | F17: 0.00062 | G17: 1440
A18: 5 jaar | B18: ICE SWAP | C18: 0.00188 | D18: 360/360 | F18: 0.00188 | G18: 1800
A19: 6 jaar | B19: ICE SWAP | C19: 0.00317 | D19: 360/360 | F19: 0.00317 | G19: 2160
A20: 7 jaar | B20: ICE SWAP | C20: 0.00443 | D20: 360/360 | F20: 0.00443 | G20: 2520
A21: 8 jaar | B21: ICE SWAP | C21: 0.00564 | D21: 360/360 | F21: 0.00564 | G21: 2880
A22: 9 jaar | B22: ICE SWAP | C22: 0.00677 | D22: 360/360 | F22: 0.00677 | G22: 3240
A23: 10 jaar | B23: ICE SWAP | C23: 0.00778 | D23: 360/360 | F23: 0.00778 | G23: 3600
A24: 12 jaar | B24: ICE SWAP | C24: 0.00953 | D24: 360/360 | F24: 0.00953 | G24: =G23+360*2 -> 4320
A25: 15 jaar | B25: ICE SWAP | C25: 0.01141 | D25: 360/360 | F25: 0.01141 | G25: =G24+360*3 -> 5400
A26: 20 jaar | B26: ICE SWAP | C26: 0.01303 | D26: 360/360 | F26: 0.01303 | G26: =G25+360*5 -> 7200
A27: 25 jaar | B27: ICE SWAP | C27: 0.01353 | D27: 360/360 | F27: 0.01353 | G27: =G26+360*5 -> 9000
A28: 30 jaar | B28: =B27 -> ICE SWAP | C28: 0.01362 | D28: 360/360 | F28: 0.01362 | G28: 10800

Sheet INPUT LENING
C1: Input modaliteiten lening | L1: NL
C3: Opgelet: enkel de groene cellen invullen aub.
N4: progressieve tranches
C5: Terugbetalingsformule | G5: progressieve tranches | N5: vaste tranches
C6: Looptijd | G6: 20 | H6: jaar
C7: Periodiciteit betaling intresten en kapitaal | G7: 2 | H7: maal per jaar
C8: Periodiciteit betaling kapitaal | G8: =G7 -> 2 | H8: =IF(G7<G8," Periodiciteit intrest = minimum periodiciteit kapitaal !!"," maal per jaar") -> maal per jaar
C9: Herziening van de rentevoet na … | G9: =G6 -> 20 | H9: =IF(G9>G6," moet kleiner of gelijk aan totale looptijd zijn!!",IF(G9<1," minimum 1 jaar"," jaar")) -> jaar | N9: 1
A10: =IF(DAY(G10)>30,G10-1,G10) ->  | C10: Omzettingsdatum van het krediet (valutadatum) | G10: =endyear() ->  | H10: =IF(G10<sameday(TODAY(),-15)," datum verifieren aub"," ") ->  | N10: 2
A11: =IF(DAY(G11)>30,G11-1,G11) ->  | C11: 1ste vervaldag intrest | G11: =IF($G$7=12,VERVALDAGEN!B3,IF($G$7=4,VERVALDAGEN!C3,IF($G$7=2,VERVALDAGEN!D3,VERVALDAGEN!E3))) ->  | N11: 4
A12: =IF(DAY(G12)>30,G12-1,G12) ->  | C12: 1ste vervaldag kapitaal | G12: =IF($G$7=12,VERVALDAGEN!B4,IF('INPUT LENING'!$G$7=4,VERVALDAGEN!C4,IF('INPUT LENING'!$G$7=2,VERVALDAGEN!D4,VERVALDAGEN!E4))) ->  | N12: 12
A13: =IF(DAY(G13)>30,G13-1,G13) ->  | C13: Eindvervaldag | G13: =endmonth(G12,(G6*12)-(12/G7)) -> 
C14: =IF($G$5=$N$5,"Aantal kapitaaltranches",IF($G$8=12,"Aantal mensualiteiten",IF($G$8=4,"Aantal trimestraliteiten",IF($G$8=2,"Aantal semestraliteiten","Aantal annuïteiten")))) -> Aantal semestraliteiten | G14: =ROUND(DAYS360($G$12,$G$13,0)/(360/$G$8)+1,0) -> 
A15: =IF(DAY(G15)>30,G15-1,G15) ->  | C15: Datum 1ste herziening | G15: =IF(AND(G9=G6,G6<>1),G13,sameday($G$10,($G$9*12))) -> 
C16: Kredietbedrag | G16: 1000000
C17: Nominale jaarlijkse rentevoet | F17: 360/360 | H17: plus marge | I17: 0 | K17: =ROUND(G17+I17,5) -> 0
M20: De som van de
G21: =IF($G$5=$N$5,$G$27/$G$14,PMT($G$17/$G$8,$G$14,-$G$27)) ->  | M21: huidige waarden
M22: dient gelijk te zijn
M23: aan het
A24: =IF(A23="-","-",IF(endmonth(A23,12/$E$7)>$E$13,"-",endmonth(A23,12/$E$7))) ->  | D24: Dagen | F24: Terugbetaling | G24: Resterende | I24: Totaal | K24: Looptijd | L24: Actualisatie | M24: kredietbedrag :
C25: Datum | D25: 30/360 | F25: kapitaal | G25: saldo | H25: Intrest | I25: per periode | K25: (maanden) | L25: Factor | M25: =SUM(M28:M387) -> 
N26: =DAYS360($G$11,$G$12)/(360/$G$7) -> 
A27: =A10 ->  | B27: =IF(B26>=1,2,IF(C27<$A$15,0,1)) ->  | C27: =$G$10 ->  | G27: 100000 | N27: 0
A28: =A11 ->  | C28: =IF($G$11>=$A$15,$G$15,$G$11) ->  | D28: =DAYS360(A27,A28,1) ->  | E28: 1 | F28: =IF(B28=1,G27,IF(A28<$A$12,0,IF(B28=1,G27,IF(B28=2,0,IF(MOD(N28,$G$7/$G$8)=0,IF($G$5=$N$5,IF(A28>=$A$13,G27,$G$21),IF(A28>=$A$13,G27,$G$21-G27*$G$17/$G$8)),0))))) ->  | G28: =G27-F28 ->  | H28: =G27*$G$17*D28/360 ->  | I28: =IF(B28<2,F28+H28,0) ->  | K28: =IF(I28=0,0,K27+D28) ->  | L28: =cspline('ZC-Rentevoeten'!$B$2:$B$47,'ZC-Rentevoeten'!$G$2:$G$47,$K28,'ZC-Rentevoeten'!$K$1,8,'ZC-Rentevoeten'!$J$1) ->  | M28: =IF(I28=0,0,I28*L28) ->  | N28: =IF(E28-1<=$N$26,N27,N27+1) -> 
A29: =IF(DAY(endmonth(A28,12/$G$7))>30,endmonth(A28,12/$G$7)-1,endmonth(A28,12/$G$7)) ->  | C29: =IF(endmonth(C28,12/$G$7)>=$A$15,$G$15,endmonth(C28,12/$G$7)) ->  | D29: =IF(B29=0,360/$G$7,IF(B29=1,DAYS360(C28,C29,1),0)) ->  | E29: =E28+1 -> 2 | F29: =IF(B29=1,G28,IF(A29<$A$12,0,IF(B29=1,G28,IF(B29=2,0,IF(MOD(N29,$G$7/$G$8)=0,IF($G$5=$N$5,IF(A29>=$A$13,G28,$G$21),IF(A29>=$A$13,G28,$G$21-G28*$G$17/$G$8)),0))))) ->  | I29: =IF(B29<2,F29+H29,0) ->  | K29: =IF(I29=0,0,K28+D29) ->  | L29: =cspline('ZC-Rentevoeten'!$B$2:$B$47,'ZC-Rentevoeten'!$G$2:$G$47,$K29,'ZC-Rentevoeten'!$K$1,8,'ZC-Rentevoeten'!$J$1) ->  | M29: =IF(I29=0,0,I29*L29) -> 
D30: =IF(B30=0,360/$G$7,IF(B30=1,DAYS360(C29,C30,1),0)) ->  | E30: 3 | L30: =cspline('ZC-Rentevoeten'!$B$2:$B$47,'ZC-Rentevoeten'!$G$2:$G$47,$K30,'ZC-Rentevoeten'!$K$1,8,'ZC-Rentevoeten'!$J$1) ->  | M30: =IF(I30=0,0,I30*L30) -> 
E31: 4 | L31: =cspline('ZC-Rentevoeten'!$B$2:$B$47,'ZC-Rentevoeten'!$G$2:$G$47,$K31,'ZC-Rentevoeten'!$K$1,8,'ZC-Rentevoeten'!$J$1) -> 
E32: 5 | L32: =cspline('ZC-Rentevoeten'!$B$2:$B$47,'ZC-Rentevoeten'!$G$2:$G$47,$K32,'ZC-Rentevoeten'!$K$1,8,'ZC-Rentevoeten'!$J$1) -> 
E33: 6 | L33: =cspline('ZC-Rentevoeten'!$B$2:$B$47,'ZC-Rentevoeten'!$G$2:$G$47,$K33,'ZC-Rentevoeten'!$K$1,8,'ZC-Rentevoeten'!$J$1) -> 
E34: 7 | L34: =cspline('ZC-Rentevoeten'!$B$2:$B$47,'ZC-Rentevoeten'!$G$2:$G$47,$K34,'ZC-Rentevoeten'!$K$1,8,'ZC-Rentevoeten'!$J$1) -> 
E35: 8 | L35: =cspline('ZC-Rentevoeten'!$B$2:$B$47,'ZC-Rentevoeten'!$G$2:$G$47,$K35,'ZC-Rentevoeten'!$K$1,8,'ZC-Rentevoeten'!$J$1) -> 
E36: 9 | L36: =cspline('ZC-Rentevoeten'!$B$2:$B$47,'ZC-Rentevoeten'!$G$2:$G$47,$K36,'ZC-Rentevoeten'!$K$1,8,'ZC-Rentevoeten'!$J$1) -> 
E37: 10 | L37: =cspline('ZC-Rentevoeten'!$B$2:$B$47,'ZC-Rentevoeten'!$G$2:$G$47,$K37,'ZC-Rentevoeten'!$K$1,8,'ZC-Rentevoeten'!$J$1) -> 
E38: 11 | L38: =cspline('ZC-Rentevoeten'!$B$2:$B$47,'ZC-Rentevoeten'!$G$2:$G$47,$K38,'ZC-Rentevoeten'!$K$1,8,'ZC-Rentevoeten'!$J$1) -> 
E39: 12 | L39: =cspline('ZC-Rentevoeten'!$B$2:$B$47,'ZC-Rentevoeten'!$G$2:$G$47,$K39,'ZC-Rentevoeten'!$K$1,8,'ZC-Rentevoeten'!$J$1) -> 
E40: 13 | L40: =cspline('ZC-Rentevoeten'!$B$2:$B$47,'ZC-Rentevoeten'!$G$2:$G$47,$K40,'ZC-Rentevoeten'!$K$1,8,'ZC-Rentevoeten'!$J$1) -> 
E41: 14 | L41: =cspline('ZC-Rentevoeten'!$B$2:$B$47,'ZC-Rentevoeten'!$G$2:$G$47,$K41,'ZC-Rentevoeten'!$K$1,8,'ZC-Rentevoeten'!$J$1) -> 
E42: 15 | L42: =cspline('ZC-Rentevoeten'!$B$2:$B$47,'ZC-Rentevoeten'!$G$2:$G$47,$K42,'ZC-Rentevoeten'!$K$1,8,'ZC-Rentevoeten'!$J$1) -> 
E43: 16 | L43: =cspline('ZC-Rentevoeten'!$B$2:$B$47,'ZC-Rentevoeten'!$G$2:$G$47,$K43,'ZC-Rentevoeten'!$K$1,8,'ZC-Rentevoeten'!$J$1) -> 
E44: 17 | L44: =cspline('ZC-Rentevoeten'!$B$2:$B$47,'ZC-Rentevoeten'!$G$2:$G$47,$K44,'ZC-Rentevoeten'!$K$1,8,'ZC-Rentevoeten'!$J$1) -> 
E45: 18 | L45: =cspline('ZC-Rentevoeten'!$B$2:$B$47,'ZC-Rentevoeten'!$G$2:$G$47,$K45,'ZC-Rentevoeten'!$K$1,8,'ZC-Rentevoeten'!$J$1) -> 
E46: 19 | L46: =cspline('ZC-Rentevoeten'!$B$2:$B$47,'ZC-Rentevoeten'!$G$2:$G$47,$K46,'ZC-Rentevoeten'!$K$1,8,'ZC-Rentevoeten'!$J$1) -> 
E47: 20 | L47: =cspline('ZC-Rentevoeten'!$B$2:$B$47,'ZC-Rentevoeten'!$G$2:$G$47,$K47,'ZC-Rentevoeten'!$K$1,8,'ZC-Rentevoeten'!$J$1) -> 
E48: 21 | L48: =cspline('ZC-Rentevoeten'!$B$2:$B$47,'ZC-Rentevoeten'!$G$2:$G$47,$K48,'ZC-Rentevoeten'!$K$1,8,'ZC-Rentevoeten'!$J$1) -> 
E49: 22 | L49: =cspline('ZC-Rentevoeten'!$B$2:$B$47,'ZC-Rentevoeten'!$G$2:$G$47,$K49,'ZC-Rentevoeten'!$K$1,8,'ZC-Rentevoeten'!$J$1) -> 
E50: 23 | L50: =cspline('ZC-Rentevoeten'!$B$2:$B$47,'ZC-Rentevoeten'!$G$2:$G$47,$K50,'ZC-Rentevoeten'!$K$1,8,'ZC-Rentevoeten'!$J$1) -> 
E51: 24 | L51: =cspline('ZC-Rentevoeten'!$B$2:$B$47,'ZC-Rentevoeten'!$G$2:$G$47,$K51,'ZC-Rentevoeten'!$K$1,8,'ZC-Rentevoeten'!$J$1) -> 
E52: 25 | L52: =cspline('ZC-Rentevoeten'!$B$2:$B$47,'ZC-Rentevoeten'!$G$2:$G$47,$K52,'ZC-Rentevoeten'!$K$1,8,'ZC-Rentevoeten'!$J$1) -> 
E53: 26 | L53: =cspline('ZC-Rentevoeten'!$B$2:$B$47,'ZC-Rentevoeten'!$G$2:$G$47,$K53,'ZC-Rentevoeten'!$K$1,8,'ZC-Rentevoeten'!$J$1) -> 
E54: 27 | L54: =cspline('ZC-Rentevoeten'!$B$2:$B$47,'ZC-Rentevoeten'!$G$2:$G$47,$K54,'ZC-Rentevoeten'!$K$1,8,'ZC-Rentevoeten'!$J$1) -> 
E55: 28 | L55: =cspline('ZC-Rentevoeten'!$B$2:$B$47,'ZC-Rentevoeten'!$G$2:$G$47,$K55,'ZC-Rentevoeten'!$K$1,8,'ZC-Rentevoeten'!$J$1) -> 
E56: 29 | L56: =cspline('ZC-Rentevoeten'!$B$2:$B$47,'ZC-Rentevoeten'!$G$2:$G$47,$K56,'ZC-Rentevoeten'!$K$1,8,'ZC-Rentevoeten'!$J$1) -> 
E57: 30 | L57: =cspline('ZC-Rentevoeten'!$B$2:$B$47,'ZC-Rentevoeten'!$G$2:$G$47,$K57,'ZC-Rentevoeten'!$K$1,8,'ZC-Rentevoeten'!$J$1) -> 
E58: 31 | L58: =cspline('ZC-Rentevoeten'!$B$2:$B$47,'ZC-Rentevoeten'!$G$2:$G$47,$K58,'ZC-Rentevoeten'!$K$1,8,'ZC-Rentevoeten'!$J$1) -> 
E59: 32 | L59: =cspline('ZC-Rentevoeten'!$B$2:$B$47,'ZC-Rentevoeten'!$G$2:$G$47,$K59,'ZC-Rentevoeten'!$K$1,8,'ZC-Rentevoeten'!$J$1) -> 
E60: 33 | L60: =cspline('ZC-Rentevoeten'!$B$2:$B$47,'ZC-Rentevoeten'!$G$2:$G$47,$K60,'ZC-Rentevoeten'!$K$1,8,'ZC-Rentevoeten'!$J$1) -> 
E61: 34 | L61: =cspline('ZC-Rentevoeten'!$B$2:$B$47,'ZC-Rentevoeten'!$G$2:$G$47,$K61,'ZC-Rentevoeten'!$K$1,8,'ZC-Rentevoeten'!$J$1) -> 
E62: 35 | L62: =cspline('ZC-Rentevoeten'!$B$2:$B$47,'ZC-Rentevoeten'!$G$2:$G$47,$K62,'ZC-Rentevoeten'!$K$1,8,'ZC-Rentevoeten'!$J$1) -> 
E63: 36 | L63: =cspline('ZC-Rentevoeten'!$B$2:$B$47,'ZC-Rentevoeten'!$G$2:$G$47,$K63,'ZC-Rentevoeten'!$K$1,8,'ZC-Rentevoeten'!$J$1) -> 
E64: 37 | L64: =cspline('ZC-Rentevoeten'!$B$2:$B$47,'ZC-Rentevoeten'!$G$2:$G$47,$K64,'ZC-Rentevoeten'!$K$1,8,'ZC-Rentevoeten'!$J$1) -> 
E65: 38 | L65: =cspline('ZC-Rentevoeten'!$B$2:$B$47,'ZC-Rentevoeten'!$G$2:$G$47,$K65,'ZC-Rentevoeten'!$K$1,8,'ZC-Rentevoeten'!$J$1) -> 
E66: 39 | L66: =cspline('ZC-Rentevoeten'!$B$2:$B$47,'ZC-Rentevoeten'!$G$2:$G$47,$K66,'ZC-Rentevoeten'!$K$1,8,'ZC-Rentevoeten'!$J$1) -> 
E67: 40 | L67: =cspline('ZC-Rentevoeten'!$B$2:$B$47,'ZC-Rentevoeten'!$G$2:$G$47,$K67,'ZC-Rentevoeten'!$K$1,8,'ZC-Rentevoeten'!$J$1) -> 
E68: 41 | L68: =cspline('ZC-Rentevoeten'!$B$2:$B$47,'ZC-Rentevoeten'!$G$2:$G$47,$K68,'ZC-Rentevoeten'!$K$1,8,'ZC-Rentevoeten'!$J$1) -> 
E69: 42 | L69: =cspline('ZC-Rentevoeten'!$B$2:$B$47,'ZC-Rentevoeten'!$G$2:$G$47,$K69,'ZC-Rentevoeten'!$K$1,8,'ZC-Rentevoeten'!$J$1) -> 
E70: 43 | L70: =cspline('ZC-Rentevoeten'!$B$2:$B$47,'ZC-Rentevoeten'!$G$2:$G$47,$K70,'ZC-Rentevoeten'!$K$1,8,'ZC-Rentevoeten'!$J$1) -> 
E71: 44 | L71: =cspline('ZC-Rentevoeten'!$B$2:$B$47,'ZC-Rentevoeten'!$G$2:$G$47,$K71,'ZC-Rentevoeten'!$K$1,8,'ZC-Rentevoeten'!$J$1) -> 
E72: 45 | L72: =cspline('ZC-Rentevoeten'!$B$2:$B$47,'ZC-Rentevoeten'!$G$2:$G$47,$K72,'ZC-Rentevoeten'!$K$1,8,'ZC-Rentevoeten'!$J$1) -> 
E73: 46 | L73: =cspline('ZC-Rentevoeten'!$B$2:$B$47,'ZC-Rentevoeten'!$G$2:$G$47,$K73,'ZC-Rentevoeten'!$K$1,8,'ZC-Rentevoeten'!$J$1) -> 
E74: 47 | L74: =cspline('ZC-Rentevoeten'!$B$2:$B$47,'ZC-Rentevoeten'!$G$2:$G$47,$K74,'ZC-Rentevoeten'!$K$1,8,'ZC-Rentevoeten'!$J$1) -> 
E75: 48 | L75: =cspline('ZC-Rentevoeten'!$B$2:$B$47,'ZC-Rentevoeten'!$G$2:$G$47,$K75,'ZC-Rentevoeten'!$K$1,8,'ZC-Rentevoeten'!$J$1) -> 
E76: 49 | L76: =cspline('ZC-Rentevoeten'!$B$2:$B$47,'ZC-Rentevoeten'!$G$2:$G$47,$K76,'ZC-Rentevoeten'!$K$1,8,'ZC-Rentevoeten'!$J$1) -> 
E77: 50 | L77: =cspline('ZC-Rentevoeten'!$B$2:$B$47,'ZC-Rentevoeten'!$G$2:$G$47,$K77,'ZC-Rentevoeten'!$K$1,8,'ZC-Rentevoeten'!$J$1) -> 
E78: 51 | L78: =cspline('ZC-Rentevoeten'!$B$2:$B$47,'ZC-Rentevoeten'!$G$2:$G$47,$K78,'ZC-Rentevoeten'!$K$1,8,'ZC-Rentevoeten'!$J$1) -> 
E79: 52 | L79: =cspline('ZC-Rentevoeten'!$B$2:$B$47,'ZC-Rentevoeten'!$G$2:$G$47,$K79,'ZC-Rentevoeten'!$K$1,8,'ZC-Rentevoeten'!$J$1) -> 
E80: 53 | L80: =cspline('ZC-Rentevoeten'!$B$2:$B$47,'ZC-Rentevoeten'!$G$2:$G$47,$K80,'ZC-Rentevoeten'!$K$1,8,'ZC-Rentevoeten'!$J$1) -> 
E81: 54 | L81: =cspline('ZC-Rentevoeten'!$B$2:$B$47,'ZC-Rentevoeten'!$G$2:$G$47,$K81,'ZC-Rentevoeten'!$K$1,8,'ZC-Rentevoeten'!$J$1) -> 
E82: 55 | L82: =cspline('ZC-Rentevoeten'!$B$2:$B$47,'ZC-Rentevoeten'!$G$2:$G$47,$K82,'ZC-Rentevoeten'!$K$1,8,'ZC-Rentevoeten'!$J$1) -> 
E83: 56 | L83: =cspline('ZC-Rentevoeten'!$B$2:$B$47,'ZC-Rentevoeten'!$G$2:$G$47,$K83,'ZC-Rentevoeten'!$K$1,8,'ZC-Rentevoeten'!$J$1) -> 
E84: 57 | L84: =cspline('ZC-Rentevoeten'!$B$2:$B$47,'ZC-Rentevoeten'!$G$2:$G$47,$K84,'ZC-Rentevoeten'!$K$1,8,'ZC-Rentevoeten'!$J$1) -> 
E85: 58 | L85: =cspline('ZC-Rentevoeten'!$B$2:$B$47,'ZC-Rentevoeten'!$G$2:$G$47,$K85,'ZC-Rentevoeten'!$K$1,8,'ZC-Rentevoeten'!$J$1) -> 
E86: 59 | L86: =cspline('ZC-Rentevoeten'!$B$2:$B$47,'ZC-Rentevoeten'!$G$2:$G$47,$K86,'ZC-Rentevoeten'!$K$1,8,'ZC-Rentevoeten'!$J$1) -> 
E87: 60 | L87: =cspline('ZC-Rentevoeten'!$B$2:$B$47,'ZC-Rentevoeten'!$G$2:$G$47,$K87,'ZC-Rentevoeten'!$K$1,8,'ZC-Rentevoeten'!$J$1) -> 
E88: 61 | L88: =cspline('ZC-Rentevoeten'!$B$2:$B$47,'ZC-Rentevoeten'!$G$2:$G$47,$K88,'ZC-Rentevoeten'!$K$1,8,'ZC-Rentevoeten'!$J$1) -> 
E89: 62 | L89: =cspline('ZC-Rentevoeten'!$B$2:$B$47,'ZC-Rentevoeten'!$G$2:$G$47,$K89,'ZC-Rentevoeten'!$K$1,8,'ZC-Rentevoeten'!$J$1) -> 
E90: 63 | L90: =cspline('ZC-Rentevoeten'!$B$2:$B$47,'ZC-Rentevoeten'!$G$2:$G$47,$K90,'ZC-Rentevoeten'!$K$1,8,'ZC-Rentevoeten'!$J$1) -> 
B91: =IF(B90>=1,2,IF(C91<$A$15,0,1)) ->  | E91: 64 | L91: =cspline('ZC-Rentevoeten'!$B$2:$B$47,'ZC-Rentevoeten'!$G$2:$G$47,$K91,'ZC-Rentevoeten'!$K$1,8,'ZC-Rentevoeten'!$J$1) -> 
E92: 65 | G92: =G91-F92 ->  | H92: =G91*$G$17*D92/360 ->  | L92: =cspline('ZC-Rentevoeten'!$B$2:$B$47,'ZC-Rentevoeten'!$G$2:$G$47,$K92,'ZC-Rentevoeten'!$K$1,8,'ZC-Rentevoeten'!$J$1) ->  | N92: =IF(E92-1<=$N$26,N91,N91+1) -> 
A93: =IF(DAY(endmonth(A92,12/$G$7))>30,endmonth(A92,12/$G$7)-1,endmonth(A92,12/$G$7)) ->  | C93: =IF(endmonth(C92,12/$G$7)>=$A$15,$G$15,endmonth(C92,12/$G$7)) ->  | E93: =E92+1 -> 66 | F93: =IF(B93=1,G92,IF(A93<$A$12,0,IF(B93=1,G92,IF(B93=2,0,IF(MOD(N93,$G$7/$G$8)=0,IF($G$5=$N$5,IF(A93>=$A$13,G92,$G$21),IF(A93>=$A$13,G92,$G$21-G92*$G$17/$G$8)),0))))) ->  | I93: =IF(B93<2,F93+H93,0) ->  | K93: =IF(I93=0,0,K92+D93) ->  | L93: =cspline('ZC-Rentevoeten'!$B$2:$B$47,'ZC-Rentevoeten'!$G$2:$G$47,$K93,'ZC-Rentevoeten'!$K$1,8,'ZC-Rentevoeten'!$J$1) -> 
D94: =IF(B94=0,360/$G$7,IF(B94=1,DAYS360(C93,C94,1),0)) ->  | E94: 67 | L94: =cspline('ZC-Rentevoeten'!$B$2:$B$47,'ZC-Rentevoeten'!$G$2:$G$47,$K94,'ZC-Rentevoeten'!$K$1,8,'ZC-Rentevoeten'!$J$1) ->  | M94: =IF(I94=0,0,I94*L94) -> 
E95: 68 | L95: =cspline('ZC-Rentevoeten'!$B$2:$B$47,'ZC-Rentevoeten'!$G$2:$G$47,$K95,'ZC-Rentevoeten'!$K$1,8,'ZC-Rentevoeten'!$J$1) -> 
E96: 69 | L96: =cspline('ZC-Rentevoeten'!$B$2:$B$47,'ZC-Rentevoeten'!$G$2:$G$47,$K96,'ZC-Rentevoeten'!$K$1,8,'ZC-Rentevoeten'!$J$1) -> 
E97: 70 | L97: =cspline('ZC-Rentevoeten'!$B$2:$B$47,'ZC-Rentevoeten'!$G$2:$G$47,$K97,'ZC-Rentevoeten'!$K$1,8,'ZC-Rentevoeten'!$J$1) -> 
E98: 71 | L98: =cspline('ZC-Rentevoeten'!$B$2:$B$47,'ZC-Rentevoeten'!$G$2:$G$47,$K98,'ZC-Rentevoeten'!$K$1,8,'ZC-Rentevoeten'!$J$1) -> 
E99: 72 | L99: =cspline('ZC-Rentevoeten'!$B$2:$B$47,'ZC-Rentevoeten'!$G$2:$G$47,$K99,'ZC-Rentevoeten'!$K$1,8,'ZC-Rentevoeten'!$J$1) -> 
E100: 73 | L100: =cspline('ZC-Rentevoeten'!$B$2:$B$47,'ZC-Rentevoeten'!$G$2:$G$47,$K100,'ZC-Rentevoeten'!$K$1,8,'ZC-Rentevoeten'!$J$1) -> 
E101: 74 | L101: =cspline('ZC-Rentevoeten'!$B$2:$B$47,'ZC-Rentevoeten'!$G$2:$G$47,$K101,'ZC-Rentevoeten'!$K$1,8,'ZC-Rentevoeten'!$J$1) -> 
E102: 75 | L102: =cspline('ZC-Rentevoeten'!$B$2:$B$47,'ZC-Rentevoeten'!$G$2:$G$47,$K102,'ZC-Rentevoeten'!$K$1,8,'ZC-Rentevoeten'!$J$1) -> 
E103: 76 | L103: =cspline('ZC-Rentevoeten'!$B$2:$B$47,'ZC-Rentevoeten'!$G$2:$G$47,$K103,'ZC-Rentevoeten'!$K$1,8,'ZC-Rentevoeten'!$J$1) -> 
E104: 77 | L104: =cspline('ZC-Rentevoeten'!$B$2:$B$47,'ZC-Rentevoeten'!$G$2:$G$47,$K104,'ZC-Rentevoeten'!$K$1,8,'ZC-Rentevoeten'!$J$1) -> 
E105: 78 | L105: =cspline('ZC-Rentevoeten'!$B$2:$B$47,'ZC-Rentevoeten'!$G$2:$G$47,$K105,'ZC-Rentevoeten'!$K$1,8,'ZC-Rentevoeten'!$J$1) -> 
E106: 79 | L106: =cspline('ZC-Rentevoeten'!$B$2:$B$47,'ZC-Rentevoeten'!$G$2:$G$47,$K106,'ZC-Rentevoeten'!$K$1,8,'ZC-Rentevoeten'!$J$1) -> 
E107: 80 | L107: =cspline('ZC-Rentevoeten'!$B$2:$B$47,'ZC-Rentevoeten'!$G$2:$G$47,$K107,'ZC-Rentevoeten'!$K$1,8,'ZC-Rentevoeten'!$J$1) -> 
E108: 81 | L108: =cspline('ZC-Rentevoeten'!$B$2:$B$47,'ZC-Rentevoeten'!$G$2:$G$47,$K108,'ZC-Rentevoeten'!$K$1,8,'ZC-Rentevoeten'!$J$1) -> 
E109: 82 | L109: =cspline('ZC-Rentevoeten'!$B$2:$B$47,'ZC-Rentevoeten'!$G$2:$G$47,$K109,'ZC-Rentevoeten'!$K$1,8,'ZC-Rentevoeten'!$J$1) -> 
E110: 83 | L110: =cspline('ZC-Rentevoeten'!$B$2:$B$47,'ZC-Rentevoeten'!$G$2:$G$47,$K110,'ZC-Rentevoeten'!$K$1,8,'ZC-Rentevoeten'!$J$1) -> 
E111: 84 | L111: =cspline('ZC-Rentevoeten'!$B$2:$B$47,'ZC-Rentevoeten'!$G$2:$G$47,$K111,'ZC-Rentevoeten'!$K$1,8,'ZC-Rentevoeten'!$J$1) -> 
E112: 85 | L112: =cspline('ZC-Rentevoeten'!$B$2:$B$47,'ZC-Rentevoeten'!$G$2:$G$47,$K112,'ZC-Rentevoeten'!$K$1,8,'ZC-Rentevoeten'!$J$1) -> 
E113: 86 | L113: =cspline('ZC-Rentevoeten'!$B$2:$B$47,'ZC-Rentevoeten'!$G$2:$G$47,$K113,'ZC-Rentevoeten'!$K$1,8,'ZC-Rentevoeten'!$J$1) -> 
E114: 87 | L114: =cspline('ZC-Rentevoeten'!$B$2:$B$47,'ZC-Rentevoeten'!$G$2:$G$47,$K114,'ZC-Rentevoeten'!$K$1,8,'ZC-Rentevoeten'!$J$1) -> 
E115: 88 | L115: =cspline('ZC-Rentevoeten'!$B$2:$B$47,'ZC-Rentevoeten'!$G$2:$G$47,$K115,'ZC-Rentevoeten'!$K$1,8,'ZC-Rentevoeten'!$J$1) -> 
E116: 89 | L116: =cspline('ZC-Rentevoeten'!$B$2:$B$47,'ZC-Rentevoeten'!$G$2:$G$47,$K116,'ZC-Rentevoeten'!$K$1,8,'ZC-Rentevoeten'!$J$1) -> 
E117: 90 | L117: =cspline('ZC-Rentevoeten'!$B$2:$B$47,'ZC-Rentevoeten'!$G$2:$G$47,$K117,'ZC-Rentevoeten'!$K$1,8,'ZC-Rentevoeten'!$J$1) -> 
E118: 91 | L118: =cspline('ZC-Rentevoeten'!$B$2:$B$47,'ZC-Rentevoeten'!$G$2:$G$47,$K118,'ZC-Rentevoeten'!$K$1,8,'ZC-Rentevoeten'!$J$1) -> 
E119: 92 | L119: =cspline('ZC-Rentevoeten'!$B$2:$B$47,'ZC-Rentevoeten'!$G$2:$G$47,$K119,'ZC-Rentevoeten'!$K$1,8,'ZC-Rentevoeten'!$J$1) -> 
E120: 93 | L120: =cspline('ZC-Rentevoeten'!$B$2:$B$47,'ZC-Rentevoeten'!$G$2:$G$47,$K120,'ZC-Rentevoeten'!$K$1,8,'ZC-Rentevoeten'!$J$1) -> 
E121: 94 | L121: =cspline('ZC-Rentevoeten'!$B$2:$B$47,'ZC-Rentevoeten'!$G$2:$G$47,$K121,'ZC-Rentevoeten'!$K$1,8,'ZC-Rentevoeten'!$J$1) -> 
E122: 95 | L122: =cspline('ZC-Rentevoeten'!$B$2:$B$47,'ZC-Rentevoeten'!$G$2:$G$47,$K122,'ZC-Rentevoeten'!$K$1,8,'ZC-Rentevoeten'!$J$1) -> 
E123: 96 | L123: =cspline('ZC-Rentevoeten'!$B$2:$B$47,'ZC-Rentevoeten'!$G$2:$G$47,$K123,'ZC-Rentevoeten'!$K$1,8,'ZC-Rentevoeten'!$J$1) -> 
E124: 97 | L124: =cspline('ZC-Rentevoeten'!$B$2:$B$47,'ZC-Rentevoeten'!$G$2:$G$47,$K124,'ZC-Rentevoeten'!$K$1,8,'ZC-Rentevoeten'!$J$1) -> 
E125: 98 | L125: =cspline('ZC-Rentevoeten'!$B$2:$B$47,'ZC-Rentevoeten'!$G$2:$G$47,$K125,'ZC-Rentevoeten'!$K$1,8,'ZC-Rentevoeten'!$J$1) -> 
E126: 99 | L126: =cspline('ZC-Rentevoeten'!$B$2:$B$47,'ZC-Rentevoeten'!$G$2:$G$47,$K126,'ZC-Rentevoeten'!$K$1,8,'ZC-Rentevoeten'!$J$1) -> 
E127: 100 | L127: =cspline('ZC-Rentevoeten'!$B$2:$B$47,'ZC-Rentevoeten'!$G$2:$G$47,$K127,'ZC-Rentevoeten'!$K$1,8,'ZC-Rentevoeten'!$J$1) -> 
E128: 101 | L128: =cspline('ZC-Rentevoeten'!$B$2:$B$47,'ZC-Rentevoeten'!$G$2:$G$47,$K128,'ZC-Rentevoeten'!$K$1,8,'ZC-Rentevoeten'!$J$1) -> 
E129: 102 | L129: =cspline('ZC-Rentevoeten'!$B$2:$B$47,'ZC-Rentevoeten'!$G$2:$G$47,$K129,'ZC-Rentevoeten'!$K$1,8,'ZC-Rentevoeten'!$J$1) -> 
E130: 103 | L130: =cspline('ZC-Rentevoeten'!$B$2:$B$47,'ZC-Rentevoeten'!$G$2:$G$47,$K130,'ZC-Rentevoeten'!$K$1,8,'ZC-Rentevoeten'!$J$1) -> 
E131: 104 | L131: =cspline('ZC-Rentevoeten'!$B$2:$B$47,'ZC-Rentevoeten'!$G$2:$G$47,$K131,'ZC-Rentevoeten'!$K$1,8,'ZC-Rentevoeten'!$J$1) -> 
E132: 105 | L132: =cspline('ZC-Rentevoeten'!$B$2:$B$47,'ZC-Rentevoeten'!$G$2:$G$47,$K132,'ZC-Rentevoeten'!$K$1,8,'ZC-Rentevoeten'!$J$1) -> 
E133: 106 | L133: =cspline('ZC-Rentevoeten'!$B$2:$B$47,'ZC-Rentevoeten'!$G$2:$G$47,$K133,'ZC-Rentevoeten'!$K$1,8,'ZC-Rentevoeten'!$J$1) -> 
E134: 107 | L134: =cspline('ZC-Rentevoeten'!$B$2:$B$47,'ZC-Rentevoeten'!$G$2:$G$47,$K134,'ZC-Rentevoeten'!$K$1,8,'ZC-Rentevoeten'!$J$1) -> 
E135: 108 | L135: =cspline('ZC-Rentevoeten'!$B$2:$B$47,'ZC-Rentevoeten'!$G$2:$G$47,$K135,'ZC-Rentevoeten'!$K$1,8,'ZC-Rentevoeten'!$J$1) -> 
E136: 109 | L136: =cspline('ZC-Rentevoeten'!$B$2:$B$47,'ZC-Rentevoeten'!$G$2:$G$47,$K136,'ZC-Rentevoeten'!$K$1,8,'ZC-Rentevoeten'!$J$1) -> 
E137: 110 | L137: =cspline('ZC-Rentevoeten'!$B$2:$B$47,'ZC-Rentevoeten'!$G$2:$G$47,$K137,'ZC-Rentevoeten'!$K$1,8,'ZC-Rentevoeten'!$J$1) -> 
E138: 111 | L138: =cspline('ZC-Rentevoeten'!$B$2:$B$47,'ZC-Rentevoeten'!$G$2:$G$47,$K138,'ZC-Rentevoeten'!$K$1,8,'ZC-Rentevoeten'!$J$1) -> 
E139: 112 | L139: =cspline('ZC-Rentevoeten'!$B$2:$B$47,'ZC-Rentevoeten'!$G$2:$G$47,$K139,'ZC-Rentevoeten'!$K$1,8,'ZC-Rentevoeten'!$J$1) -> 
E140: 113 | L140: =cspline('ZC-Rentevoeten'!$B$2:$B$47,'ZC-Rentevoeten'!$G$2:$G$47,$K140,'ZC-Rentevoeten'!$K$1,8,'ZC-Rentevoeten'!$J$1) -> 
E141: 114 | L141: =cspline('ZC-Rentevoeten'!$B$2:$B$47,'ZC-Rentevoeten'!$G$2:$G$47,$K141,'ZC-Rentevoeten'!$K$1,8,'ZC-Rentevoeten'!$J$1) -> 
E142: 115 | L142: =cspline('ZC-Rentevoeten'!$B$2:$B$47,'ZC-Rentevoeten'!$G$2:$G$47,$K142,'ZC-Rentevoeten'!$K$1,8,'ZC-Rentevoeten'!$J$1) -> 
E143: 116 | L143: =cspline('ZC-Rentevoeten'!$B$2:$B$47,'ZC-Rentevoeten'!$G$2:$G$47,$K143,'ZC-Rentevoeten'!$K$1,8,'ZC-Rentevoeten'!$J$1) -> 
E144: 117 | L144: =cspline('ZC-Rentevoeten'!$B$2:$B$47,'ZC-Rentevoeten'!$G$2:$G$47,$K144,'ZC-Rentevoeten'!$K$1,8,'ZC-Rentevoeten'!$J$1) -> 
E145: 118 | L145: =cspline('ZC-Rentevoeten'!$B$2:$B$47,'ZC-Rentevoeten'!$G$2:$G$47,$K145,'ZC-Rentevoeten'!$K$1,8,'ZC-Rentevoeten'!$J$1) -> 
E146: 119 | L146: =cspline('ZC-Rentevoeten'!$B$2:$B$47,'ZC-Rentevoeten'!$G$2:$G$47,$K146,'ZC-Rentevoeten'!$K$1,8,'ZC-Rentevoeten'!$J$1) -> 
E147: 120 | L147: =cspline('ZC-Rentevoeten'!$B$2:$B$47,'ZC-Rentevoeten'!$G$2:$G$47,$K147,'ZC-Rentevoeten'!$K$1,8,'ZC-Rentevoeten'!$J$1) -> 
E148: 121 | L148: =cspline('ZC-Rentevoeten'!$B$2:$B$47,'ZC-Rentevoeten'!$G$2:$G$47,$K148,'ZC-Rentevoeten'!$K$1,8,'ZC-Rentevoeten'!$J$1) -> 
E149: 122 | L149: =cspline('ZC-Rentevoeten'!$B$2:$B$47,'ZC-Rentevoeten'!$G$2:$G$47,$K149,'ZC-Rentevoeten'!$K$1,8,'ZC-Rentevoeten'!$J$1) -> 
E150: 123 | L150: =cspline('ZC-Rentevoeten'!$B$2:$B$47,'ZC-Rentevoeten'!$G$2:$G$47,$K150,'ZC-Rentevoeten'!$K$1,8,'ZC-Rentevoeten'!$J$1) -> 
E151: 124 | L151: =cspline('ZC-Rentevoeten'!$B$2:$B$47,'ZC-Rentevoeten'!$G$2:$G$47,$K151,'ZC-Rentevoeten'!$K$1,8,'ZC-Rentevoeten'!$J$1) -> 
E152: 125 | L152: =cspline('ZC-Rentevoeten'!$B$2:$B$47,'ZC-Rentevoeten'!$G$2:$G$47,$K152,'ZC-Rentevoeten'!$K$1,8,'ZC-Rentevoeten'!$J$1) -> 
E153: 126 | L153: =cspline('ZC-Rentevoeten'!$B$2:$B$47,'ZC-Rentevoeten'!$G$2:$G$47,$K153,'ZC-Rentevoeten'!$K$1,8,'ZC-Rentevoeten'!$J$1) -> 
E154: 127 | L154: =cspline('ZC-Rentevoeten'!$B$2:$B$47,'ZC-Rentevoeten'!$G$2:$G$47,$K154,'ZC-Rentevoeten'!$K$1,8,'ZC-Rentevoeten'!$J$1) -> 
B155: =IF(B154>=1,2,IF(C155<$A$15,0,1)) ->  | E155: 128 | L155: =cspline('ZC-Rentevoeten'!$B$2:$B$47,'ZC-Rentevoeten'!$G$2:$G$47,$K155,'ZC-Rentevoeten'!$K$1,8,'ZC-Rentevoeten'!$J$1) -> 
E156: 129 | G156: =G155-F156 ->  | H156: =G155*$G$17*D156/360 ->  | L156: =cspline('ZC-Rentevoeten'!$B$2:$B$47,'ZC-Rentevoeten'!$G$2:$G$47,$K156,'ZC-Rentevoeten'!$K$1,8,'ZC-Rentevoeten'!$J$1) ->  | N156: =IF(E156-1<=$N$26,N155,N155+1) -> 
A157: =IF(DAY(endmonth(A156,12/$G$7))>30,endmonth(A156,12/$G$7)-1,endmonth(A156,12/$G$7)) ->  | C157: =IF(endmonth(C156,12/$G$7)>=$A$15,$G$15,endmonth(C156,12/$G$7)) ->  | E157: =E156+1 -> 130 | F157: =IF(B157=1,G156,IF(A157<$A$12,0,IF(B157=1,G156,IF(B157=2,0,IF(MOD(N157,$G$7/$G$8)=0,IF($G$5=$N$5,IF(A157>=$A$13,G156,$G$21),IF(A157>=$A$13,G156,$G$21-G156*$G$17/$G$8)),0))))) ->  | I157: =IF(B157<2,F157+H157,0) ->  | K157: =IF(I157=0,0,K156+D157) ->  | L157: =cspline('ZC-Rentevoeten'!$B$2:$B$47,'ZC-Rentevoeten'!$G$2:$G$47,$K157,'ZC-Rentevoeten'!$K$1,8,'ZC-Rentevoeten'!$J$1) -> 
D158: =IF(B158=0,360/$G$7,IF(B158=1,DAYS360(C157,C158,1),0)) ->  | E158: 131 | L158: =cspline('ZC-Rentevoeten'!$B$2:$B$47,'ZC-Rentevoeten'!$G$2:$G$47,$K158,'ZC-Rentevoeten'!$K$1,8,'ZC-Rentevoeten'!$J$1) ->  | M158: =IF(I158=0,0,I158*L158) -> 
E159: 132 | L159: =cspline('ZC-Rentevoeten'!$B$2:$B$47,'ZC-Rentevoeten'!$G$2:$G$47,$K159,'ZC-Rentevoeten'!$K$1,8,'ZC-Rentevoeten'!$J$1) -> 
E160: 133 | L160: =cspline('ZC-Rentevoeten'!$B$2:$B$47,'ZC-Rentevoeten'!$G$2:$G$47,$K160,'ZC-Rentevoeten'!$K$1,8,'ZC-Rentevoeten'!$J$1) -> 
E161: 134 | L161: =cspline('ZC-Rentevoeten'!$B$2:$B$47,'ZC-Rentevoeten'!$G$2:$G$47,$K161,'ZC-Rentevoeten'!$K$1,8,'ZC-Rentevoeten'!$J$1) -> 
E162: 135 | L162: =cspline('ZC-Rentevoeten'!$B$2:$B$47,'ZC-Rentevoeten'!$G$2:$G$47,$K162,'ZC-Rentevoeten'!$K$1,8,'ZC-Rentevoeten'!$J$1) -> 
E163: 136 | L163: =cspline('ZC-Rentevoeten'!$B$2:$B$47,'ZC-Rentevoeten'!$G$2:$G$47,$K163,'ZC-Rentevoeten'!$K$1,8,'ZC-Rentevoeten'!$J$1) -> 
E164: 137 | L164: =cspline('ZC-Rentevoeten'!$B$2:$B$47,'ZC-Rentevoeten'!$G$2:$G$47,$K164,'ZC-Rentevoeten'!$K$1,8,'ZC-Rentevoeten'!$J$1) -> 
E165: 138 | L165: =cspline('ZC-Rentevoeten'!$B$2:$B$47,'ZC-Rentevoeten'!$G$2:$G$47,$K165,'ZC-Rentevoeten'!$K$1,8,'ZC-Rentevoeten'!$J$1) -> 
E166: 139 | L166: =cspline('ZC-Rentevoeten'!$B$2:$B$47,'ZC-Rentevoeten'!$G$2:$G$47,$K166,'ZC-Rentevoeten'!$K$1,8,'ZC-Rentevoeten'!$J$1) -> 
E167: 140 | L167: =cspline('ZC-Rentevoeten'!$B$2:$B$47,'ZC-Rentevoeten'!$G$2:$G$47,$K167,'ZC-Rentevoeten'!$K$1,8,'ZC-Rentevoeten'!$J$1) -> 
E168: 141 | L168: =cspline('ZC-Rentevoeten'!$B$2:$B$47,'ZC-Rentevoeten'!$G$2:$G$47,$K168,'ZC-Rentevoeten'!$K$1,8,'ZC-Rentevoeten'!$J$1) -> 
E169: 142 | L169: =cspline('ZC-Rentevoeten'!$B$2:$B$47,'ZC-Rentevoeten'!$G$2:$G$47,$K169,'ZC-Rentevoeten'!$K$1,8,'ZC-Rentevoeten'!$J$1) -> 
E170: 143 | L170: =cspline('ZC-Rentevoeten'!$B$2:$B$47,'ZC-Rentevoeten'!$G$2:$G$47,$K170,'ZC-Rentevoeten'!$K$1,8,'ZC-Rentevoeten'!$J$1) -> 
E171: 144 | L171: =cspline('ZC-Rentevoeten'!$B$2:$B$47,'ZC-Rentevoeten'!$G$2:$G$47,$K171,'ZC-Rentevoeten'!$K$1,8,'ZC-Rentevoeten'!$J$1) -> 
E172: 145 | L172: =cspline('ZC-Rentevoeten'!$B$2:$B$47,'ZC-Rentevoeten'!$G$2:$G$47,$K172,'ZC-Rentevoeten'!$K$1,8,'ZC-Rentevoeten'!$J$1) -> 
E173: 146 | L173: =cspline('ZC-Rentevoeten'!$B$2:$B$47,'ZC-Rentevoeten'!$G$2:$G$47,$K173,'ZC-Rentevoeten'!$K$1,8,'ZC-Rentevoeten'!$J$1) -> 
E174: 147 | L174: =cspline('ZC-Rentevoeten'!$B$2:$B$47,'ZC-Rentevoeten'!$G$2:$G$47,$K174,'ZC-Rentevoeten'!$K$1,8,'ZC-Rentevoeten'!$J$1) -> 
E175: 148 | L175: =cspline('ZC-Rentevoeten'!$B$2:$B$47,'ZC-Rentevoeten'!$G$2:$G$47,$K175,'ZC-Rentevoeten'!$K$1,8,'ZC-Rentevoeten'!$J$1) -> 
E176: 149 | L176: =cspline('ZC-Rentevoeten'!$B$2:$B$47,'ZC-Rentevoeten'!$G$2:$G$47,$K176,'ZC-Rentevoeten'!$K$1,8,'ZC-Rentevoeten'!$J$1) -> 
E177: 150 | L177: =cspline('ZC-Rentevoeten'!$B$2:$B$47,'ZC-Rentevoeten'!$G$2:$G$47,$K177,'ZC-Rentevoeten'!$K$1,8,'ZC-Rentevoeten'!$J$1) -> 
E178: 151 | L178: =cspline('ZC-Rentevoeten'!$B$2:$B$47,'ZC-Rentevoeten'!$G$2:$G$47,$K178,'ZC-Rentevoeten'!$K$1,8,'ZC-Rentevoeten'!$J$1) -> 
E179: 152 | L179: =cspline('ZC-Rentevoeten'!$B$2:$B$47,'ZC-Rentevoeten'!$G$2:$G$47,$K179,'ZC-Rentevoeten'!$K$1,8,'ZC-Rentevoeten'!$J$1) -> 
E180: 153 | L180: =cspline('ZC-Rentevoeten'!$B$2:$B$47,'ZC-Rentevoeten'!$G$2:$G$47,$K180,'ZC-Rentevoeten'!$K$1,8,'ZC-Rentevoeten'!$J$1) -> 
E181: 154 | L181: =cspline('ZC-Rentevoeten'!$B$2:$B$47,'ZC-Rentevoeten'!$G$2:$G$47,$K181,'ZC-Rentevoeten'!$K$1,8,'ZC-Rentevoeten'!$J$1) -> 
E182: 155 | L182: =cspline('ZC-Rentevoeten'!$B$2:$B$47,'ZC-Rentevoeten'!$G$2:$G$47,$K182,'ZC-Rentevoeten'!$K$1,8,'ZC-Rentevoeten'!$J$1) -> 
E183: 156 | L183: =cspline('ZC-Rentevoeten'!$B$2:$B$47,'ZC-Rentevoeten'!$G$2:$G$47,$K183,'ZC-Rentevoeten'!$K$1,8,'ZC-Rentevoeten'!$J$1) -> 
E184: 157 | L184: =cspline('ZC-Rentevoeten'!$B$2:$B$47,'ZC-Rentevoeten'!$G$2:$G$47,$K184,'ZC-Rentevoeten'!$K$1,8,'ZC-Rentevoeten'!$J$1) -> 
E185: 158 | L185: =cspline('ZC-Rentevoeten'!$B$2:$B$47,'ZC-Rentevoeten'!$G$2:$G$47,$K185,'ZC-Rentevoeten'!$K$1,8,'ZC-Rentevoeten'!$J$1) -> 
E186: 159 | L186: =cspline('ZC-Rentevoeten'!$B$2:$B$47,'ZC-Rentevoeten'!$G$2:$G$47,$K186,'ZC-Rentevoeten'!$K$1,8,'ZC-Rentevoeten'!$J$1) -> 
E187: 160 | L187: =cspline('ZC-Rentevoeten'!$B$2:$B$47,'ZC-Rentevoeten'!$G$2:$G$47,$K187,'ZC-Rentevoeten'!$K$1,8,'ZC-Rentevoeten'!$J$1) -> 
E188: 161 | L188: =cspline('ZC-Rentevoeten'!$B$2:$B$47,'ZC-Rentevoeten'!$G$2:$G$47,$K188,'ZC-Rentevoeten'!$K$1,8,'ZC-Rentevoeten'!$J$1) -> 
E189: 162 | L189: =cspline('ZC-Rentevoeten'!$B$2:$B$47,'ZC-Rentevoeten'!$G$2:$G$47,$K189,'ZC-Rentevoeten'!$K$1,8,'ZC-Rentevoeten'!$J$1) -> 
E190: 163 | L190: =cspline('ZC-Rentevoeten'!$B$2:$B$47,'ZC-Rentevoeten'!$G$2:$G$47,$K190,'ZC-Rentevoeten'!$K$1,8,'ZC-Rentevoeten'!$J$1) -> 
E191: 164 | L191: =cspline('ZC-Rentevoeten'!$B$2:$B$47,'ZC-Rentevoeten'!$G$2:$G$47,$K191,'ZC-Rentevoeten'!$K$1,8,'ZC-Rentevoeten'!$J$1) -> 
E192: 165 | L192: =cspline('ZC-Rentevoeten'!$B$2:$B$47,'ZC-Rentevoeten'!$G$2:$G$47,$K192,'ZC-Rentevoeten'!$K$1,8,'ZC-Rentevoeten'!$J$1) -> 
E193: 166 | L193: =cspline('ZC-Rentevoeten'!$B$2:$B$47,'ZC-Rentevoeten'!$G$2:$G$47,$K193,'ZC-Rentevoeten'!$K$1,8,'ZC-Rentevoeten'!$J$1) -> 
E194: 167 | L194: =cspline('ZC-Rentevoeten'!$B$2:$B$47,'ZC-Rentevoeten'!$G$2:$G$47,$K194,'ZC-Rentevoeten'!$K$1,8,'ZC-Rentevoeten'!$J$1) -> 
E195: 168 | L195: =cspline('ZC-Rentevoeten'!$B$2:$B$47,'ZC-Rentevoeten'!$G$2:$G$47,$K195,'ZC-Rentevoeten'!$K$1,8,'ZC-Rentevoeten'!$J$1) -> 
E196: 169 | L196: =cspline('ZC-Rentevoeten'!$B$2:$B$47,'ZC-Rentevoeten'!$G$2:$G$47,$K196,'ZC-Rentevoeten'!$K$1,8,'ZC-Rentevoeten'!$J$1) -> 
E197: 170 | L197: =cspline('ZC-Rentevoeten'!$B$2:$B$47,'ZC-Rentevoeten'!$G$2:$G$47,$K197,'ZC-Rentevoeten'!$K$1,8,'ZC-Rentevoeten'!$J$1) -> 
E198: 171 | L198: =cspline('ZC-Rentevoeten'!$B$2:$B$47,'ZC-Rentevoeten'!$G$2:$G$47,$K198,'ZC-Rentevoeten'!$K$1,8,'ZC-Rentevoeten'!$J$1) -> 
E199: 172 | L199: =cspline('ZC-Rentevoeten'!$B$2:$B$47,'ZC-Rentevoeten'!$G$2:$G$47,$K199,'ZC-Rentevoeten'!$K$1,8,'ZC-Rentevoeten'!$J$1) -> 
E200: 173 | L200: =cspline('ZC-Rentevoeten'!$B$2:$B$47,'ZC-Rentevoeten'!$G$2:$G$47,$K200,'ZC-Rentevoeten'!$K$1,8,'ZC-Rentevoeten'!$J$1) -> 
E201: 174 | L201: =cspline('ZC-Rentevoeten'!$B$2:$B$47,'ZC-Rentevoeten'!$G$2:$G$47,$K201,'ZC-Rentevoeten'!$K$1,8,'ZC-Rentevoeten'!$J$1) -> 
E202: 175 | L202: =cspline('ZC-Rentevoeten'!$B$2:$B$47,'ZC-Rentevoeten'!$G$2:$G$47,$K202,'ZC-Rentevoeten'!$K$1,8,'ZC-Rentevoeten'!$J$1) -> 
E203: 176 | L203: =cspline('ZC-Rentevoeten'!$B$2:$B$47,'ZC-Rentevoeten'!$G$2:$G$47,$K203,'ZC-Rentevoeten'!$K$1,8,'ZC-Rentevoeten'!$J$1) -> 
... 186 more rows

Sheet OUTPUT LENING (hidden)
A1: Aflossingstabel op basis van de marktrentevoeten gepubliceerd op | G1: ='INPUT RENTEVOETEN'!C6 -> 2019-01-23 | H1: NL
E3: Bron : Euribor en IRS (ICESWAP) rentevoeten | I3: =MAX($C$23:$C$383) -> 
A4: Kredietbedrag | E4: ='INPUT LENING'!G16 -> 1000000
A5: Terugbetalingsformule | E5: ='INPUT LENING'!$G$5 -> progressieve tranches
A6: Looptijd | E6: ='INPUT LENING'!$G$6 -> 20 | F6: jaar
A7: Periodiciteit betaling kapitaal en intresten | E7: ='INPUT LENING'!$G$7 -> 2 | F7: maal per jaar
A8: Periodiciteit van de interesten | E8: =E7 -> 2 | F8: =F7 -> maal per jaar
A9: 1ste herziening van de rentevoet na … | E9: ='INPUT LENING'!$G$9 -> 20 | F9: =F6 -> jaar
A10: Omzettingsdatum van het krediet (valutadatum) | E10: ='INPUT LENING'!$G$10 -> 
A11: 1ste vervaldag intrest | E11: ='INPUT LENING'!$G$11 -> 
A12: 1ste vervaldag kapitaal | E12: ='INPUT LENING'!$G$12 -> 
A13: Eindvervaldag | E13: ='INPUT LENING'!$G$13 -> 
A14: ='INPUT LENING'!C14 -> Aantal semestraliteiten | D14: =ROUND(DAYS360($E$12,$E$13,0)/(360/$E$7)+1,0) ->  | E14: =ROUND(IF($E$5='INPUT LENING'!$N$5,$E$4/$D$14,PMT($E$16/$E$7,$D$14,-$E$4)),2) -> 
A15: Datum 1ste herziening | E15: =IF('INPUT LENING'!G15=E13,"Geen herziening",'INPUT LENING'!G15) -> 
A16: Nominale jaarlijkse rentevoet (360/360) | E16: ='INPUT LENING'!K17 -> 0
D19: Terugbetaling | E19: Resterend | G19: Totaal
A20: Datum | B20: Dagen | D20: kapitaal | E20: saldo | F20: Intrest | G20: per periode | H20: =IF(OR($E$5='INPUT LENING'!$N$5,$E$7=$E$8)," ",IF($E$7=12,"Mensualiteit",IF($E$7=4,"Trimestraliteit",IF($E$7=2,"Semestraliteit","Annuïteit")))) -> 
A22: ='INPUT LENING'!C27 ->  | E22: =E4 -> 1000000
A23: =IF(AND(E7+E9=2,DAY('INPUT LENING'!C28)=30),'INPUT LENING'!C28+1,'INPUT LENING'!C28) ->  | B23: ='INPUT LENING'!D28 ->  | C23: =IF(B23=0,0,'INPUT LENING'!E28) ->  | D23: =IF(OR('INPUT LENING'!F28=0,'INPUT LENING'!B28=1),0,IF($E$5='INPUT LENING'!$N$5,IF(A23>=$E$13,E22,$E$14),IF(A23>=$E$13,E22,ROUND($E$14-E22*$E$16/$E$7,2)))) ->  | E23: =E22-D23 ->  | F23: =ROUND(E22*$E$16*B23/360,2) ->  | G23: =D23+F23 ->  | H23: =IF(OR($E$5='INPUT LENING'!$N$5,$E$8=$E$7)," ",IF(D23=0," ",D23+IF(AND($E$8/$E$7=2,C23>=2),SUM(F22:F23),IF(AND($E$8/$E$7=3,C23>=3),SUM(F21:F23),IF(AND($E$8/$E$7=4,C23>=4),SUM(F20:F23),IF(AND($E$8/$E$7=6,C23>=6),SUM(F18:F23),IF(AND($E$8/$E$7=12,C23>=12),SUM(F11:F23),SUM($F$22:F23)))))))) -> 
A24: =IF(A23="-","-",IF(endmonth(A23,12/$E$7)>$E$13,"-",endmonth(A23,12/$E$7))) ->  | B24: =IF(A24="-",0,360/$E$7) ->  | C24: =IF(B24=0,0,'INPUT LENING'!E29) ->  | D24: =IF(B24=0,0,IF($E$5='INPUT LENING'!$N$5,IF(A24>=$E$13,E23,$E$14),IF(A24>=$E$13,E23,ROUND($E$14-E23*$E$16/$E$7,2)))) ->  | H24: =IF(OR($E$5='INPUT LENING'!$N$5,$E$8=$E$7)," ",IF(D24=0," ",D24+IF(AND($E$8/$E$7=2,C24>=2),SUM(F23:F24),IF(AND($E$8/$E$7=3,C24>=3),SUM(F22:F24),IF(AND($E$8/$E$7=4,C24>=4),SUM(F21:F24),IF(AND($E$8/$E$7=6,C24>=6),SUM(F19:F24),IF(AND($E$8/$E$7=12,C24>=12),SUM(F12:F24),SUM($F$22:F24)))))))) -> 
B25: =IF(A25="-",0,360/$E$7) ->  | C25: =IF(B25=0,0,'INPUT LENING'!E30) ->  | D25: =IF(B25=0,0,IF($E$5='INPUT LENING'!$N$5,IF(A25>=$E$13,E24,$E$14),IF(A25>=$E$13,E24,ROUND($E$14-E24*$E$16/$E$7,2)))) ->  | H25: =IF(OR($E$5='INPUT LENING'!$N$5,$E$8=$E$7)," ",IF(D25=0," ",D25+IF(AND($E$8/$E$7=2,C25>=2),SUM(F24:F25),IF(AND($E$8/$E$7=3,C25>=3),SUM(F23:F25),IF(AND($E$8/$E$7=4,C25>=4),SUM(F22:F25),IF(AND($E$8/$E$7=6,C25>=6),SUM(F20:F25),IF(AND($E$8/$E$7=12,C25>=12),SUM(F13:F25),SUM($F$22:F25)))))))) -> 
B26: =IF(A26="-",0,360/$E$7) ->  | C26: =IF(B26=0,0,'INPUT LENING'!E31) ->  | D26: =IF(B26=0,0,IF($E$5='INPUT LENING'!$N$5,IF(A26>=$E$13,E25,$E$14),IF(A26>=$E$13,E25,ROUND($E$14-E25*$E$16/$E$7,2)))) ->  | H26: =IF(OR($E$5='INPUT LENING'!$N$5,$E$8=$E$7)," ",IF(D26=0," ",D26+IF(AND($E$8/$E$7=2,C26>=2),SUM(F25:F26),IF(AND($E$8/$E$7=3,C26>=3),SUM(F24:F26),IF(AND($E$8/$E$7=4,C26>=4),SUM(F23:F26),IF(AND($E$8/$E$7=6,C26>=6),SUM(F21:F26),IF(AND($E$8/$E$7=12,C26>=12),SUM(F14:F26),SUM($F$22:F26)))))))) -> 
C27: =IF(B27=0,0,'INPUT LENING'!E32) ->  | D27: =IF(B27=0,0,IF($E$5='INPUT LENING'!$N$5,IF(A27>=$E$13,E26,$E$14),IF(A27>=$E$13,E26,ROUND($E$14-E26*$E$16/$E$7,2)))) ->  | H27: =IF(OR($E$5='INPUT LENING'!$N$5,$E$8=$E$7)," ",IF(D27=0," ",D27+IF(AND($E$8/$E$7=2,C27>=2),SUM(F26:F27),IF(AND($E$8/$E$7=3,C27>=3),SUM(F25:F27),IF(AND($E$8/$E$7=4,C27>=4),SUM(F24:F27),IF(AND($E$8/$E$7=6,C27>=6),SUM(F22:F27),IF(AND($E$8/$E$7=12,C27>=12),SUM(F16:F27),SUM($F$22:F27)))))))) -> 
C28: =IF(B28=0,0,'INPUT LENING'!E33) ->  | D28: =IF(B28=0,0,IF($E$5='INPUT LENING'!$N$5,IF(A28>=$E$13,E27,$E$14),IF(A28>=$E$13,E27,ROUND($E$14-E27*$E$16/$E$7,2)))) ->  | H28: =IF(OR($E$5='INPUT LENING'!$N$5,$E$8=$E$7)," ",IF(D28=0," ",D28+IF(AND($E$8/$E$7=2,C28>=2),SUM(F27:F28),IF(AND($E$8/$E$7=3,C28>=3),SUM(F26:F28),IF(AND($E$8/$E$7=4,C28>=4),SUM(F25:F28),IF(AND($E$8/$E$7=6,C28>=6),SUM(F23:F28),IF(AND($E$8/$E$7=12,C28>=12),SUM(F17:F28),SUM($F$22:F28)))))))) -> 
C29: =IF(B29=0,0,'INPUT LENING'!E34) ->  | D29: =IF(B29=0,0,IF($E$5='INPUT LENING'!$N$5,IF(A29>=$E$13,E28,$E$14),IF(A29>=$E$13,E28,ROUND($E$14-E28*$E$16/$E$7,2)))) ->  | H29: =IF(OR($E$5='INPUT LENING'!$N$5,$E$8=$E$7)," ",IF(D29=0," ",D29+IF(AND($E$8/$E$7=2,C29>=2),SUM(F28:F29),IF(AND($E$8/$E$7=3,C29>=3),SUM(F27:F29),IF(AND($E$8/$E$7=4,C29>=4),SUM(F26:F29),IF(AND($E$8/$E$7=6,C29>=6),SUM(F24:F29),IF(AND($E$8/$E$7=12,C29>=12),SUM(F18:F29),SUM($F$22:F29)))))))) -> 
C30: =IF(B30=0,0,'INPUT LENING'!E35) ->  | D30: =IF(B30=0,0,IF($E$5='INPUT LENING'!$N$5,IF(A30>=$E$13,E29,$E$14),IF(A30>=$E$13,E29,ROUND($E$14-E29*$E$16/$E$7,2)))) ->  | H30: =IF(OR($E$5='INPUT LENING'!$N$5,$E$8=$E$7)," ",IF(D30=0," ",D30+IF(AND($E$8/$E$7=2,C30>=2),SUM(F29:F30),IF(AND($E$8/$E$7=3,C30>=3),SUM(F28:F30),IF(AND($E$8/$E$7=4,C30>=4),SUM(F27:F30),IF(AND($E$8/$E$7=6,C30>=6),SUM(F25:F30),IF(AND($E$8/$E$7=12,C30>=12),SUM(F19:F30),SUM($F$22:F30)))))))) -> 
C31: =IF(B31=0,0,'INPUT LENING'!E36) ->  | D31: =IF(B31=0,0,IF($E$5='INPUT LENING'!$N$5,IF(A31>=$E$13,E30,$E$14),IF(A31>=$E$13,E30,ROUND($E$14-E30*$E$16/$E$7,2)))) ->  | H31: =IF(OR($E$5='INPUT LENING'!$N$5,$E$8=$E$7)," ",IF(D31=0," ",D31+IF(AND($E$8/$E$7=2,C31>=2),SUM(F30:F31),IF(AND($E$8/$E$7=3,C31>=3),SUM(F29:F31),IF(AND($E$8/$E$7=4,C31>=4),SUM(F28:F31),IF(AND($E$8/$E$7=6,C31>=6),SUM(F26:F31),IF(AND($E$8/$E$7=12,C31>=12),SUM(F20:F31),SUM($F$22:F31)))))))) -> 
C32: =IF(B32=0,0,'INPUT LENING'!E37) ->  | D32: =IF(B32=0,0,IF($E$5='INPUT LENING'!$N$5,IF(A32>=$E$13,E31,$E$14),IF(A32>=$E$13,E31,ROUND($E$14-E31*$E$16/$E$7,2)))) ->  | H32: =IF(OR($E$5='INPUT LENING'!$N$5,$E$8=$E$7)," ",IF(D32=0," ",D32+IF(AND($E$8/$E$7=2,C32>=2),SUM(F31:F32),IF(AND($E$8/$E$7=3,C32>=3),SUM(F30:F32),IF(AND($E$8/$E$7=4,C32>=4),SUM(F29:F32),IF(AND($E$8/$E$7=6,C32>=6),SUM(F27:F32),IF(AND($E$8/$E$7=12,C32>=12),SUM(F21:F32),SUM($F$22:F32)))))))) -> 
C33: =IF(B33=0,0,'INPUT LENING'!E38) ->  | D33: =IF(B33=0,0,IF($E$5='INPUT LENING'!$N$5,IF(A33>=$E$13,E32,$E$14),IF(A33>=$E$13,E32,ROUND($E$14-E32*$E$16/$E$7,2)))) ->  | H33: =IF(OR($E$5='INPUT LENING'!$N$5,$E$8=$E$7)," ",IF(D33=0," ",D33+IF(AND($E$8/$E$7=2,C33>=2),SUM(F32:F33),IF(AND($E$8/$E$7=3,C33>=3),SUM(F31:F33),IF(AND($E$8/$E$7=4,C33>=4),SUM(F30:F33),IF(AND($E$8/$E$7=6,C33>=6),SUM(F28:F33),IF(AND($E$8/$E$7=12,C33>=12),SUM(F22:F33),SUM($F$22:F33)))))))) -> 
C34: =IF(B34=0,0,'INPUT LENING'!E39) ->  | D34: =IF(B34=0,0,IF($E$5='INPUT LENING'!$N$5,IF(A34>=$E$13,E33,$E$14),IF(A34>=$E$13,E33,ROUND($E$14-E33*$E$16/$E$7,2)))) ->  | H34: =IF(OR($E$5='INPUT LENING'!$N$5,$E$8=$E$7)," ",IF(D34=0," ",D34+IF(AND($E$8/$E$7=2,C34>=2),SUM(F33:F34),IF(AND($E$8/$E$7=3,C34>=3),SUM(F32:F34),IF(AND($E$8/$E$7=4,C34>=4),SUM(F31:F34),IF(AND($E$8/$E$7=6,C34>=6),SUM(F29:F34),IF(AND($E$8/$E$7=12,C34>=12),SUM(F23:F34),SUM($F$22:F34)))))))) -> 
C35: =IF(B35=0,0,'INPUT LENING'!E40) ->  | D35: =IF(B35=0,0,IF($E$5='INPUT LENING'!$N$5,IF(A35>=$E$13,E34,$E$14),IF(A35>=$E$13,E34,ROUND($E$14-E34*$E$16/$E$7,2)))) ->  | H35: =IF(OR($E$5='INPUT LENING'!$N$5,$E$8=$E$7)," ",IF(D35=0," ",D35+IF(AND($E$8/$E$7=2,C35>=2),SUM(F34:F35),IF(AND($E$8/$E$7=3,C35>=3),SUM(F33:F35),IF(AND($E$8/$E$7=4,C35>=4),SUM(F32:F35),IF(AND($E$8/$E$7=6,C35>=6),SUM(F30:F35),IF(AND($E$8/$E$7=12,C35>=12),SUM(F24:F35),SUM($F$22:F35)))))))) -> 
C36: =IF(B36=0,0,'INPUT LENING'!E41) ->  | D36: =IF(B36=0,0,IF($E$5='INPUT LENING'!$N$5,IF(A36>=$E$13,E35,$E$14),IF(A36>=$E$13,E35,ROUND($E$14-E35*$E$16/$E$7,2)))) ->  | H36: =IF(OR($E$5='INPUT LENING'!$N$5,$E$8=$E$7)," ",IF(D36=0," ",D36+IF(AND($E$8/$E$7=2,C36>=2),SUM(F35:F36),IF(AND($E$8/$E$7=3,C36>=3),SUM(F34:F36),IF(AND($E$8/$E$7=4,C36>=4),SUM(F33:F36),IF(AND($E$8/$E$7=6,C36>=6),SUM(F31:F36),IF(AND($E$8/$E$7=12,C36>=12),SUM(F25:F36),SUM($F$22:F36)))))))) -> 
C37: =IF(B37=0,0,'INPUT LENING'!E42) ->  | D37: =IF(B37=0,0,IF($E$5='INPUT LENING'!$N$5,IF(A37>=$E$13,E36,$E$14),IF(A37>=$E$13,E36,ROUND($E$14-E36*$E$16/$E$7,2)))) ->  | H37: =IF(OR($E$5='INPUT LENING'!$N$5,$E$8=$E$7)," ",IF(D37=0," ",D37+IF(AND($E$8/$E$7=2,C37>=2),SUM(F36:F37),IF(AND($E$8/$E$7=3,C37>=3),SUM(F35:F37),IF(AND($E$8/$E$7=4,C37>=4),SUM(F34:F37),IF(AND($E$8/$E$7=6,C37>=6),SUM(F32:F37),IF(AND($E$8/$E$7=12,C37>=12),SUM(F26:F37),SUM($F$22:F37)))))))) -> 
C38: =IF(B38=0,0,'INPUT LENING'!E43) ->  | D38: =IF(B38=0,0,IF($E$5='INPUT LENING'!$N$5,IF(A38>=$E$13,E37,$E$14),IF(A38>=$E$13,E37,ROUND($E$14-E37*$E$16/$E$7,2)))) ->  | H38: =IF(OR($E$5='INPUT LENING'!$N$5,$E$8=$E$7)," ",IF(D38=0," ",D38+IF(AND($E$8/$E$7=2,C38>=2),SUM(F37:F38),IF(AND($E$8/$E$7=3,C38>=3),SUM(F36:F38),IF(AND($E$8/$E$7=4,C38>=4),SUM(F35:F38),IF(AND($E$8/$E$7=6,C38>=6),SUM(F33:F38),IF(AND($E$8/$E$7=12,C38>=12),SUM(F27:F38),SUM($F$22:F38)))))))) -> 
C39: =IF(B39=0,0,'INPUT LENING'!E44) ->  | D39: =IF(B39=0,0,IF($E$5='INPUT LENING'!$N$5,IF(A39>=$E$13,E38,$E$14),IF(A39>=$E$13,E38,ROUND($E$14-E38*$E$16/$E$7,2)))) ->  | H39: =IF(OR($E$5='INPUT LENING'!$N$5,$E$8=$E$7)," ",IF(D39=0," ",D39+IF(AND($E$8/$E$7=2,C39>=2),SUM(F38:F39),IF(AND($E$8/$E$7=3,C39>=3),SUM(F37:F39),IF(AND($E$8/$E$7=4,C39>=4),SUM(F36:F39),IF(AND($E$8/$E$7=6,C39>=6),SUM(F34:F39),IF(AND($E$8/$E$7=12,C39>=12),SUM(F28:F39),SUM($F$22:F39)))))))) -> 
C40: =IF(B40=0,0,'INPUT LENING'!E45) ->  | D40: =IF(B40=0,0,IF($E$5='INPUT LENING'!$N$5,IF(A40>=$E$13,E39,$E$14),IF(A40>=$E$13,E39,ROUND($E$14-E39*$E$16/$E$7,2)))) ->  | H40: =IF(OR($E$5='INPUT LENING'!$N$5,$E$8=$E$7)," ",IF(D40=0," ",D40+IF(AND($E$8/$E$7=2,C40>=2),SUM(F39:F40),IF(AND($E$8/$E$7=3,C40>=3),SUM(F38:F40),IF(AND($E$8/$E$7=4,C40>=4),SUM(F37:F40),IF(AND($E$8/$E$7=6,C40>=6),SUM(F35:F40),IF(AND($E$8/$E$7=12,C40>=12),SUM(F29:F40),SUM($F$22:F40)))))))) -> 
C41: =IF(B41=0,0,'INPUT LENING'!E46) ->  | D41: =IF(B41=0,0,IF($E$5='INPUT LENING'!$N$5,IF(A41>=$E$13,E40,$E$14),IF(A41>=$E$13,E40,ROUND($E$14-E40*$E$16/$E$7,2)))) ->  | H41: =IF(OR($E$5='INPUT LENING'!$N$5,$E$8=$E$7)," ",IF(D41=0," ",D41+IF(AND($E$8/$E$7=2,C41>=2),SUM(F40:F41),IF(AND($E$8/$E$7=3,C41>=3),SUM(F39:F41),IF(AND($E$8/$E$7=4,C41>=4),SUM(F38:F41),IF(AND($E$8/$E$7=6,C41>=6),SUM(F36:F41),IF(AND($E$8/$E$7=12,C41>=12),SUM(F30:F41),SUM($F$22:F41)))))))) -> 
C42: =IF(B42=0,0,'INPUT LENING'!E47) ->  | D42: =IF(B42=0,0,IF($E$5='INPUT LENING'!$N$5,IF(A42>=$E$13,E41,$E$14),IF(A42>=$E$13,E41,ROUND($E$14-E41*$E$16/$E$7,2)))) ->  | H42: =IF(OR($E$5='INPUT LENING'!$N$5,$E$8=$E$7)," ",IF(D42=0," ",D42+IF(AND($E$8/$E$7=2,C42>=2),SUM(F41:F42),IF(AND($E$8/$E$7=3,C42>=3),SUM(F40:F42),IF(AND($E$8/$E$7=4,C42>=4),SUM(F39:F42),IF(AND($E$8/$E$7=6,C42>=6),SUM(F37:F42),IF(AND($E$8/$E$7=12,C42>=12),SUM(F31:F42),SUM($F$22:F42)))))))) -> 
C43: =IF(B43=0,0,'INPUT LENING'!E48) ->  | D43: =IF(B43=0,0,IF($E$5='INPUT LENING'!$N$5,IF(A43>=$E$13,E42,$E$14),IF(A43>=$E$13,E42,ROUND($E$14-E42*$E$16/$E$7,2)))) ->  | H43: =IF(OR($E$5='INPUT LENING'!$N$5,$E$8=$E$7)," ",IF(D43=0," ",D43+IF(AND($E$8/$E$7=2,C43>=2),SUM(F42:F43),IF(AND($E$8/$E$7=3,C43>=3),SUM(F41:F43),IF(AND($E$8/$E$7=4,C43>=4),SUM(F40:F43),IF(AND($E$8/$E$7=6,C43>=6),SUM(F38:F43),IF(AND($E$8/$E$7=12,C43>=12),SUM(F32:F43),SUM($F$22:F43)))))))) -> 
C44: =IF(B44=0,0,'INPUT LENING'!E49) ->  | D44: =IF(B44=0,0,IF($E$5='INPUT LENING'!$N$5,IF(A44>=$E$13,E43,$E$14),IF(A44>=$E$13,E43,ROUND($E$14-E43*$E$16/$E$7,2)))) ->  | H44: =IF(OR($E$5='INPUT LENING'!$N$5,$E$8=$E$7)," ",IF(D44=0," ",D44+IF(AND($E$8/$E$7=2,C44>=2),SUM(F43:F44),IF(AND($E$8/$E$7=3,C44>=3),SUM(F42:F44),IF(AND($E$8/$E$7=4,C44>=4),SUM(F41:F44),IF(AND($E$8/$E$7=6,C44>=6),SUM(F39:F44),IF(AND($E$8/$E$7=12,C44>=12),SUM(F33:F44),SUM($F$22:F44)))))))) -> 
C45: =IF(B45=0,0,'INPUT LENING'!E50) ->  | D45: =IF(B45=0,0,IF($E$5='INPUT LENING'!$N$5,IF(A45>=$E$13,E44,$E$14),IF(A45>=$E$13,E44,ROUND($E$14-E44*$E$16/$E$7,2)))) ->  | H45: =IF(OR($E$5='INPUT LENING'!$N$5,$E$8=$E$7)," ",IF(D45=0," ",D45+IF(AND($E$8/$E$7=2,C45>=2),SUM(F44:F45),IF(AND($E$8/$E$7=3,C45>=3),SUM(F43:F45),IF(AND($E$8/$E$7=4,C45>=4),SUM(F42:F45),IF(AND($E$8/$E$7=6,C45>=6),SUM(F40:F45),IF(AND($E$8/$E$7=12,C45>=12),SUM(F34:F45),SUM($F$22:F45)))))))) -> 
C46: =IF(B46=0,0,'INPUT LENING'!E51) ->  | D46: =IF(B46=0,0,IF($E$5='INPUT LENING'!$N$5,IF(A46>=$E$13,E45,$E$14),IF(A46>=$E$13,E45,ROUND($E$14-E45*$E$16/$E$7,2)))) ->  | H46: =IF(OR($E$5='INPUT LENING'!$N$5,$E$8=$E$7)," ",IF(D46=0," ",D46+IF(AND($E$8/$E$7=2,C46>=2),SUM(F45:F46),IF(AND($E$8/$E$7=3,C46>=3),SUM(F44:F46),IF(AND($E$8/$E$7=4,C46>=4),SUM(F43:F46),IF(AND($E$8/$E$7=6,C46>=6),SUM(F41:F46),IF(AND($E$8/$E$7=12,C46>=12),SUM(F35:F46),SUM($F$22:F46)))))))) -> 
C47: =IF(B47=0,0,'INPUT LENING'!E52) ->  | D47: =IF(B47=0,0,IF($E$5='INPUT LENING'!$N$5,IF(A47>=$E$13,E46,$E$14),IF(A47>=$E$13,E46,ROUND($E$14-E46*$E$16/$E$7,2)))) ->  | H47: =IF(OR($E$5='INPUT LENING'!$N$5,$E$8=$E$7)," ",IF(D47=0," ",D47+IF(AND($E$8/$E$7=2,C47>=2),SUM(F46:F47),IF(AND($E$8/$E$7=3,C47>=3),SUM(F45:F47),IF(AND($E$8/$E$7=4,C47>=4),SUM(F44:F47),IF(AND($E$8/$E$7=6,C47>=6),SUM(F42:F47),IF(AND($E$8/$E$7=12,C47>=12),SUM(F36:F47),SUM($F$22:F47)))))))) -> 
C48: =IF(B48=0,0,'INPUT LENING'!E53) ->  | D48: =IF(B48=0,0,IF($E$5='INPUT LENING'!$N$5,IF(A48>=$E$13,E47,$E$14),IF(A48>=$E$13,E47,ROUND($E$14-E47*$E$16/$E$7,2)))) ->  | H48: =IF(OR($E$5='INPUT LENING'!$N$5,$E$8=$E$7)," ",IF(D48=0," ",D48+IF(AND($E$8/$E$7=2,C48>=2),SUM(F47:F48),IF(AND($E$8/$E$7=3,C48>=3),SUM(F46:F48),IF(AND($E$8/$E$7=4,C48>=4),SUM(F45:F48),IF(AND($E$8/$E$7=6,C48>=6),SUM(F43:F48),IF(AND($E$8/$E$7=12,C48>=12),SUM(F37:F48),SUM($F$22:F48)))))))) -> 
C49: =IF(B49=0,0,'INPUT LENING'!E54) ->  | D49: =IF(B49=0,0,IF($E$5='INPUT LENING'!$N$5,IF(A49>=$E$13,E48,$E$14),IF(A49>=$E$13,E48,ROUND($E$14-E48*$E$16/$E$7,2)))) ->  | H49: =IF(OR($E$5='INPUT LENING'!$N$5,$E$8=$E$7)," ",IF(D49=0," ",D49+IF(AND($E$8/$E$7=2,C49>=2),SUM(F48:F49),IF(AND($E$8/$E$7=3,C49>=3),SUM(F47:F49),IF(AND($E$8/$E$7=4,C49>=4),SUM(F46:F49),IF(AND($E$8/$E$7=6,C49>=6),SUM(F44:F49),IF(AND($E$8/$E$7=12,C49>=12),SUM(F38:F49),SUM($F$22:F49)))))))) -> 
C50: =IF(B50=0,0,'INPUT LENING'!E55) ->  | D50: =IF(B50=0,0,IF($E$5='INPUT LENING'!$N$5,IF(A50>=$E$13,E49,$E$14),IF(A50>=$E$13,E49,ROUND($E$14-E49*$E$16/$E$7,2)))) ->  | H50: =IF(OR($E$5='INPUT LENING'!$N$5,$E$8=$E$7)," ",IF(D50=0," ",D50+IF(AND($E$8/$E$7=2,C50>=2),SUM(F49:F50),IF(AND($E$8/$E$7=3,C50>=3),SUM(F48:F50),IF(AND($E$8/$E$7=4,C50>=4),SUM(F47:F50),IF(AND($E$8/$E$7=6,C50>=6),SUM(F45:F50),IF(AND($E$8/$E$7=12,C50>=12),SUM(F39:F50),SUM($F$22:F50)))))))) -> 
C51: =IF(B51=0,0,'INPUT LENING'!E56) ->  | D51: =IF(B51=0,0,IF($E$5='INPUT LENING'!$N$5,IF(A51>=$E$13,E50,$E$14),IF(A51>=$E$13,E50,ROUND($E$14-E50*$E$16/$E$7,2)))) ->  | H51: =IF(OR($E$5='INPUT LENING'!$N$5,$E$8=$E$7)," ",IF(D51=0," ",D51+IF(AND($E$8/$E$7=2,C51>=2),SUM(F50:F51),IF(AND($E$8/$E$7=3,C51>=3),SUM(F49:F51),IF(AND($E$8/$E$7=4,C51>=4),SUM(F48:F51),IF(AND($E$8/$E$7=6,C51>=6),SUM(F46:F51),IF(AND($E$8/$E$7=12,C51>=12),SUM(F40:F51),SUM($F$22:F51)))))))) -> 
C52: =IF(B52=0,0,'INPUT LENING'!E57) ->  | D52: =IF(B52=0,0,IF($E$5='INPUT LENING'!$N$5,IF(A52>=$E$13,E51,$E$14),IF(A52>=$E$13,E51,ROUND($E$14-E51*$E$16/$E$7,2)))) ->  | H52: =IF(OR($E$5='INPUT LENING'!$N$5,$E$8=$E$7)," ",IF(D52=0," ",D52+IF(AND($E$8/$E$7=2,C52>=2),SUM(F51:F52),IF(AND($E$8/$E$7=3,C52>=3),SUM(F50:F52),IF(AND($E$8/$E$7=4,C52>=4),SUM(F49:F52),IF(AND($E$8/$E$7=6,C52>=6),SUM(F47:F52),IF(AND($E$8/$E$7=12,C52>=12),SUM(F41:F52),SUM($F$22:F52)))))))) -> 
C53: =IF(B53=0,0,'INPUT LENING'!E58) ->  | D53: =IF(B53=0,0,IF($E$5='INPUT LENING'!$N$5,IF(A53>=$E$13,E52,$E$14),IF(A53>=$E$13,E52,ROUND($E$14-E52*$E$16/$E$7,2)))) ->  | H53: =IF(OR($E$5='INPUT LENING'!$N$5,$E$8=$E$7)," ",IF(D53=0," ",D53+IF(AND($E$8/$E$7=2,C53>=2),SUM(F52:F53),IF(AND($E$8/$E$7=3,C53>=3),SUM(F51:F53),IF(AND($E$8/$E$7=4,C53>=4),SUM(F50:F53),IF(AND($E$8/$E$7=6,C53>=6),SUM(F48:F53),IF(AND($E$8/$E$7=12,C53>=12),SUM(F42:F53),SUM($F$22:F53)))))))) -> 
C54: =IF(B54=0,0,'INPUT LENING'!E59) ->  | D54: =IF(B54=0,0,IF($E$5='INPUT LENING'!$N$5,IF(A54>=$E$13,E53,$E$14),IF(A54>=$E$13,E53,ROUND($E$14-E53*$E$16/$E$7,2)))) ->  | H54: =IF(OR($E$5='INPUT LENING'!$N$5,$E$8=$E$7)," ",IF(D54=0," ",D54+IF(AND($E$8/$E$7=2,C54>=2),SUM(F53:F54),IF(AND($E$8/$E$7=3,C54>=3),SUM(F52:F54),IF(AND($E$8/$E$7=4,C54>=4),SUM(F51:F54),IF(AND($E$8/$E$7=6,C54>=6),SUM(F49:F54),IF(AND($E$8/$E$7=12,C54>=12),SUM(F43:F54),SUM($F$22:F54)))))))) -> 
C55: =IF(B55=0,0,'INPUT LENING'!E60) ->  | D55: =IF(B55=0,0,IF($E$5='INPUT LENING'!$N$5,IF(A55>=$E$13,E54,$E$14),IF(A55>=$E$13,E54,ROUND($E$14-E54*$E$16/$E$7,2)))) ->  | H55: =IF(OR($E$5='INPUT LENING'!$N$5,$E$8=$E$7)," ",IF(D55=0," ",D55+IF(AND($E$8/$E$7=2,C55>=2),SUM(F54:F55),IF(AND($E$8/$E$7=3,C55>=3),SUM(F53:F55),IF(AND($E$8/$E$7=4,C55>=4),SUM(F52:F55),IF(AND($E$8/$E$7=6,C55>=6),SUM(F50:F55),IF(AND($E$8/$E$7=12,C55>=12),SUM(F44:F55),SUM($F$22:F55)))))))) -> 
C56: =IF(B56=0,0,'INPUT LENING'!E61) ->  | D56: =IF(B56=0,0,IF($E$5='INPUT LENING'!$N$5,IF(A56>=$E$13,E55,$E$14),IF(A56>=$E$13,E55,ROUND($E$14-E55*$E$16/$E$7,2)))) ->  | H56: =IF(OR($E$5='INPUT LENING'!$N$5,$E$8=$E$7)," ",IF(D56=0," ",D56+IF(AND($E$8/$E$7=2,C56>=2),SUM(F55:F56),IF(AND($E$8/$E$7=3,C56>=3),SUM(F54:F56),IF(AND($E$8/$E$7=4,C56>=4),SUM(F53:F56),IF(AND($E$8/$E$7=6,C56>=6),SUM(F51:F56),IF(AND($E$8/$E$7=12,C56>=12),SUM(F45:F56),SUM($F$22:F56)))))))) -> 
C57: =IF(B57=0,0,'INPUT LENING'!E62) ->  | D57: =IF(B57=0,0,IF($E$5='INPUT LENING'!$N$5,IF(A57>=$E$13,E56,$E$14),IF(A57>=$E$13,E56,ROUND($E$14-E56*$E$16/$E$7,2)))) ->  | H57: =IF(OR($E$5='INPUT LENING'!$N$5,$E$8=$E$7)," ",IF(D57=0," ",D57+IF(AND($E$8/$E$7=2,C57>=2),SUM(F56:F57),IF(AND($E$8/$E$7=3,C57>=3),SUM(F55:F57),IF(AND($E$8/$E$7=4,C57>=4),SUM(F54:F57),IF(AND($E$8/$E$7=6,C57>=6),SUM(F52:F57),IF(AND($E$8/$E$7=12,C57>=12),SUM(F46:F57),SUM($F$22:F57)))))))) -> 
C58: =IF(B58=0,0,'INPUT LENING'!E63) ->  | D58: =IF(B58=0,0,IF($E$5='INPUT LENING'!$N$5,IF(A58>=$E$13,E57,$E$14),IF(A58>=$E$13,E57,ROUND($E$14-E57*$E$16/$E$7,2)))) ->  | H58: =IF(OR($E$5='INPUT LENING'!$N$5,$E$8=$E$7)," ",IF(D58=0," ",D58+IF(AND($E$8/$E$7=2,C58>=2),SUM(F57:F58),IF(AND($E$8/$E$7=3,C58>=3),SUM(F56:F58),IF(AND($E$8/$E$7=4,C58>=4),SUM(F55:F58),IF(AND($E$8/$E$7=6,C58>=6),SUM(F53:F58),IF(AND($E$8/$E$7=12,C58>=12),SUM(F47:F58),SUM($F$22:F58)))))))) -> 
C59: =IF(B59=0,0,'INPUT LENING'!E64) ->  | D59: =IF(B59=0,0,IF($E$5='INPUT LENING'!$N$5,IF(A59>=$E$13,E58,$E$14),IF(A59>=$E$13,E58,ROUND($E$14-E58*$E$16/$E$7,2)))) ->  | H59: =IF(OR($E$5='INPUT LENING'!$N$5,$E$8=$E$7)," ",IF(D59=0," ",D59+IF(AND($E$8/$E$7=2,C59>=2),SUM(F58:F59),IF(AND($E$8/$E$7=3,C59>=3),SUM(F57:F59),IF(AND($E$8/$E$7=4,C59>=4),SUM(F56:F59),IF(AND($E$8/$E$7=6,C59>=6),SUM(F54:F59),IF(AND($E$8/$E$7=12,C59>=12),SUM(F48:F59),SUM($F$22:F59)))))))) -> 
C60: =IF(B60=0,0,'INPUT LENING'!E65) ->  | D60: =IF(B60=0,0,IF($E$5='INPUT LENING'!$N$5,IF(A60>=$E$13,E59,$E$14),IF(A60>=$E$13,E59,ROUND($E$14-E59*$E$16/$E$7,2)))) ->  | H60: =IF(OR($E$5='INPUT LENING'!$N$5,$E$8=$E$7)," ",IF(D60=0," ",D60+IF(AND($E$8/$E$7=2,C60>=2),SUM(F59:F60),IF(AND($E$8/$E$7=3,C60>=3),SUM(F58:F60),IF(AND($E$8/$E$7=4,C60>=4),SUM(F57:F60),IF(AND($E$8/$E$7=6,C60>=6),SUM(F55:F60),IF(AND($E$8/$E$7=12,C60>=12),SUM(F49:F60),SUM($F$22:F60)))))))) -> 
C61: =IF(B61=0,0,'INPUT LENING'!E66) ->  | D61: =IF(B61=0,0,IF($E$5='INPUT LENING'!$N$5,IF(A61>=$E$13,E60,$E$14),IF(A61>=$E$13,E60,ROUND($E$14-E60*$E$16/$E$7,2)))) ->  | H61: =IF(OR($E$5='INPUT LENING'!$N$5,$E$8=$E$7)," ",IF(D61=0," ",D61+IF(AND($E$8/$E$7=2,C61>=2),SUM(F60:F61),IF(AND($E$8/$E$7=3,C61>=3),SUM(F59:F61),IF(AND($E$8/$E$7=4,C61>=4),SUM(F58:F61),IF(AND($E$8/$E$7=6,C61>=6),SUM(F56:F61),IF(AND($E$8/$E$7=12,C61>=12),SUM(F50:F61),SUM($F$22:F61)))))))) -> 
C62: =IF(B62=0,0,'INPUT LENING'!E67) ->  | D62: =IF(B62=0,0,IF($E$5='INPUT LENING'!$N$5,IF(A62>=$E$13,E61,$E$14),IF(A62>=$E$13,E61,ROUND($E$14-E61*$E$16/$E$7,2)))) ->  | H62: =IF(OR($E$5='INPUT LENING'!$N$5,$E$8=$E$7)," ",IF(D62=0," ",D62+IF(AND($E$8/$E$7=2,C62>=2),SUM(F61:F62),IF(AND($E$8/$E$7=3,C62>=3),SUM(F60:F62),IF(AND($E$8/$E$7=4,C62>=4),SUM(F59:F62),IF(AND($E$8/$E$7=6,C62>=6),SUM(F57:F62),IF(AND($E$8/$E$7=12,C62>=12),SUM(F51:F62),SUM($F$22:F62)))))))) -> 
C63: =IF(B63=0,0,'INPUT LENING'!E68) ->  | D63: =IF(B63=0,0,IF($E$5='INPUT LENING'!$N$5,IF(A63>=$E$13,E62,$E$14),IF(A63>=$E$13,E62,ROUND($E$14-E62*$E$16/$E$7,2)))) ->  | H63: =IF(OR($E$5='INPUT LENING'!$N$5,$E$8=$E$7)," ",IF(D63=0," ",D63+IF(AND($E$8/$E$7=2,C63>=2),SUM(F62:F63),IF(AND($E$8/$E$7=3,C63>=3),SUM(F61:F63),IF(AND($E$8/$E$7=4,C63>=4),SUM(F60:F63),IF(AND($E$8/$E$7=6,C63>=6),SUM(F58:F63),IF(AND($E$8/$E$7=12,C63>=12),SUM(F52:F63),SUM($F$22:F63)))))))) -> 
C64: =IF(B64=0,0,'INPUT LENING'!E69) ->  | D64: =IF(B64=0,0,IF($E$5='INPUT LENING'!$N$5,IF(A64>=$E$13,E63,$E$14),IF(A64>=$E$13,E63,ROUND($E$14-E63*$E$16/$E$7,2)))) ->  | H64: =IF(OR($E$5='INPUT LENING'!$N$5,$E$8=$E$7)," ",IF(D64=0," ",D64+IF(AND($E$8/$E$7=2,C64>=2),SUM(F63:F64),IF(AND($E$8/$E$7=3,C64>=3),SUM(F62:F64),IF(AND($E$8/$E$7=4,C64>=4),SUM(F61:F64),IF(AND($E$8/$E$7=6,C64>=6),SUM(F59:F64),IF(AND($E$8/$E$7=12,C64>=12),SUM(F53:F64),SUM($F$22:F64)))))))) -> 
C65: =IF(B65=0,0,'INPUT LENING'!E70) ->  | D65: =IF(B65=0,0,IF($E$5='INPUT LENING'!$N$5,IF(A65>=$E$13,E64,$E$14),IF(A65>=$E$13,E64,ROUND($E$14-E64*$E$16/$E$7,2)))) ->  | H65: =IF(OR($E$5='INPUT LENING'!$N$5,$E$8=$E$7)," ",IF(D65=0," ",D65+IF(AND($E$8/$E$7=2,C65>=2),SUM(F64:F65),IF(AND($E$8/$E$7=3,C65>=3),SUM(F63:F65),IF(AND($E$8/$E$7=4,C65>=4),SUM(F62:F65),IF(AND($E$8/$E$7=6,C65>=6),SUM(F60:F65),IF(AND($E$8/$E$7=12,C65>=12),SUM(F54:F65),SUM($F$22:F65)))))))) -> 
C66: =IF(B66=0,0,'INPUT LENING'!E71) ->  | D66: =IF(B66=0,0,IF($E$5='INPUT LENING'!$N$5,IF(A66>=$E$13,E65,$E$14),IF(A66>=$E$13,E65,ROUND($E$14-E65*$E$16/$E$7,2)))) ->  | H66: =IF(OR($E$5='INPUT LENING'!$N$5,$E$8=$E$7)," ",IF(D66=0," ",D66+IF(AND($E$8/$E$7=2,C66>=2),SUM(F65:F66),IF(AND($E$8/$E$7=3,C66>=3),SUM(F64:F66),IF(AND($E$8/$E$7=4,C66>=4),SUM(F63:F66),IF(AND($E$8/$E$7=6,C66>=6),SUM(F61:F66),IF(AND($E$8/$E$7=12,C66>=12),SUM(F55:F66),SUM($F$22:F66)))))))) -> 
C67: =IF(B67=0,0,'INPUT LENING'!E72) ->  | D67: =IF(B67=0,0,IF($E$5='INPUT LENING'!$N$5,IF(A67>=$E$13,E66,$E$14),IF(A67>=$E$13,E66,ROUND($E$14-E66*$E$16/$E$7,2)))) ->  | H67: =IF(OR($E$5='INPUT LENING'!$N$5,$E$8=$E$7)," ",IF(D67=0," ",D67+IF(AND($E$8/$E$7=2,C67>=2),SUM(F66:F67),IF(AND($E$8/$E$7=3,C67>=3),SUM(F65:F67),IF(AND($E$8/$E$7=4,C67>=4),SUM(F64:F67),IF(AND($E$8/$E$7=6,C67>=6),SUM(F62:F67),IF(AND($E$8/$E$7=12,C67>=12),SUM(F56:F67),SUM($F$22:F67)))))))) -> 
C68: =IF(B68=0,0,'INPUT LENING'!E73) ->  | D68: =IF(B68=0,0,IF($E$5='INPUT LENING'!$N$5,IF(A68>=$E$13,E67,$E$14),IF(A68>=$E$13,E67,ROUND($E$14-E67*$E$16/$E$7,2)))) ->  | H68: =IF(OR($E$5='INPUT LENING'!$N$5,$E$8=$E$7)," ",IF(D68=0," ",D68+IF(AND($E$8/$E$7=2,C68>=2),SUM(F67:F68),IF(AND($E$8/$E$7=3,C68>=3),SUM(F66:F68),IF(AND($E$8/$E$7=4,C68>=4),SUM(F65:F68),IF(AND($E$8/$E$7=6,C68>=6),SUM(F63:F68),IF(AND($E$8/$E$7=12,C68>=12),SUM(F57:F68),SUM($F$22:F68)))))))) -> 
C69: =IF(B69=0,0,'INPUT LENING'!E74) ->  | D69: =IF(B69=0,0,IF($E$5='INPUT LENING'!$N$5,IF(A69>=$E$13,E68,$E$14),IF(A69>=$E$13,E68,ROUND($E$14-E68*$E$16/$E$7,2)))) ->  | H69: =IF(OR($E$5='INPUT LENING'!$N$5,$E$8=$E$7)," ",IF(D69=0," ",D69+IF(AND($E$8/$E$7=2,C69>=2),SUM(F68:F69),IF(AND($E$8/$E$7=3,C69>=3),SUM(F67:F69),IF(AND($E$8/$E$7=4,C69>=4),SUM(F66:F69),IF(AND($E$8/$E$7=6,C69>=6),SUM(F64:F69),IF(AND($E$8/$E$7=12,C69>=12),SUM(F58:F69),SUM($F$22:F69)))))))) -> 
C70: =IF(B70=0,0,'INPUT LENING'!E75) ->  | D70: =IF(B70=0,0,IF($E$5='INPUT LENING'!$N$5,IF(A70>=$E$13,E69,$E$14),IF(A70>=$E$13,E69,ROUND($E$14-E69*$E$16/$E$7,2)))) ->  | H70: =IF(OR($E$5='INPUT LENING'!$N$5,$E$8=$E$7)," ",IF(D70=0," ",D70+IF(AND($E$8/$E$7=2,C70>=2),SUM(F69:F70),IF(AND($E$8/$E$7=3,C70>=3),SUM(F68:F70),IF(AND($E$8/$E$7=4,C70>=4),SUM(F67:F70),IF(AND($E$8/$E$7=6,C70>=6),SUM(F65:F70),IF(AND($E$8/$E$7=12,C70>=12),SUM(F59:F70),SUM($F$22:F70)))))))) -> 
C71: =IF(B71=0,0,'INPUT LENING'!E76) ->  | D71: =IF(B71=0,0,IF($E$5='INPUT LENING'!$N$5,IF(A71>=$E$13,E70,$E$14),IF(A71>=$E$13,E70,ROUND($E$14-E70*$E$16/$E$7,2)))) ->  | H71: =IF(OR($E$5='INPUT LENING'!$N$5,$E$8=$E$7)," ",IF(D71=0," ",D71+IF(AND($E$8/$E$7=2,C71>=2),SUM(F70:F71),IF(AND($E$8/$E$7=3,C71>=3),SUM(F69:F71),IF(AND($E$8/$E$7=4,C71>=4),SUM(F68:F71),IF(AND($E$8/$E$7=6,C71>=6),SUM(F66:F71),IF(AND($E$8/$E$7=12,C71>=12),SUM(F60:F71),SUM($F$22:F71)))))))) -> 
C72: =IF(B72=0,0,'INPUT LENING'!E77) ->  | D72: =IF(B72=0,0,IF($E$5='INPUT LENING'!$N$5,IF(A72>=$E$13,E71,$E$14),IF(A72>=$E$13,E71,ROUND($E$14-E71*$E$16/$E$7,2)))) ->  | H72: =IF(OR($E$5='INPUT LENING'!$N$5,$E$8=$E$7)," ",IF(D72=0," ",D72+IF(AND($E$8/$E$7=2,C72>=2),SUM(F71:F72),IF(AND($E$8/$E$7=3,C72>=3),SUM(F70:F72),IF(AND($E$8/$E$7=4,C72>=4),SUM(F69:F72),IF(AND($E$8/$E$7=6,C72>=6),SUM(F67:F72),IF(AND($E$8/$E$7=12,C72>=12),SUM(F61:F72),SUM($F$22:F72)))))))) -> 
C73: =IF(B73=0,0,'INPUT LENING'!E78) ->  | D73: =IF(B73=0,0,IF($E$5='INPUT LENING'!$N$5,IF(A73>=$E$13,E72,$E$14),IF(A73>=$E$13,E72,ROUND($E$14-E72*$E$16/$E$7,2)))) ->  | H73: =IF(OR($E$5='INPUT LENING'!$N$5,$E$8=$E$7)," ",IF(D73=0," ",D73+IF(AND($E$8/$E$7=2,C73>=2),SUM(F72:F73),IF(AND($E$8/$E$7=3,C73>=3),SUM(F71:F73),IF(AND($E$8/$E$7=4,C73>=4),SUM(F70:F73),IF(AND($E$8/$E$7=6,C73>=6),SUM(F68:F73),IF(AND($E$8/$E$7=12,C73>=12),SUM(F62:F73),SUM($F$22:F73)))))))) -> 
C74: =IF(B74=0,0,'INPUT LENING'!E79) ->  | D74: =IF(B74=0,0,IF($E$5='INPUT LENING'!$N$5,IF(A74>=$E$13,E73,$E$14),IF(A74>=$E$13,E73,ROUND($E$14-E73*$E$16/$E$7,2)))) ->  | H74: =IF(OR($E$5='INPUT LENING'!$N$5,$E$8=$E$7)," ",IF(D74=0," ",D74+IF(AND($E$8/$E$7=2,C74>=2),SUM(F73:F74),IF(AND($E$8/$E$7=3,C74>=3),SUM(F72:F74),IF(AND($E$8/$E$7=4,C74>=4),SUM(F71:F74),IF(AND($E$8/$E$7=6,C74>=6),SUM(F69:F74),IF(AND($E$8/$E$7=12,C74>=12),SUM(F63:F74),SUM($F$22:F74)))))))) -> 
C75: =IF(B75=0,0,'INPUT LENING'!E80) ->  | D75: =IF(B75=0,0,IF($E$5='INPUT LENING'!$N$5,IF(A75>=$E$13,E74,$E$14),IF(A75>=$E$13,E74,ROUND($E$14-E74*$E$16/$E$7,2)))) ->  | H75: =IF(OR($E$5='INPUT LENING'!$N$5,$E$8=$E$7)," ",IF(D75=0," ",D75+IF(AND($E$8/$E$7=2,C75>=2),SUM(F74:F75),IF(AND($E$8/$E$7=3,C75>=3),SUM(F73:F75),IF(AND($E$8/$E$7=4,C75>=4),SUM(F72:F75),IF(AND($E$8/$E$7=6,C75>=6),SUM(F70:F75),IF(AND($E$8/$E$7=12,C75>=12),SUM(F64:F75),SUM($F$22:F75)))))))) -> 
C76: =IF(B76=0,0,'INPUT LENING'!E81) ->  | D76: =IF(B76=0,0,IF($E$5='INPUT LENING'!$N$5,IF(A76>=$E$13,E75,$E$14),IF(A76>=$E$13,E75,ROUND($E$14-E75*$E$16/$E$7,2)))) ->  | H76: =IF(OR($E$5='INPUT LENING'!$N$5,$E$8=$E$7)," ",IF(D76=0," ",D76+IF(AND($E$8/$E$7=2,C76>=2),SUM(F75:F76),IF(AND($E$8/$E$7=3,C76>=3),SUM(F74:F76),IF(AND($E$8/$E$7=4,C76>=4),SUM(F73:F76),IF(AND($E$8/$E$7=6,C76>=6),SUM(F71:F76),IF(AND($E$8/$E$7=12,C76>=12),SUM(F65:F76),SUM($F$22:F76)))))))) -> 
C77: =IF(B77=0,0,'INPUT LENING'!E82) ->  | D77: =IF(B77=0,0,IF($E$5='INPUT LENING'!$N$5,IF(A77>=$E$13,E76,$E$14),IF(A77>=$E$13,E76,ROUND($E$14-E76*$E$16/$E$7,2)))) ->  | H77: =IF(OR($E$5='INPUT LENING'!$N$5,$E$8=$E$7)," ",IF(D77=0," ",D77+IF(AND($E$8/$E$7=2,C77>=2),SUM(F76:F77),IF(AND($E$8/$E$7=3,C77>=3),SUM(F75:F77),IF(AND($E$8/$E$7=4,C77>=4),SUM(F74:F77),IF(AND($E$8/$E$7=6,C77>=6),SUM(F72:F77),IF(AND($E$8/$E$7=12,C77>=12),SUM(F66:F77),SUM($F$22:F77)))))))) -> 
C78: =IF(B78=0,0,'INPUT LENING'!E83) ->  | D78: =IF(B78=0,0,IF($E$5='INPUT LENING'!$N$5,IF(A78>=$E$13,E77,$E$14),IF(A78>=$E$13,E77,ROUND($E$14-E77*$E$16/$E$7,2)))) ->  | H78: =IF(OR($E$5='INPUT LENING'!$N$5,$E$8=$E$7)," ",IF(D78=0," ",D78+IF(AND($E$8/$E$7=2,C78>=2),SUM(F77:F78),IF(AND($E$8/$E$7=3,C78>=3),SUM(F76:F78),IF(AND($E$8/$E$7=4,C78>=4),SUM(F75:F78),IF(AND($E$8/$E$7=6,C78>=6),SUM(F73:F78),IF(AND($E$8/$E$7=12,C78>=12),SUM(F67:F78),SUM($F$22:F78)))))))) -> 
C79: =IF(B79=0,0,'INPUT LENING'!E84) ->  | D79: =IF(B79=0,0,IF($E$5='INPUT LENING'!$N$5,IF(A79>=$E$13,E78,$E$14),IF(A79>=$E$13,E78,ROUND($E$14-E78*$E$16/$E$7,2)))) ->  | H79: =IF(OR($E$5='INPUT LENING'!$N$5,$E$8=$E$7)," ",IF(D79=0," ",D79+IF(AND($E$8/$E$7=2,C79>=2),SUM(F78:F79),IF(AND($E$8/$E$7=3,C79>=3),SUM(F77:F79),IF(AND($E$8/$E$7=4,C79>=4),SUM(F76:F79),IF(AND($E$8/$E$7=6,C79>=6),SUM(F74:F79),IF(AND($E$8/$E$7=12,C79>=12),SUM(F68:F79),SUM($F$22:F79)))))))) -> 
C80: =IF(B80=0,0,'INPUT LENING'!E85) ->  | D80: =IF(B80=0,0,IF($E$5='INPUT LENING'!$N$5,IF(A80>=$E$13,E79,$E$14),IF(A80>=$E$13,E79,ROUND($E$14-E79*$E$16/$E$7,2)))) ->  | H80: =IF(OR($E$5='INPUT LENING'!$N$5,$E$8=$E$7)," ",IF(D80=0," ",D80+IF(AND($E$8/$E$7=2,C80>=2),SUM(F79:F80),IF(AND($E$8/$E$7=3,C80>=3),SUM(F78:F80),IF(AND($E$8/$E$7=4,C80>=4),SUM(F77:F80),IF(AND($E$8/$E$7=6,C80>=6),SUM(F75:F80),IF(AND($E$8/$E$7=12,C80>=12),SUM(F69:F80),SUM($F$22:F80)))))))) -> 
C81: =IF(B81=0,0,'INPUT LENING'!E86) ->  | D81: =IF(B81=0,0,IF($E$5='INPUT LENING'!$N$5,IF(A81>=$E$13,E80,$E$14),IF(A81>=$E$13,E80,ROUND($E$14-E80*$E$16/$E$7,2)))) ->  | H81: =IF(OR($E$5='INPUT LENING'!$N$5,$E$8=$E$7)," ",IF(D81=0," ",D81+IF(AND($E$8/$E$7=2,C81>=2),SUM(F80:F81),IF(AND($E$8/$E$7=3,C81>=3),SUM(F79:F81),IF(AND($E$8/$E$7=4,C81>=4),SUM(F78:F81),IF(AND($E$8/$E$7=6,C81>=6),SUM(F76:F81),IF(AND($E$8/$E$7=12,C81>=12),SUM(F70:F81),SUM($F$22:F81)))))))) -> 
C82: =IF(B82=0,0,'INPUT LENING'!E87) ->  | D82: =IF(B82=0,0,IF($E$5='INPUT LENING'!$N$5,IF(A82>=$E$13,E81,$E$14),IF(A82>=$E$13,E81,ROUND($E$14-E81*$E$16/$E$7,2)))) ->  | H82: =IF(OR($E$5='INPUT LENING'!$N$5,$E$8=$E$7)," ",IF(D82=0," ",D82+IF(AND($E$8/$E$7=2,C82>=2),SUM(F81:F82),IF(AND($E$8/$E$7=3,C82>=3),SUM(F80:F82),IF(AND($E$8/$E$7=4,C82>=4),SUM(F79:F82),IF(AND($E$8/$E$7=6,C82>=6),SUM(F77:F82),IF(AND($E$8/$E$7=12,C82>=12),SUM(F71:F82),SUM($F$22:F82)))))))) -> 
C83: =IF(B83=0,0,'INPUT LENING'!E88) ->  | D83: =IF(B83=0,0,IF($E$5='INPUT LENING'!$N$5,IF(A83>=$E$13,E82,$E$14),IF(A83>=$E$13,E82,ROUND($E$14-E82*$E$16/$E$7,2)))) ->  | H83: =IF(OR($E$5='INPUT LENING'!$N$5,$E$8=$E$7)," ",IF(D83=0," ",D83+IF(AND($E$8/$E$7=2,C83>=2),SUM(F82:F83),IF(AND($E$8/$E$7=3,C83>=3),SUM(F81:F83),IF(AND($E$8/$E$7=4,C83>=4),SUM(F80:F83),IF(AND($E$8/$E$7=6,C83>=6),SUM(F78:F83),IF(AND($E$8/$E$7=12,C83>=12),SUM(F72:F83),SUM($F$22:F83)))))))) -> 
C84: =IF(B84=0,0,'INPUT LENING'!E89) ->  | D84: =IF(B84=0,0,IF($E$5='INPUT LENING'!$N$5,IF(A84>=$E$13,E83,$E$14),IF(A84>=$E$13,E83,ROUND($E$14-E83*$E$16/$E$7,2)))) ->  | H84: =IF(OR($E$5='INPUT LENING'!$N$5,$E$8=$E$7)," ",IF(D84=0," ",D84+IF(AND($E$8/$E$7=2,C84>=2),SUM(F83:F84),IF(AND($E$8/$E$7=3,C84>=3),SUM(F82:F84),IF(AND($E$8/$E$7=4,C84>=4),SUM(F81:F84),IF(AND($E$8/$E$7=6,C84>=6),SUM(F79:F84),IF(AND($E$8/$E$7=12,C84>=12),SUM(F73:F84),SUM($F$22:F84)))))))) -> 
C85: =IF(B85=0,0,'INPUT LENING'!E90) ->  | D85: =IF(B85=0,0,IF($E$5='INPUT LENING'!$N$5,IF(A85>=$E$13,E84,$E$14),IF(A85>=$E$13,E84,ROUND($E$14-E84*$E$16/$E$7,2)))) ->  | H85: =IF(OR($E$5='INPUT LENING'!$N$5,$E$8=$E$7)," ",IF(D85=0," ",D85+IF(AND($E$8/$E$7=2,C85>=2),SUM(F84:F85),IF(AND($E$8/$E$7=3,C85>=3),SUM(F83:F85),IF(AND($E$8/$E$7=4,C85>=4),SUM(F82:F85),IF(AND($E$8/$E$7=6,C85>=6),SUM(F80:F85),IF(AND($E$8/$E$7=12,C85>=12),SUM(F74:F85),SUM($F$22:F85)))))))) -> 
C86: =IF(B86=0,0,'INPUT LENING'!E91) ->  | D86: =IF(B86=0,0,IF($E$5='INPUT LENING'!$N$5,IF(A86>=$E$13,E85,$E$14),IF(A86>=$E$13,E85,ROUND($E$14-E85*$E$16/$E$7,2)))) ->  | H86: =IF(OR($E$5='INPUT LENING'!$N$5,$E$8=$E$7)," ",IF(D86=0," ",D86+IF(AND($E$8/$E$7=2,C86>=2),SUM(F85:F86),IF(AND($E$8/$E$7=3,C86>=3),SUM(F84:F86),IF(AND($E$8/$E$7=4,C86>=4),SUM(F83:F86),IF(AND($E$8/$E$7=6,C86>=6),SUM(F81:F86),IF(AND($E$8/$E$7=12,C86>=12),SUM(F75:F86),SUM($F$22:F86)))))))) -> 
C87: =IF(B87=0,0,'INPUT LENING'!E92) ->  | D87: =IF(B87=0,0,IF($E$5='INPUT LENING'!$N$5,IF(A87>=$E$13,E86,$E$14),IF(A87>=$E$13,E86,ROUND($E$14-E86*$E$16/$E$7,2)))) ->  | E87: =E86-D87 ->  | F87: =ROUND(E86*$E$16*B87/360,2) ->  | G87: =D87+F87 ->  | H87: =IF(OR($E$5='INPUT LENING'!$N$5,$E$8=$E$7)," ",IF(D87=0," ",D87+IF(AND($E$8/$E$7=2,C87>=2),SUM(F86:F87),IF(AND($E$8/$E$7=3,C87>=3),SUM(F85:F87),IF(AND($E$8/$E$7=4,C87>=4),SUM(F84:F87),IF(AND($E$8/$E$7=6,C87>=6),SUM(F82:F87),IF(AND($E$8/$E$7=12,C87>=12),SUM(F76:F87),SUM($F$22:F87)))))))) -> 
A88: =IF(A87="-","-",IF(endmonth(A87,12/$E$7)>$E$13,"-",endmonth(A87,12/$E$7))) ->  | C88: =IF(B88=0,0,'INPUT LENING'!E93) ->  | D88: =IF(B88=0,0,IF($E$5='INPUT LENING'!$N$5,IF(A88>=$E$13,E87,$E$14),IF(A88>=$E$13,E87,ROUND($E$14-E87*$E$16/$E$7,2)))) ->  | H88: =IF(OR($E$5='INPUT LENING'!$N$5,$E$8=$E$7)," ",IF(D88=0," ",D88+IF(AND($E$8/$E$7=2,C88>=2),SUM(F87:F88),IF(AND($E$8/$E$7=3,C88>=3),SUM(F86:F88),IF(AND($E$8/$E$7=4,C88>=4),SUM(F85:F88),IF(AND($E$8/$E$7=6,C88>=6),SUM(F83:F88),IF(AND($E$8/$E$7=12,C88>=12),SUM(F77:F88),SUM($F$22:F88)))))))) -> 
C89: =IF(B89=0,0,'INPUT LENING'!E94) ->  | D89: =IF(B89=0,0,IF($E$5='INPUT LENING'!$N$5,IF(A89>=$E$13,E88,$E$14),IF(A89>=$E$13,E88,ROUND($E$14-E88*$E$16/$E$7,2)))) ->  | H89: =IF(OR($E$5='INPUT LENING'!$N$5,$E$8=$E$7)," ",IF(D89=0," ",D89+IF(AND($E$8/$E$7=2,C89>=2),SUM(F88:F89),IF(AND($E$8/$E$7=3,C89>=3),SUM(F87:F89),IF(AND($E$8/$E$7=4,C89>=4),SUM(F86:F89),IF(AND($E$8/$E$7=6,C89>=6),SUM(F84:F89),IF(AND($E$8/$E$7=12,C89>=12),SUM(F78:F89),SUM($F$22:F89)))))))) -> 
B90: =IF(A90="-",0,360/$E$7) ->  | C90: =IF(B90=0,0,'INPUT LENING'!E95) ->  | D90: =IF(B90=0,0,IF($E$5='INPUT LENING'!$N$5,IF(A90>=$E$13,E89,$E$14),IF(A90>=$E$13,E89,ROUND($E$14-E89*$E$16/$E$7,2)))) ->  | H90: =IF(OR($E$5='INPUT LENING'!$N$5,$E$8=$E$7)," ",IF(D90=0," ",D90+IF(AND($E$8/$E$7=2,C90>=2),SUM(F89:F90),IF(AND($E$8/$E$7=3,C90>=3),SUM(F88:F90),IF(AND($E$8/$E$7=4,C90>=4),SUM(F87:F90),IF(AND($E$8/$E$7=6,C90>=6),SUM(F85:F90),IF(AND($E$8/$E$7=12,C90>=12),SUM(F79:F90),SUM($F$22:F90)))))))) -> 
C91: =IF(B91=0,0,'INPUT LENING'!E96) ->  | D91: =IF(B91=0,0,IF($E$5='INPUT LENING'!$N$5,IF(A91>=$E$13,E90,$E$14),IF(A91>=$E$13,E90,ROUND($E$14-E90*$E$16/$E$7,2)))) ->  | H91: =IF(OR($E$5='INPUT LENING'!$N$5,$E$8=$E$7)," ",IF(D91=0," ",D91+IF(AND($E$8/$E$7=2,C91>=2),SUM(F90:F91),IF(AND($E$8/$E$7=3,C91>=3),SUM(F89:F91),IF(AND($E$8/$E$7=4,C91>=4),SUM(F88:F91),IF(AND($E$8/$E$7=6,C91>=6),SUM(F86:F91),IF(AND($E$8/$E$7=12,C91>=12),SUM(F80:F91),SUM($F$22:F91)))))))) -> 
C92: =IF(B92=0,0,'INPUT LENING'!E97) ->  | D92: =IF(B92=0,0,IF($E$5='INPUT LENING'!$N$5,IF(A92>=$E$13,E91,$E$14),IF(A92>=$E$13,E91,ROUND($E$14-E91*$E$16/$E$7,2)))) ->  | H92: =IF(OR($E$5='INPUT LENING'!$N$5,$E$8=$E$7)," ",IF(D92=0," ",D92+IF(AND($E$8/$E$7=2,C92>=2),SUM(F91:F92),IF(AND($E$8/$E$7=3,C92>=3),SUM(F90:F92),IF(AND($E$8/$E$7=4,C92>=4),SUM(F89:F92),IF(AND($E$8/$E$7=6,C92>=6),SUM(F87:F92),IF(AND($E$8/$E$7=12,C92>=12),SUM(F81:F92),SUM($F$22:F92)))))))) -> 
C93: =IF(B93=0,0,'INPUT LENING'!E98) ->  | D93: =IF(B93=0,0,IF($E$5='INPUT LENING'!$N$5,IF(A93>=$E$13,E92,$E$14),IF(A93>=$E$13,E92,ROUND($E$14-E92*$E$16/$E$7,2)))) ->  | H93: =IF(OR($E$5='INPUT LENING'!$N$5,$E$8=$E$7)," ",IF(D93=0," ",D93+IF(AND($E$8/$E$7=2,C93>=2),SUM(F92:F93),IF(AND($E$8/$E$7=3,C93>=3),SUM(F91:F93),IF(AND($E$8/$E$7=4,C93>=4),SUM(F90:F93),IF(AND($E$8/$E$7=6,C93>=6),SUM(F88:F93),IF(AND($E$8/$E$7=12,C93>=12),SUM(F82:F93),SUM($F$22:F93)))))))) -> 
C94: =IF(B94=0,0,'INPUT LENING'!E99) ->  | D94: =IF(B94=0,0,IF($E$5='INPUT LENING'!$N$5,IF(A94>=$E$13,E93,$E$14),IF(A94>=$E$13,E93,ROUND($E$14-E93*$E$16/$E$7,2)))) ->  | H94: =IF(OR($E$5='INPUT LENING'!$N$5,$E$8=$E$7)," ",IF(D94=0," ",D94+IF(AND($E$8/$E$7=2,C94>=2),SUM(F93:F94),IF(AND($E$8/$E$7=3,C94>=3),SUM(F92:F94),IF(AND($E$8/$E$7=4,C94>=4),SUM(F91:F94),IF(AND($E$8/$E$7=6,C94>=6),SUM(F89:F94),IF(AND($E$8/$E$7=12,C94>=12),SUM(F83:F94),SUM($F$22:F94)))))))) -> 
C95: =IF(B95=0,0,'INPUT LENING'!E100) ->  | D95: =IF(B95=0,0,IF($E$5='INPUT LENING'!$N$5,IF(A95>=$E$13,E94,$E$14),IF(A95>=$E$13,E94,ROUND($E$14-E94*$E$16/$E$7,2)))) ->  | H95: =IF(OR($E$5='INPUT LENING'!$N$5,$E$8=$E$7)," ",IF(D95=0," ",D95+IF(AND($E$8/$E$7=2,C95>=2),SUM(F94:F95),IF(AND($E$8/$E$7=3,C95>=3),SUM(F93:F95),IF(AND($E$8/$E$7=4,C95>=4),SUM(F92:F95),IF(AND($E$8/$E$7=6,C95>=6),SUM(F90:F95),IF(AND($E$8/$E$7=12,C95>=12),SUM(F84:F95),SUM($F$22:F95)))))))) -> 
C96: =IF(B96=0,0,'INPUT LENING'!E101) ->  | D96: =IF(B96=0,0,IF($E$5='INPUT LENING'!$N$5,IF(A96>=$E$13,E95,$E$14),IF(A96>=$E$13,E95,ROUND($E$14-E95*$E$16/$E$7,2)))) ->  | H96: =IF(OR($E$5='INPUT LENING'!$N$5,$E$8=$E$7)," ",IF(D96=0," ",D96+IF(AND($E$8/$E$7=2,C96>=2),SUM(F95:F96),IF(AND($E$8/$E$7=3,C96>=3),SUM(F94:F96),IF(AND($E$8/$E$7=4,C96>=4),SUM(F93:F96),IF(AND($E$8/$E$7=6,C96>=6),SUM(F91:F96),IF(AND($E$8/$E$7=12,C96>=12),SUM(F85:F96),SUM($F$22:F96)))))))) -> 
C97: =IF(B97=0,0,'INPUT LENING'!E102) ->  | D97: =IF(B97=0,0,IF($E$5='INPUT LENING'!$N$5,IF(A97>=$E$13,E96,$E$14),IF(A97>=$E$13,E96,ROUND($E$14-E96*$E$16/$E$7,2)))) ->  | H97: =IF(OR($E$5='INPUT LENING'!$N$5,$E$8=$E$7)," ",IF(D97=0," ",D97+IF(AND($E$8/$E$7=2,C97>=2),SUM(F96:F97),IF(AND($E$8/$E$7=3,C97>=3),SUM(F95:F97),IF(AND($E$8/$E$7=4,C97>=4),SUM(F94:F97),IF(AND($E$8/$E$7=6,C97>=6),SUM(F92:F97),IF(AND($E$8/$E$7=12,C97>=12),SUM(F86:F97),SUM($F$22:F97)))))))) -> 
C98: =IF(B98=0,0,'INPUT LENING'!E103) ->  | D98: =IF(B98=0,0,IF($E$5='INPUT LENING'!$N$5,IF(A98>=$E$13,E97,$E$14),IF(A98>=$E$13,E97,ROUND($E$14-E97*$E$16/$E$7,2)))) ->  | H98: =IF(OR($E$5='INPUT LENING'!$N$5,$E$8=$E$7)," ",IF(D98=0," ",D98+IF(AND($E$8/$E$7=2,C98>=2),SUM(F97:F98),IF(AND($E$8/$E$7=3,C98>=3),SUM(F96:F98),IF(AND($E$8/$E$7=4,C98>=4),SUM(F95:F98),IF(AND($E$8/$E$7=6,C98>=6),SUM(F93:F98),IF(AND($E$8/$E$7=12,C98>=12),SUM(F87:F98),SUM($F$22:F98)))))))) -> 
C99: =IF(B99=0,0,'INPUT LENING'!E104) ->  | D99: =IF(B99=0,0,IF($E$5='INPUT LENING'!$N$5,IF(A99>=$E$13,E98,$E$14),IF(A99>=$E$13,E98,ROUND($E$14-E98*$E$16/$E$7,2)))) ->  | H99: =IF(OR($E$5='INPUT LENING'!$N$5,$E$8=$E$7)," ",IF(D99=0," ",D99+IF(AND($E$8/$E$7=2,C99>=2),SUM(F98:F99),IF(AND($E$8/$E$7=3,C99>=3),SUM(F97:F99),IF(AND($E$8/$E$7=4,C99>=4),SUM(F96:F99),IF(AND($E$8/$E$7=6,C99>=6),SUM(F94:F99),IF(AND($E$8/$E$7=12,C99>=12),SUM(F88:F99),SUM($F$22:F99)))))))) -> 
C100: =IF(B100=0,0,'INPUT LENING'!E105) ->  | D100: =IF(B100=0,0,IF($E$5='INPUT LENING'!$N$5,IF(A100>=$E$13,E99,$E$14),IF(A100>=$E$13,E99,ROUND($E$14-E99*$E$16/$E$7,2)))) ->  | H100: =IF(OR($E$5='INPUT LENING'!$N$5,$E$8=$E$7)," ",IF(D100=0," ",D100+IF(AND($E$8/$E$7=2,C100>=2),SUM(F99:F100),IF(AND($E$8/$E$7=3,C100>=3),SUM(F98:F100),IF(AND($E$8/$E$7=4,C100>=4),SUM(F97:F100),IF(AND($E$8/$E$7=6,C100>=6),SUM(F95:F100),IF(AND($E$8/$E$7=12,C100>=12),SUM(F89:F100),SUM($F$22:F100)))))))) -> 
C101: =IF(B101=0,0,'INPUT LENING'!E106) ->  | D101: =IF(B101=0,0,IF($E$5='INPUT LENING'!$N$5,IF(A101>=$E$13,E100,$E$14),IF(A101>=$E$13,E100,ROUND($E$14-E100*$E$16/$E$7,2)))) ->  | H101: =IF(OR($E$5='INPUT LENING'!$N$5,$E$8=$E$7)," ",IF(D101=0," ",D101+IF(AND($E$8/$E$7=2,C101>=2),SUM(F100:F101),IF(AND($E$8/$E$7=3,C101>=3),SUM(F99:F101),IF(AND($E$8/$E$7=4,C101>=4),SUM(F98:F101),IF(AND($E$8/$E$7=6,C101>=6),SUM(F96:F101),IF(AND($E$8/$E$7=12,C101>=12),SUM(F90:F101),SUM($F$22:F101)))))))) -> 
C102: =IF(B102=0,0,'INPUT LENING'!E107) ->  | D102: =IF(B102=0,0,IF($E$5='INPUT LENING'!$N$5,IF(A102>=$E$13,E101,$E$14),IF(A102>=$E$13,E101,ROUND($E$14-E101*$E$16/$E$7,2)))) ->  | H102: =IF(OR($E$5='INPUT LENING'!$N$5,$E$8=$E$7)," ",IF(D102=0," ",D102+IF(AND($E$8/$E$7=2,C102>=2),SUM(F101:F102),IF(AND($E$8/$E$7=3,C102>=3),SUM(F100:F102),IF(AND($E$8/$E$7=4,C102>=4),SUM(F99:F102),IF(AND($E$8/$E$7=6,C102>=6),SUM(F97:F102),IF(AND($E$8/$E$7=12,C102>=12),SUM(F91:F102),SUM($F$22:F102)))))))) -> 
C103: =IF(B103=0,0,'INPUT LENING'!E108) ->  | D103: =IF(B103=0,0,IF($E$5='INPUT LENING'!$N$5,IF(A103>=$E$13,E102,$E$14),IF(A103>=$E$13,E102,ROUND($E$14-E102*$E$16/$E$7,2)))) ->  | H103: =IF(OR($E$5='INPUT LENING'!$N$5,$E$8=$E$7)," ",IF(D103=0," ",D103+IF(AND($E$8/$E$7=2,C103>=2),SUM(F102:F103),IF(AND($E$8/$E$7=3,C103>=3),SUM(F101:F103),IF(AND($E$8/$E$7=4,C103>=4),SUM(F100:F103),IF(AND($E$8/$E$7=6,C103>=6),SUM(F98:F103),IF(AND($E$8/$E$7=12,C103>=12),SUM(F92:F103),SUM($F$22:F103)))))))) -> 
C104: =IF(B104=0,0,'INPUT LENING'!E109) ->  | D104: =IF(B104=0,0,IF($E$5='INPUT LENING'!$N$5,IF(A104>=$E$13,E103,$E$14),IF(A104>=$E$13,E103,ROUND($E$14-E103*$E$16/$E$7,2)))) ->  | H104: =IF(OR($E$5='INPUT LENING'!$N$5,$E$8=$E$7)," ",IF(D104=0," ",D104+IF(AND($E$8/$E$7=2,C104>=2),SUM(F103:F104),IF(AND($E$8/$E$7=3,C104>=3),SUM(F102:F104),IF(AND($E$8/$E$7=4,C104>=4),SUM(F101:F104),IF(AND($E$8/$E$7=6,C104>=6),SUM(F99:F104),IF(AND($E$8/$E$7=12,C104>=12),SUM(F93:F104),SUM($F$22:F104)))))))) -> 
C105: =IF(B105=0,0,'INPUT LENING'!E110) ->  | D105: =IF(B105=0,0,IF($E$5='INPUT LENING'!$N$5,IF(A105>=$E$13,E104,$E$14),IF(A105>=$E$13,E104,ROUND($E$14-E104*$E$16/$E$7,2)))) ->  | H105: =IF(OR($E$5='INPUT LENING'!$N$5,$E$8=$E$7)," ",IF(D105=0," ",D105+IF(AND($E$8/$E$7=2,C105>=2),SUM(F104:F105),IF(AND($E$8/$E$7=3,C105>=3),SUM(F103:F105),IF(AND($E$8/$E$7=4,C105>=4),SUM(F102:F105),IF(AND($E$8/$E$7=6,C105>=6),SUM(F100:F105),IF(AND($E$8/$E$7=12,C105>=12),SUM(F94:F105),SUM($F$22:F105)))))))) -> 
C106: =IF(B106=0,0,'INPUT LENING'!E111) ->  | D106: =IF(B106=0,0,IF($E$5='INPUT LENING'!$N$5,IF(A106>=$E$13,E105,$E$14),IF(A106>=$E$13,E105,ROUND($E$14-E105*$E$16/$E$7,2)))) ->  | H106: =IF(OR($E$5='INPUT LENING'!$N$5,$E$8=$E$7)," ",IF(D106=0," ",D106+IF(AND($E$8/$E$7=2,C106>=2),SUM(F105:F106),IF(AND($E$8/$E$7=3,C106>=3),SUM(F104:F106),IF(AND($E$8/$E$7=4,C106>=4),SUM(F103:F106),IF(AND($E$8/$E$7=6,C106>=6),SUM(F101:F106),IF(AND($E$8/$E$7=12,C106>=12),SUM(F95:F106),SUM($F$22:F106)))))))) -> 
C107: =IF(B107=0,0,'INPUT LENING'!E112) ->  | D107: =IF(B107=0,0,IF($E$5='INPUT LENING'!$N$5,IF(A107>=$E$13,E106,$E$14),IF(A107>=$E$13,E106,ROUND($E$14-E106*$E$16/$E$7,2)))) ->  | H107: =IF(OR($E$5='INPUT LENING'!$N$5,$E$8=$E$7)," ",IF(D107=0," ",D107+IF(AND($E$8/$E$7=2,C107>=2),SUM(F106:F107),IF(AND($E$8/$E$7=3,C107>=3),SUM(F105:F107),IF(AND($E$8/$E$7=4,C107>=4),SUM(F104:F107),IF(AND($E$8/$E$7=6,C107>=6),SUM(F102:F107),IF(AND($E$8/$E$7=12,C107>=12),SUM(F96:F107),SUM($F$22:F107)))))))) -> 
C108: =IF(B108=0,0,'INPUT LENING'!E113) ->  | D108: =IF(B108=0,0,IF($E$5='INPUT LENING'!$N$5,IF(A108>=$E$13,E107,$E$14),IF(A108>=$E$13,E107,ROUND($E$14-E107*$E$16/$E$7,2)))) ->  | H108: =IF(OR($E$5='INPUT LENING'!$N$5,$E$8=$E$7)," ",IF(D108=0," ",D108+IF(AND($E$8/$E$7=2,C108>=2),SUM(F107:F108),IF(AND($E$8/$E$7=3,C108>=3),SUM(F106:F108),IF(AND($E$8/$E$7=4,C108>=4),SUM(F105:F108),IF(AND($E$8/$E$7=6,C108>=6),SUM(F103:F108),IF(AND($E$8/$E$7=12,C108>=12),SUM(F97:F108),SUM($F$22:F108)))))))) -> 
C109: =IF(B109=0,0,'INPUT LENING'!E114) ->  | D109: =IF(B109=0,0,IF($E$5='INPUT LENING'!$N$5,IF(A109>=$E$13,E108,$E$14),IF(A109>=$E$13,E108,ROUND($E$14-E108*$E$16/$E$7,2)))) ->  | H109: =IF(OR($E$5='INPUT LENING'!$N$5,$E$8=$E$7)," ",IF(D109=0," ",D109+IF(AND($E$8/$E$7=2,C109>=2),SUM(F108:F109),IF(AND($E$8/$E$7=3,C109>=3),SUM(F107:F109),IF(AND($E$8/$E$7=4,C109>=4),SUM(F106:F109),IF(AND($E$8/$E$7=6,C109>=6),SUM(F104:F109),IF(AND($E$8/$E$7=12,C109>=12),SUM(F98:F109),SUM($F$22:F109)))))))) -> 
C110: =IF(B110=0,0,'INPUT LENING'!E115) ->  | D110: =IF(B110=0,0,IF($E$5='INPUT LENING'!$N$5,IF(A110>=$E$13,E109,$E$14),IF(A110>=$E$13,E109,ROUND($E$14-E109*$E$16/$E$7,2)))) ->  | H110: =IF(OR($E$5='INPUT LENING'!$N$5,$E$8=$E$7)," ",IF(D110=0," ",D110+IF(AND($E$8/$E$7=2,C110>=2),SUM(F109:F110),IF(AND($E$8/$E$7=3,C110>=3),SUM(F108:F110),IF(AND($E$8/$E$7=4,C110>=4),SUM(F107:F110),IF(AND($E$8/$E$7=6,C110>=6),SUM(F105:F110),IF(AND($E$8/$E$7=12,C110>=12),SUM(F99:F110),SUM($F$22:F110)))))))) -> 
C111: =IF(B111=0,0,'INPUT LENING'!E116) ->  | D111: =IF(B111=0,0,IF($E$5='INPUT LENING'!$N$5,IF(A111>=$E$13,E110,$E$14),IF(A111>=$E$13,E110,ROUND($E$14-E110*$E$16/$E$7,2)))) ->  | H111: =IF(OR($E$5='INPUT LENING'!$N$5,$E$8=$E$7)," ",IF(D111=0," ",D111+IF(AND($E$8/$E$7=2,C111>=2),SUM(F110:F111),IF(AND($E$8/$E$7=3,C111>=3),SUM(F109:F111),IF(AND($E$8/$E$7=4,C111>=4),SUM(F108:F111),IF(AND($E$8/$E$7=6,C111>=6),SUM(F106:F111),IF(AND($E$8/$E$7=12,C111>=12),SUM(F100:F111),SUM($F$22:F111)))))))) -> 
C112: =IF(B112=0,0,'INPUT LENING'!E117) ->  | D112: =IF(B112=0,0,IF($E$5='INPUT LENING'!$N$5,IF(A112>=$E$13,E111,$E$14),IF(A112>=$E$13,E111,ROUND($E$14-E111*$E$16/$E$7,2)))) ->  | H112: =IF(OR($E$5='INPUT LENING'!$N$5,$E$8=$E$7)," ",IF(D112=0," ",D112+IF(AND($E$8/$E$7=2,C112>=2),SUM(F111:F112),IF(AND($E$8/$E$7=3,C112>=3),SUM(F110:F112),IF(AND($E$8/$E$7=4,C112>=4),SUM(F109:F112),IF(AND($E$8/$E$7=6,C112>=6),SUM(F107:F112),IF(AND($E$8/$E$7=12,C112>=12),SUM(F101:F112),SUM($F$22:F112)))))))) -> 
C113: =IF(B113=0,0,'INPUT LENING'!E118) ->  | D113: =IF(B113=0,0,IF($E$5='INPUT LENING'!$N$5,IF(A113>=$E$13,E112,$E$14),IF(A113>=$E$13,E112,ROUND($E$14-E112*$E$16/$E$7,2)))) ->  | H113: =IF(OR($E$5='INPUT LENING'!$N$5,$E$8=$E$7)," ",IF(D113=0," ",D113+IF(AND($E$8/$E$7=2,C113>=2),SUM(F112:F113),IF(AND($E$8/$E$7=3,C113>=3),SUM(F111:F113),IF(AND($E$8/$E$7=4,C113>=4),SUM(F110:F113),IF(AND($E$8/$E$7=6,C113>=6),SUM(F108:F113),IF(AND($E$8/$E$7=12,C113>=12),SUM(F102:F113),SUM($F$22:F113)))))))) -> 
C114: =IF(B114=0,0,'INPUT LENING'!E119) ->  | D114: =IF(B114=0,0,IF($E$5='INPUT LENING'!$N$5,IF(A114>=$E$13,E113,$E$14),IF(A114>=$E$13,E113,ROUND($E$14-E113*$E$16/$E$7,2)))) ->  | H114: =IF(OR($E$5='INPUT LENING'!$N$5,$E$8=$E$7)," ",IF(D114=0," ",D114+IF(AND($E$8/$E$7=2,C114>=2),SUM(F113:F114),IF(AND($E$8/$E$7=3,C114>=3),SUM(F112:F114),IF(AND($E$8/$E$7=4,C114>=4),SUM(F111:F114),IF(AND($E$8/$E$7=6,C114>=6),SUM(F109:F114),IF(AND($E$8/$E$7=12,C114>=12),SUM(F103:F114),SUM($F$22:F114)))))))) -> 
C115: =IF(B115=0,0,'INPUT LENING'!E120) ->  | D115: =IF(B115=0,0,IF($E$5='INPUT LENING'!$N$5,IF(A115>=$E$13,E114,$E$14),IF(A115>=$E$13,E114,ROUND($E$14-E114*$E$16/$E$7,2)))) ->  | H115: =IF(OR($E$5='INPUT LENING'!$N$5,$E$8=$E$7)," ",IF(D115=0," ",D115+IF(AND($E$8/$E$7=2,C115>=2),SUM(F114:F115),IF(AND($E$8/$E$7=3,C115>=3),SUM(F113:F115),IF(AND($E$8/$E$7=4,C115>=4),SUM(F112:F115),IF(AND($E$8/$E$7=6,C115>=6),SUM(F110:F115),IF(AND($E$8/$E$7=12,C115>=12),SUM(F104:F115),SUM($F$22:F115)))))))) -> 
C116: =IF(B116=0,0,'INPUT LENING'!E121) ->  | D116: =IF(B116=0,0,IF($E$5='INPUT LENING'!$N$5,IF(A116>=$E$13,E115,$E$14),IF(A116>=$E$13,E115,ROUND($E$14-E115*$E$16/$E$7,2)))) ->  | H116: =IF(OR($E$5='INPUT LENING'!$N$5,$E$8=$E$7)," ",IF(D116=0," ",D116+IF(AND($E$8/$E$7=2,C116>=2),SUM(F115:F116),IF(AND($E$8/$E$7=3,C116>=3),SUM(F114:F116),IF(AND($E$8/$E$7=4,C116>=4),SUM(F113:F116),IF(AND($E$8/$E$7=6,C116>=6),SUM(F111:F116),IF(AND($E$8/$E$7=12,C116>=12),SUM(F105:F116),SUM($F$22:F116)))))))) -> 
C117: =IF(B117=0,0,'INPUT LENING'!E122) ->  | D117: =IF(B117=0,0,IF($E$5='INPUT LENING'!$N$5,IF(A117>=$E$13,E116,$E$14),IF(A117>=$E$13,E116,ROUND($E$14-E116*$E$16/$E$7,2)))) ->  | H117: =IF(OR($E$5='INPUT LENING'!$N$5,$E$8=$E$7)," ",IF(D117=0," ",D117+IF(AND($E$8/$E$7=2,C117>=2),SUM(F116:F117),IF(AND($E$8/$E$7=3,C117>=3),SUM(F115:F117),IF(AND($E$8/$E$7=4,C117>=4),SUM(F114:F117),IF(AND($E$8/$E$7=6,C117>=6),SUM(F112:F117),IF(AND($E$8/$E$7=12,C117>=12),SUM(F106:F117),SUM($F$22:F117)))))))) -> 
C118: =IF(B118=0,0,'INPUT LENING'!E123) ->  | D118: =IF(B118=0,0,IF($E$5='INPUT LENING'!$N$5,IF(A118>=$E$13,E117,$E$14),IF(A118>=$E$13,E117,ROUND($E$14-E117*$E$16/$E$7,2)))) ->  | H118: =IF(OR($E$5='INPUT LENING'!$N$5,$E$8=$E$7)," ",IF(D118=0," ",D118+IF(AND($E$8/$E$7=2,C118>=2),SUM(F117:F118),IF(AND($E$8/$E$7=3,C118>=3),SUM(F116:F118),IF(AND($E$8/$E$7=4,C118>=4),SUM(F115:F118),IF(AND($E$8/$E$7=6,C118>=6),SUM(F113:F118),IF(AND($E$8/$E$7=12,C118>=12),SUM(F107:F118),SUM($F$22:F118)))))))) -> 
C119: =IF(B119=0,0,'INPUT LENING'!E124) ->  | D119: =IF(B119=0,0,IF($E$5='INPUT LENING'!$N$5,IF(A119>=$E$13,E118,$E$14),IF(A119>=$E$13,E118,ROUND($E$14-E118*$E$16/$E$7,2)))) ->  | H119: =IF(OR($E$5='INPUT LENING'!$N$5,$E$8=$E$7)," ",IF(D119=0," ",D119+IF(AND($E$8/$E$7=2,C119>=2),SUM(F118:F119),IF(AND($E$8/$E$7=3,C119>=3),SUM(F117:F119),IF(AND($E$8/$E$7=4,C119>=4),SUM(F116:F119),IF(AND($E$8/$E$7=6,C119>=6),SUM(F114:F119),IF(AND($E$8/$E$7=12,C119>=12),SUM(F108:F119),SUM($F$22:F119)))))))) -> 
C120: =IF(B120=0,0,'INPUT LENING'!E125) ->  | D120: =IF(B120=0,0,IF($E$5='INPUT LENING'!$N$5,IF(A120>=$E$13,E119,$E$14),IF(A120>=$E$13,E119,ROUND($E$14-E119*$E$16/$E$7,2)))) ->  | H120: =IF(OR($E$5='INPUT LENING'!$N$5,$E$8=$E$7)," ",IF(D120=0," ",D120+IF(AND($E$8/$E$7=2,C120>=2),SUM(F119:F120),IF(AND($E$8/$E$7=3,C120>=3),SUM(F118:F120),IF(AND($E$8/$E$7=4,C120>=4),SUM(F117:F120),IF(AND($E$8/$E$7=6,C120>=6),SUM(F115:F120),IF(AND($E$8/$E$7=12,C120>=12),SUM(F109:F120),SUM($F$22:F120)))))))) -> 
C121: =IF(B121=0,0,'INPUT LENING'!E126) ->  | D121: =IF(B121=0,0,IF($E$5='INPUT LENING'!$N$5,IF(A121>=$E$13,E120,$E$14),IF(A121>=$E$13,E120,ROUND($E$14-E120*$E$16/$E$7,2)))) ->  | H121: =IF(OR($E$5='INPUT LENING'!$N$5,$E$8=$E$7)," ",IF(D121=0," ",D121+IF(AND($E$8/$E$7=2,C121>=2),SUM(F120:F121),IF(AND($E$8/$E$7=3,C121>=3),SUM(F119:F121),IF(AND($E$8/$E$7=4,C121>=4),SUM(F118:F121),IF(AND($E$8/$E$7=6,C121>=6),SUM(F116:F121),IF(AND($E$8/$E$7=12,C121>=12),SUM(F110:F121),SUM($F$22:F121)))))))) -> 
C122: =IF(B122=0,0,'INPUT LENING'!E127) ->  | D122: =IF(B122=0,0,IF($E$5='INPUT LENING'!$N$5,IF(A122>=$E$13,E121,$E$14),IF(A122>=$E$13,E121,ROUND($E$14-E121*$E$16/$E$7,2)))) ->  | H122: =IF(OR($E$5='INPUT LENING'!$N$5,$E$8=$E$7)," ",IF(D122=0," ",D122+IF(AND($E$8/$E$7=2,C122>=2),SUM(F121:F122),IF(AND($E$8/$E$7=3,C122>=3),SUM(F120:F122),IF(AND($E$8/$E$7=4,C122>=4),SUM(F119:F122),IF(AND($E$8/$E$7=6,C122>=6),SUM(F117:F122),IF(AND($E$8/$E$7=12,C122>=12),SUM(F111:F122),SUM($F$22:F122)))))))) -> 
C123: =IF(B123=0,0,'INPUT LENING'!E128) ->  | D123: =IF(B123=0,0,IF($E$5='INPUT LENING'!$N$5,IF(A123>=$E$13,E122,$E$14),IF(A123>=$E$13,E122,ROUND($E$14-E122*$E$16/$E$7,2)))) ->  | H123: =IF(OR($E$5='INPUT LENING'!$N$5,$E$8=$E$7)," ",IF(D123=0," ",D123+IF(AND($E$8/$E$7=2,C123>=2),SUM(F122:F123),IF(AND($E$8/$E$7=3,C123>=3),SUM(F121:F123),IF(AND($E$8/$E$7=4,C123>=4),SUM(F120:F123),IF(AND($E$8/$E$7=6,C123>=6),SUM(F118:F123),IF(AND($E$8/$E$7=12,C123>=12),SUM(F112:F123),SUM($F$22:F123)))))))) -> 
C124: =IF(B124=0,0,'INPUT LENING'!E129) ->  | D124: =IF(B124=0,0,IF($E$5='INPUT LENING'!$N$5,IF(A124>=$E$13,E123,$E$14),IF(A124>=$E$13,E123,ROUND($E$14-E123*$E$16/$E$7,2)))) ->  | H124: =IF(OR($E$5='INPUT LENING'!$N$5,$E$8=$E$7)," ",IF(D124=0," ",D124+IF(AND($E$8/$E$7=2,C124>=2),SUM(F123:F124),IF(AND($E$8/$E$7=3,C124>=3),SUM(F122:F124),IF(AND($E$8/$E$7=4,C124>=4),SUM(F121:F124),IF(AND($E$8/$E$7=6,C124>=6),SUM(F119:F124),IF(AND($E$8/$E$7=12,C124>=12),SUM(F113:F124),SUM($F$22:F124)))))))) -> 
C125: =IF(B125=0,0,'INPUT LENING'!E130) ->  | D125: =IF(B125=0,0,IF($E$5='INPUT LENING'!$N$5,IF(A125>=$E$13,E124,$E$14),IF(A125>=$E$13,E124,ROUND($E$14-E124*$E$16/$E$7,2)))) ->  | H125: =IF(OR($E$5='INPUT LENING'!$N$5,$E$8=$E$7)," ",IF(D125=0," ",D125+IF(AND($E$8/$E$7=2,C125>=2),SUM(F124:F125),IF(AND($E$8/$E$7=3,C125>=3),SUM(F123:F125),IF(AND($E$8/$E$7=4,C125>=4),SUM(F122:F125),IF(AND($E$8/$E$7=6,C125>=6),SUM(F120:F125),IF(AND($E$8/$E$7=12,C125>=12),SUM(F114:F125),SUM($F$22:F125)))))))) -> 
C126: =IF(B126=0,0,'INPUT LENING'!E131) ->  | D126: =IF(B126=0,0,IF($E$5='INPUT LENING'!$N$5,IF(A126>=$E$13,E125,$E$14),IF(A126>=$E$13,E125,ROUND($E$14-E125*$E$16/$E$7,2)))) ->  | H126: =IF(OR($E$5='INPUT LENING'!$N$5,$E$8=$E$7)," ",IF(D126=0," ",D126+IF(AND($E$8/$E$7=2,C126>=2),SUM(F125:F126),IF(AND($E$8/$E$7=3,C126>=3),SUM(F124:F126),IF(AND($E$8/$E$7=4,C126>=4),SUM(F123:F126),IF(AND($E$8/$E$7=6,C126>=6),SUM(F121:F126),IF(AND($E$8/$E$7=12,C126>=12),SUM(F115:F126),SUM($F$22:F126)))))))) -> 
C127: =IF(B127=0,0,'INPUT LENING'!E132) ->  | D127: =IF(B127=0,0,IF($E$5='INPUT LENING'!$N$5,IF(A127>=$E$13,E126,$E$14),IF(A127>=$E$13,E126,ROUND($E$14-E126*$E$16/$E$7,2)))) ->  | H127: =IF(OR($E$5='INPUT LENING'!$N$5,$E$8=$E$7)," ",IF(D127=0," ",D127+IF(AND($E$8/$E$7=2,C127>=2),SUM(F126:F127),IF(AND($E$8/$E$7=3,C127>=3),SUM(F125:F127),IF(AND($E$8/$E$7=4,C127>=4),SUM(F124:F127),IF(AND($E$8/$E$7=6,C127>=6),SUM(F122:F127),IF(AND($E$8/$E$7=12,C127>=12),SUM(F116:F127),SUM($F$22:F127)))))))) -> 
C128: =IF(B128=0,0,'INPUT LENING'!E133) ->  | D128: =IF(B128=0,0,IF($E$5='INPUT LENING'!$N$5,IF(A128>=$E$13,E127,$E$14),IF(A128>=$E$13,E127,ROUND($E$14-E127*$E$16/$E$7,2)))) ->  | H128: =IF(OR($E$5='INPUT LENING'!$N$5,$E$8=$E$7)," ",IF(D128=0," ",D128+IF(AND($E$8/$E$7=2,C128>=2),SUM(F127:F128),IF(AND($E$8/$E$7=3,C128>=3),SUM(F126:F128),IF(AND($E$8/$E$7=4,C128>=4),SUM(F125:F128),IF(AND($E$8/$E$7=6,C128>=6),SUM(F123:F128),IF(AND($E$8/$E$7=12,C128>=12),SUM(F117:F128),SUM($F$22:F128)))))))) -> 
C129: =IF(B129=0,0,'INPUT LENING'!E134) ->  | D129: =IF(B129=0,0,IF($E$5='INPUT LENING'!$N$5,IF(A129>=$E$13,E128,$E$14),IF(A129>=$E$13,E128,ROUND($E$14-E128*$E$16/$E$7,2)))) ->  | H129: =IF(OR($E$5='INPUT LENING'!$N$5,$E$8=$E$7)," ",IF(D129=0," ",D129+IF(AND($E$8/$E$7=2,C129>=2),SUM(F128:F129),IF(AND($E$8/$E$7=3,C129>=3),SUM(F127:F129),IF(AND($E$8/$E$7=4,C129>=4),SUM(F126:F129),IF(AND($E$8/$E$7=6,C129>=6),SUM(F124:F129),IF(AND($E$8/$E$7=12,C129>=12),SUM(F118:F129),SUM($F$22:F129)))))))) -> 
C130: =IF(B130=0,0,'INPUT LENING'!E135) ->  | D130: =IF(B130=0,0,IF($E$5='INPUT LENING'!$N$5,IF(A130>=$E$13,E129,$E$14),IF(A130>=$E$13,E129,ROUND($E$14-E129*$E$16/$E$7,2)))) ->  | H130: =IF(OR($E$5='INPUT LENING'!$N$5,$E$8=$E$7)," ",IF(D130=0," ",D130+IF(AND($E$8/$E$7=2,C130>=2),SUM(F129:F130),IF(AND($E$8/$E$7=3,C130>=3),SUM(F128:F130),IF(AND($E$8/$E$7=4,C130>=4),SUM(F127:F130),IF(AND($E$8/$E$7=6,C130>=6),SUM(F125:F130),IF(AND($E$8/$E$7=12,C130>=12),SUM(F119:F130),SUM($F$22:F130)))))))) -> 
C131: =IF(B131=0,0,'INPUT LENING'!E136) ->  | D131: =IF(B131=0,0,IF($E$5='INPUT LENING'!$N$5,IF(A131>=$E$13,E130,$E$14),IF(A131>=$E$13,E130,ROUND($E$14-E130*$E$16/$E$7,2)))) ->  | H131: =IF(OR($E$5='INPUT LENING'!$N$5,$E$8=$E$7)," ",IF(D131=0," ",D131+IF(AND($E$8/$E$7=2,C131>=2),SUM(F130:F131),IF(AND($E$8/$E$7=3,C131>=3),SUM(F129:F131),IF(AND($E$8/$E$7=4,C131>=4),SUM(F128:F131),IF(AND($E$8/$E$7=6,C131>=6),SUM(F126:F131),IF(AND($E$8/$E$7=12,C131>=12),SUM(F120:F131),SUM($F$22:F131)))))))) -> 
C132: =IF(B132=0,0,'INPUT LENING'!E137) ->  | D132: =IF(B132=0,0,IF($E$5='INPUT LENING'!$N$5,IF(A132>=$E$13,E131,$E$14),IF(A132>=$E$13,E131,ROUND($E$14-E131*$E$16/$E$7,2)))) ->  | H132: =IF(OR($E$5='INPUT LENING'!$N$5,$E$8=$E$7)," ",IF(D132=0," ",D132+IF(AND($E$8/$E$7=2,C132>=2),SUM(F131:F132),IF(AND($E$8/$E$7=3,C132>=3),SUM(F130:F132),IF(AND($E$8/$E$7=4,C132>=4),SUM(F129:F132),IF(AND($E$8/$E$7=6,C132>=6),SUM(F127:F132),IF(AND($E$8/$E$7=12,C132>=12),SUM(F121:F132),SUM($F$22:F132)))))))) -> 
C133: =IF(B133=0,0,'INPUT LENING'!E138) ->  | D133: =IF(B133=0,0,IF($E$5='INPUT LENING'!$N$5,IF(A133>=$E$13,E132,$E$14),IF(A133>=$E$13,E132,ROUND($E$14-E132*$E$16/$E$7,2)))) ->  | H133: =IF(OR($E$5='INPUT LENING'!$N$5,$E$8=$E$7)," ",IF(D133=0," ",D133+IF(AND($E$8/$E$7=2,C133>=2),SUM(F132:F133),IF(AND($E$8/$E$7=3,C133>=3),SUM(F131:F133),IF(AND($E$8/$E$7=4,C133>=4),SUM(F130:F133),IF(AND($E$8/$E$7=6,C133>=6),SUM(F128:F133),IF(AND($E$8/$E$7=12,C133>=12),SUM(F122:F133),SUM($F$22:F133)))))))) -> 
C134: =IF(B134=0,0,'INPUT LENING'!E139) ->  | D134: =IF(B134=0,0,IF($E$5='INPUT LENING'!$N$5,IF(A134>=$E$13,E133,$E$14),IF(A134>=$E$13,E133,ROUND($E$14-E133*$E$16/$E$7,2)))) ->  | H134: =IF(OR($E$5='INPUT LENING'!$N$5,$E$8=$E$7)," ",IF(D134=0," ",D134+IF(AND($E$8/$E$7=2,C134>=2),SUM(F133:F134),IF(AND($E$8/$E$7=3,C134>=3),SUM(F132:F134),IF(AND($E$8/$E$7=4,C134>=4),SUM(F131:F134),IF(AND($E$8/$E$7=6,C134>=6),SUM(F129:F134),IF(AND($E$8/$E$7=12,C134>=12),SUM(F123:F134),SUM($F$22:F134)))))))) -> 
C135: =IF(B135=0,0,'INPUT LENING'!E140) ->  | D135: =IF(B135=0,0,IF($E$5='INPUT LENING'!$N$5,IF(A135>=$E$13,E134,$E$14),IF(A135>=$E$13,E134,ROUND($E$14-E134*$E$16/$E$7,2)))) ->  | H135: =IF(OR($E$5='INPUT LENING'!$N$5,$E$8=$E$7)," ",IF(D135=0," ",D135+IF(AND($E$8/$E$7=2,C135>=2),SUM(F134:F135),IF(AND($E$8/$E$7=3,C135>=3),SUM(F133:F135),IF(AND($E$8/$E$7=4,C135>=4),SUM(F132:F135),IF(AND($E$8/$E$7=6,C135>=6),SUM(F130:F135),IF(AND($E$8/$E$7=12,C135>=12),SUM(F124:F135),SUM($F$22:F135)))))))) -> 
C136: =IF(B136=0,0,'INPUT LENING'!E141) ->  | D136: =IF(B136=0,0,IF($E$5='INPUT LENING'!$N$5,IF(A136>=$E$13,E135,$E$14),IF(A136>=$E$13,E135,ROUND($E$14-E135*$E$16/$E$7,2)))) ->  | H136: =IF(OR($E$5='INPUT LENING'!$N$5,$E$8=$E$7)," ",IF(D136=0," ",D136+IF(AND($E$8/$E$7=2,C136>=2),SUM(F135:F136),IF(AND($E$8/$E$7=3,C136>=3),SUM(F134:F136),IF(AND($E$8/$E$7=4,C136>=4),SUM(F133:F136),IF(AND($E$8/$E$7=6,C136>=6),SUM(F131:F136),IF(AND($E$8/$E$7=12,C136>=12),SUM(F125:F136),SUM($F$22:F136)))))))) -> 
C137: =IF(B137=0,0,'INPUT LENING'!E142) ->  | D137: =IF(B137=0,0,IF($E$5='INPUT LENING'!$N$5,IF(A137>=$E$13,E136,$E$14),IF(A137>=$E$13,E136,ROUND($E$14-E136*$E$16/$E$7,2)))) ->  | H137: =IF(OR($E$5='INPUT LENING'!$N$5,$E$8=$E$7)," ",IF(D137=0," ",D137+IF(AND($E$8/$E$7=2,C137>=2),SUM(F136:F137),IF(AND($E$8/$E$7=3,C137>=3),SUM(F135:F137),IF(AND($E$8/$E$7=4,C137>=4),SUM(F134:F137),IF(AND($E$8/$E$7=6,C137>=6),SUM(F132:F137),IF(AND($E$8/$E$7=12,C137>=12),SUM(F126:F137),SUM($F$22:F137)))))))) -> 
C138: =IF(B138=0,0,'INPUT LENING'!E143) ->  | D138: =IF(B138=0,0,IF($E$5='INPUT LENING'!$N$5,IF(A138>=$E$13,E137,$E$14),IF(A138>=$E$13,E137,ROUND($E$14-E137*$E$16/$E$7,2)))) ->  | H138: =IF(OR($E$5='INPUT LENING'!$N$5,$E$8=$E$7)," ",IF(D138=0," ",D138+IF(AND($E$8/$E$7=2,C138>=2),SUM(F137:F138),IF(AND($E$8/$E$7=3,C138>=3),SUM(F136:F138),IF(AND($E$8/$E$7=4,C138>=4),SUM(F135:F138),IF(AND($E$8/$E$7=6,C138>=6),SUM(F133:F138),IF(AND($E$8/$E$7=12,C138>=12),SUM(F127:F138),SUM($F$22:F138)))))))) -> 
C139: =IF(B139=0,0,'INPUT LENING'!E144) ->  | D139: =IF(B139=0,0,IF($E$5='INPUT LENING'!$N$5,IF(A139>=$E$13,E138,$E$14),IF(A139>=$E$13,E138,ROUND($E$14-E138*$E$16/$E$7,2)))) ->  | H139: =IF(OR($E$5='INPUT LENING'!$N$5,$E$8=$E$7)," ",IF(D139=0," ",D139+IF(AND($E$8/$E$7=2,C139>=2),SUM(F138:F139),IF(AND($E$8/$E$7=3,C139>=3),SUM(F137:F139),IF(AND($E$8/$E$7=4,C139>=4),SUM(F136:F139),IF(AND($E$8/$E$7=6,C139>=6),SUM(F134:F139),IF(AND($E$8/$E$7=12,C139>=12),SUM(F128:F139),SUM($F$22:F139)))))))) -> 
C140: =IF(B140=0,0,'INPUT LENING'!E145) ->  | D140: =IF(B140=0,0,IF($E$5='INPUT LENING'!$N$5,IF(A140>=$E$13,E139,$E$14),IF(A140>=$E$13,E139,ROUND($E$14-E139*$E$16/$E$7,2)))) ->  | H140: =IF(OR($E$5='INPUT LENING'!$N$5,$E$8=$E$7)," ",IF(D140=0," ",D140+IF(AND($E$8/$E$7=2,C140>=2),SUM(F139:F140),IF(AND($E$8/$E$7=3,C140>=3),SUM(F138:F140),IF(AND($E$8/$E$7=4,C140>=4),SUM(F137:F140),IF(AND($E$8/$E$7=6,C140>=6),SUM(F135:F140),IF(AND($E$8/$E$7=12,C140>=12),SUM(F129:F140),SUM($F$22:F140)))))))) -> 
C141: =IF(B141=0,0,'INPUT LENING'!E146) ->  | D141: =IF(B141=0,0,IF($E$5='INPUT LENING'!$N$5,IF(A141>=$E$13,E140,$E$14),IF(A141>=$E$13,E140,ROUND($E$14-E140*$E$16/$E$7,2)))) ->  | H141: =IF(OR($E$5='INPUT LENING'!$N$5,$E$8=$E$7)," ",IF(D141=0," ",D141+IF(AND($E$8/$E$7=2,C141>=2),SUM(F140:F141),IF(AND($E$8/$E$7=3,C141>=3),SUM(F139:F141),IF(AND($E$8/$E$7=4,C141>=4),SUM(F138:F141),IF(AND($E$8/$E$7=6,C141>=6),SUM(F136:F141),IF(AND($E$8/$E$7=12,C141>=12),SUM(F130:F141),SUM($F$22:F141)))))))) -> 
C142: =IF(B142=0,0,'INPUT LENING'!E147) ->  | D142: =IF(B142=0,0,IF($E$5='INPUT LENING'!$N$5,IF(A142>=$E$13,E141,$E$14),IF(A142>=$E$13,E141,ROUND($E$14-E141*$E$16/$E$7,2)))) ->  | H142: =IF(OR($E$5='INPUT LENING'!$N$5,$E$8=$E$7)," ",IF(D142=0," ",D142+IF(AND($E$8/$E$7=2,C142>=2),SUM(F141:F142),IF(AND($E$8/$E$7=3,C142>=3),SUM(F140:F142),IF(AND($E$8/$E$7=4,C142>=4),SUM(F139:F142),IF(AND($E$8/$E$7=6,C142>=6),SUM(F137:F142),IF(AND($E$8/$E$7=12,C142>=12),SUM(F131:F142),SUM($F$22:F142)))))))) -> 
C143: =IF(B143=0,0,'INPUT LENING'!E148) ->  | D143: =IF(B143=0,0,IF($E$5='INPUT LENING'!$N$5,IF(A143>=$E$13,E142,$E$14),IF(A143>=$E$13,E142,ROUND($E$14-E142*$E$16/$E$7,2)))) ->  | H143: =IF(OR($E$5='INPUT LENING'!$N$5,$E$8=$E$7)," ",IF(D143=0," ",D143+IF(AND($E$8/$E$7=2,C143>=2),SUM(F142:F143),IF(AND($E$8/$E$7=3,C143>=3),SUM(F141:F143),IF(AND($E$8/$E$7=4,C143>=4),SUM(F140:F143),IF(AND($E$8/$E$7=6,C143>=6),SUM(F138:F143),IF(AND($E$8/$E$7=12,C143>=12),SUM(F132:F143),SUM($F$22:F143)))))))) -> 
C144: =IF(B144=0,0,'INPUT LENING'!E149) ->  | D144: =IF(B144=0,0,IF($E$5='INPUT LENING'!$N$5,IF(A144>=$E$13,E143,$E$14),IF(A144>=$E$13,E143,ROUND($E$14-E143*$E$16/$E$7,2)))) ->  | H144: =IF(OR($E$5='INPUT LENING'!$N$5,$E$8=$E$7)," ",IF(D144=0," ",D144+IF(AND($E$8/$E$7=2,C144>=2),SUM(F143:F144),IF(AND($E$8/$E$7=3,C144>=3),SUM(F142:F144),IF(AND($E$8/$E$7=4,C144>=4),SUM(F141:F144),IF(AND($E$8/$E$7=6,C144>=6),SUM(F139:F144),IF(AND($E$8/$E$7=12,C144>=12),SUM(F133:F144),SUM($F$22:F144)))))))) -> 
C145: =IF(B145=0,0,'INPUT LENING'!E150) ->  | D145: =IF(B145=0,0,IF($E$5='INPUT LENING'!$N$5,IF(A145>=$E$13,E144,$E$14),IF(A145>=$E$13,E144,ROUND($E$14-E144*$E$16/$E$7,2)))) ->  | H145: =IF(OR($E$5='INPUT LENING'!$N$5,$E$8=$E$7)," ",IF(D145=0," ",D145+IF(AND($E$8/$E$7=2,C145>=2),SUM(F144:F145),IF(AND($E$8/$E$7=3,C145>=3),SUM(F143:F145),IF(AND($E$8/$E$7=4,C145>=4),SUM(F142:F145),IF(AND($E$8/$E$7=6,C145>=6),SUM(F140:F145),IF(AND($E$8/$E$7=12,C145>=12),SUM(F134:F145),SUM($F$22:F145)))))))) -> 
C146: =IF(B146=0,0,'INPUT LENING'!E151) ->  | D146: =IF(B146=0,0,IF($E$5='INPUT LENING'!$N$5,IF(A146>=$E$13,E145,$E$14),IF(A146>=$E$13,E145,ROUND($E$14-E145*$E$16/$E$7,2)))) ->  | H146: =IF(OR($E$5='INPUT LENING'!$N$5,$E$8=$E$7)," ",IF(D146=0," ",D146+IF(AND($E$8/$E$7=2,C146>=2),SUM(F145:F146),IF(AND($E$8/$E$7=3,C146>=3),SUM(F144:F146),IF(AND($E$8/$E$7=4,C146>=4),SUM(F143:F146),IF(AND($E$8/$E$7=6,C146>=6),SUM(F141:F146),IF(AND($E$8/$E$7=12,C146>=12),SUM(F135:F146),SUM($F$22:F146)))))))) -> 
C147: =IF(B147=0,0,'INPUT LENING'!E152) ->  | D147: =IF(B147=0,0,IF($E$5='INPUT LENING'!$N$5,IF(A147>=$E$13,E146,$E$14),IF(A147>=$E$13,E146,ROUND($E$14-E146*$E$16/$E$7,2)))) ->  | H147: =IF(OR($E$5='INPUT LENING'!$N$5,$E$8=$E$7)," ",IF(D147=0," ",D147+IF(AND($E$8/$E$7=2,C147>=2),SUM(F146:F147),IF(AND($E$8/$E$7=3,C147>=3),SUM(F145:F147),IF(AND($E$8/$E$7=4,C147>=4),SUM(F144:F147),IF(AND($E$8/$E$7=6,C147>=6),SUM(F142:F147),IF(AND($E$8/$E$7=12,C147>=12),SUM(F136:F147),SUM($F$22:F147)))))))) -> 
C148: =IF(B148=0,0,'INPUT LENING'!E153) ->  | D148: =IF(B148=0,0,IF($E$5='INPUT LENING'!$N$5,IF(A148>=$E$13,E147,$E$14),IF(A148>=$E$13,E147,ROUND($E$14-E147*$E$16/$E$7,2)))) ->  | H148: =IF(OR($E$5='INPUT LENING'!$N$5,$E$8=$E$7)," ",IF(D148=0," ",D148+IF(AND($E$8/$E$7=2,C148>=2),SUM(F147:F148),IF(AND($E$8/$E$7=3,C148>=3),SUM(F146:F148),IF(AND($E$8/$E$7=4,C148>=4),SUM(F145:F148),IF(AND($E$8/$E$7=6,C148>=6),SUM(F143:F148),IF(AND($E$8/$E$7=12,C148>=12),SUM(F137:F148),SUM($F$22:F148)))))))) -> 
C149: =IF(B149=0,0,'INPUT LENING'!E154) ->  | D149: =IF(B149=0,0,IF($E$5='INPUT LENING'!$N$5,IF(A149>=$E$13,E148,$E$14),IF(A149>=$E$13,E148,ROUND($E$14-E148*$E$16/$E$7,2)))) ->  | H149: =IF(OR($E$5='INPUT LENING'!$N$5,$E$8=$E$7)," ",IF(D149=0," ",D149+IF(AND($E$8/$E$7=2,C149>=2),SUM(F148:F149),IF(AND($E$8/$E$7=3,C149>=3),SUM(F147:F149),IF(AND($E$8/$E$7=4,C149>=4),SUM(F146:F149),IF(AND($E$8/$E$7=6,C149>=6),SUM(F144:F149),IF(AND($E$8/$E$7=12,C149>=12),SUM(F138:F149),SUM($F$22:F149)))))))) -> 
C150: =IF(B150=0,0,'INPUT LENING'!E155) ->  | D150: =IF(B150=0,0,IF($E$5='INPUT LENING'!$N$5,IF(A150>=$E$13,E149,$E$14),IF(A150>=$E$13,E149,ROUND($E$14-E149*$E$16/$E$7,2)))) ->  | H150: =IF(OR($E$5='INPUT LENING'!$N$5,$E$8=$E$7)," ",IF(D150=0," ",D150+IF(AND($E$8/$E$7=2,C150>=2),SUM(F149:F150),IF(AND($E$8/$E$7=3,C150>=3),SUM(F148:F150),IF(AND($E$8/$E$7=4,C150>=4),SUM(F147:F150),IF(AND($E$8/$E$7=6,C150>=6),SUM(F145:F150),IF(AND($E$8/$E$7=12,C150>=12),SUM(F139:F150),SUM($F$22:F150)))))))) -> 
C151: =IF(B151=0,0,'INPUT LENING'!E156) ->  | D151: =IF(B151=0,0,IF($E$5='INPUT LENING'!$N$5,IF(A151>=$E$13,E150,$E$14),IF(A151>=$E$13,E150,ROUND($E$14-E150*$E$16/$E$7,2)))) ->  | E151: =E150-D151 ->  | F151: =ROUND(E150*$E$16*B151/360,2) ->  | G151: =D151+F151 ->  | H151: =IF(OR($E$5='INPUT LENING'!$N$5,$E$8=$E$7)," ",IF(D151=0," ",D151+IF(AND($E$8/$E$7=2,C151>=2),SUM(F150:F151),IF(AND($E$8/$E$7=3,C151>=3),SUM(F149:F151),IF(AND($E$8/$E$7=4,C151>=4),SUM(F148:F151),IF(AND($E$8/$E$7=6,C151>=6),SUM(F146:F151),IF(AND($E$8/$E$7=12,C151>=12),SUM(F140:F151),SUM($F$22:F151)))))))) -> 
A152: =IF(A151="-","-",IF(endmonth(A151,12/$E$7)>$E$13,"-",endmonth(A151,12/$E$7))) ->  | C152: =IF(B152=0,0,'INPUT LENING'!E157) ->  | D152: =IF(B152=0,0,IF($E$5='INPUT LENING'!$N$5,IF(A152>=$E$13,E151,$E$14),IF(A152>=$E$13,E151,ROUND($E$14-E151*$E$16/$E$7,2)))) ->  | H152: =IF(OR($E$5='INPUT LENING'!$N$5,$E$8=$E$7)," ",IF(D152=0," ",D152+IF(AND($E$8/$E$7=2,C152>=2),SUM(F151:F152),IF(AND($E$8/$E$7=3,C152>=3),SUM(F150:F152),IF(AND($E$8/$E$7=4,C152>=4),SUM(F149:F152),IF(AND($E$8/$E$7=6,C152>=6),SUM(F147:F152),IF(AND($E$8/$E$7=12,C152>=12),SUM(F141:F152),SUM($F$22:F152)))))))) -> 
C153: =IF(B153=0,0,'INPUT LENING'!E158) ->  | D153: =IF(B153=0,0,IF($E$5='INPUT LENING'!$N$5,IF(A153>=$E$13,E152,$E$14),IF(A153>=$E$13,E152,ROUND($E$14-E152*$E$16/$E$7,2)))) ->  | H153: =IF(OR($E$5='INPUT LENING'!$N$5,$E$8=$E$7)," ",IF(D153=0," ",D153+IF(AND($E$8/$E$7=2,C153>=2),SUM(F152:F153),IF(AND($E$8/$E$7=3,C153>=3),SUM(F151:F153),IF(AND($E$8/$E$7=4,C153>=4),SUM(F150:F153),IF(AND($E$8/$E$7=6,C153>=6),SUM(F148:F153),IF(AND($E$8/$E$7=12,C153>=12),SUM(F142:F153),SUM($F$22:F153)))))))) -> 
B154: =IF(A154="-",0,360/$E$7) ->  | C154: =IF(B154=0,0,'INPUT LENING'!E159) ->  | D154: =IF(B154=0,0,IF($E$5='INPUT LENING'!$N$5,IF(A154>=$E$13,E153,$E$14),IF(A154>=$E$13,E153,ROUND($E$14-E153*$E$16/$E$7,2)))) ->  | H154: =IF(OR($E$5='INPUT LENING'!$N$5,$E$8=$E$7)," ",IF(D154=0," ",D154+IF(AND($E$8/$E$7=2,C154>=2),SUM(F153:F154),IF(AND($E$8/$E$7=3,C154>=3),SUM(F152:F154),IF(AND($E$8/$E$7=4,C154>=4),SUM(F151:F154),IF(AND($E$8/$E$7=6,C154>=6),SUM(F149:F154),IF(AND($E$8/$E$7=12,C154>=12),SUM(F143:F154),SUM($F$22:F154)))))))) -> 
C155: =IF(B155=0,0,'INPUT LENING'!E160) ->  | D155: =IF(B155=0,0,IF($E$5='INPUT LENING'!$N$5,IF(A155>=$E$13,E154,$E$14),IF(A155>=$E$13,E154,ROUND($E$14-E154*$E$16/$E$7,2)))) ->  | H155: =IF(OR($E$5='INPUT LENING'!$N$5,$E$8=$E$7)," ",IF(D155=0," ",D155+IF(AND($E$8/$E$7=2,C155>=2),SUM(F154:F155),IF(AND($E$8/$E$7=3,C155>=3),SUM(F153:F155),IF(AND($E$8/$E$7=4,C155>=4),SUM(F152:F155),IF(AND($E$8/$E$7=6,C155>=6),SUM(F150:F155),IF(AND($E$8/$E$7=12,C155>=12),SUM(F144:F155),SUM($F$22:F155)))))))) -> 
C156: =IF(B156=0,0,'INPUT LENING'!E161) ->  | D156: =IF(B156=0,0,IF($E$5='INPUT LENING'!$N$5,IF(A156>=$E$13,E155,$E$14),IF(A156>=$E$13,E155,ROUND($E$14-E155*$E$16/$E$7,2)))) ->  | H156: =IF(OR($E$5='INPUT LENING'!$N$5,$E$8=$E$7)," ",IF(D156=0," ",D156+IF(AND($E$8/$E$7=2,C156>=2),SUM(F155:F156),IF(AND($E$8/$E$7=3,C156>=3),SUM(F154:F156),IF(AND($E$8/$E$7=4,C156>=4),SUM(F153:F156),IF(AND($E$8/$E$7=6,C156>=6),SUM(F151:F156),IF(AND($E$8/$E$7=12,C156>=12),SUM(F145:F156),SUM($F$22:F156)))))))) -> 
C157: =IF(B157=0,0,'INPUT LENING'!E162) ->  | D157: =IF(B157=0,0,IF($E$5='INPUT LENING'!$N$5,IF(A157>=$E$13,E156,$E$14),IF(A157>=$E$13,E156,ROUND($E$14-E156*$E$16/$E$7,2)))) ->  | H157: =IF(OR($E$5='INPUT LENING'!$N$5,$E$8=$E$7)," ",IF(D157=0," ",D157+IF(AND($E$8/$E$7=2,C157>=2),SUM(F156:F157),IF(AND($E$8/$E$7=3,C157>=3),SUM(F155:F157),IF(AND($E$8/$E$7=4,C157>=4),SUM(F154:F157),IF(AND($E$8/$E$7=6,C157>=6),SUM(F152:F157),IF(AND($E$8/$E$7=12,C157>=12),SUM(F146:F157),SUM($F$22:F157)))))))) -> 
C158: =IF(B158=0,0,'INPUT LENING'!E163) ->  | D158: =IF(B158=0,0,IF($E$5='INPUT LENING'!$N$5,IF(A158>=$E$13,E157,$E$14),IF(A158>=$E$13,E157,ROUND($E$14-E157*$E$16/$E$7,2)))) ->  | H158: =IF(OR($E$5='INPUT LENING'!$N$5,$E$8=$E$7)," ",IF(D158=0," ",D158+IF(AND($E$8/$E$7=2,C158>=2),SUM(F157:F158),IF(AND($E$8/$E$7=3,C158>=3),SUM(F156:F158),IF(AND($E$8/$E$7=4,C158>=4),SUM(F155:F158),IF(AND($E$8/$E$7=6,C158>=6),SUM(F153:F158),IF(AND($E$8/$E$7=12,C158>=12),SUM(F147:F158),SUM($F$22:F158)))))))) -> 
C159: =IF(B159=0,0,'INPUT LENING'!E164) ->  | D159: =IF(B159=0,0,IF($E$5='INPUT LENING'!$N$5,IF(A159>=$E$13,E158,$E$14),IF(A159>=$E$13,E158,ROUND($E$14-E158*$E$16/$E$7,2)))) ->  | H159: =IF(OR($E$5='INPUT LENING'!$N$5,$E$8=$E$7)," ",IF(D159=0," ",D159+IF(AND($E$8/$E$7=2,C159>=2),SUM(F158:F159),IF(AND($E$8/$E$7=3,C159>=3),SUM(F157:F159),IF(AND($E$8/$E$7=4,C159>=4),SUM(F156:F159),IF(AND($E$8/$E$7=6,C159>=6),SUM(F154:F159),IF(AND($E$8/$E$7=12,C159>=12),SUM(F148:F159),SUM($F$22:F159)))))))) -> 
C160: =IF(B160=0,0,'INPUT LENING'!E165) ->  | D160: =IF(B160=0,0,IF($E$5='INPUT LENING'!$N$5,IF(A160>=$E$13,E159,$E$14),IF(A160>=$E$13,E159,ROUND($E$14-E159*$E$16/$E$7,2)))) ->  | H160: =IF(OR($E$5='INPUT LENING'!$N$5,$E$8=$E$7)," ",IF(D160=0," ",D160+IF(AND($E$8/$E$7=2,C160>=2),SUM(F159:F160),IF(AND($E$8/$E$7=3,C160>=3),SUM(F158:F160),IF(AND($E$8/$E$7=4,C160>=4),SUM(F157:F160),IF(AND($E$8/$E$7=6,C160>=6),SUM(F155:F160),IF(AND($E$8/$E$7=12,C160>=12),SUM(F149:F160),SUM($F$22:F160)))))))) -> 
C161: =IF(B161=0,0,'INPUT LENING'!E166) ->  | D161: =IF(B161=0,0,IF($E$5='INPUT LENING'!$N$5,IF(A161>=$E$13,E160,$E$14),IF(A161>=$E$13,E160,ROUND($E$14-E160*$E$16/$E$7,2)))) ->  | H161: =IF(OR($E$5='INPUT LENING'!$N$5,$E$8=$E$7)," ",IF(D161=0," ",D161+IF(AND($E$8/$E$7=2,C161>=2),SUM(F160:F161),IF(AND($E$8/$E$7=3,C161>=3),SUM(F159:F161),IF(AND($E$8/$E$7=4,C161>=4),SUM(F158:F161),IF(AND($E$8/$E$7=6,C161>=6),SUM(F156:F161),IF(AND($E$8/$E$7=12,C161>=12),SUM(F150:F161),SUM($F$22:F161)))))))) -> 
C162: =IF(B162=0,0,'INPUT LENING'!E167) ->  | D162: =IF(B162=0,0,IF($E$5='INPUT LENING'!$N$5,IF(A162>=$E$13,E161,$E$14),IF(A162>=$E$13,E161,ROUND($E$14-E161*$E$16/$E$7,2)))) ->  | H162: =IF(OR($E$5='INPUT LENING'!$N$5,$E$8=$E$7)," ",IF(D162=0," ",D162+IF(AND($E$8/$E$7=2,C162>=2),SUM(F161:F162),IF(AND($E$8/$E$7=3,C162>=3),SUM(F160:F162),IF(AND($E$8/$E$7=4,C162>=4),SUM(F159:F162),IF(AND($E$8/$E$7=6,C162>=6),SUM(F157:F162),IF(AND($E$8/$E$7=12,C162>=12),SUM(F151:F162),SUM($F$22:F162)))))))) -> 
C163: =IF(B163=0,0,'INPUT LENING'!E168) ->  | D163: =IF(B163=0,0,IF($E$5='INPUT LENING'!$N$5,IF(A163>=$E$13,E162,$E$14),IF(A163>=$E$13,E162,ROUND($E$14-E162*$E$16/$E$7,2)))) ->  | H163: =IF(OR($E$5='INPUT LENING'!$N$5,$E$8=$E$7)," ",IF(D163=0," ",D163+IF(AND($E$8/$E$7=2,C163>=2),SUM(F162:F163),IF(AND($E$8/$E$7=3,C163>=3),SUM(F161:F163),IF(AND($E$8/$E$7=4,C163>=4),SUM(F160:F163),IF(AND($E$8/$E$7=6,C163>=6),SUM(F158:F163),IF(AND($E$8/$E$7=12,C163>=12),SUM(F152:F163),SUM($F$22:F163)))))))) -> 
C164: =IF(B164=0,0,'INPUT LENING'!E169) ->  | D164: =IF(B164=0,0,IF($E$5='INPUT LENING'!$N$5,IF(A164>=$E$13,E163,$E$14),IF(A164>=$E$13,E163,ROUND($E$14-E163*$E$16/$E$7,2)))) ->  | H164: =IF(OR($E$5='INPUT LENING'!$N$5,$E$8=$E$7)," ",IF(D164=0," ",D164+IF(AND($E$8/$E$7=2,C164>=2),SUM(F163:F164),IF(AND($E$8/$E$7=3,C164>=3),SUM(F162:F164),IF(AND($E$8/$E$7=4,C164>=4),SUM(F161:F164),IF(AND($E$8/$E$7=6,C164>=6),SUM(F159:F164),IF(AND($E$8/$E$7=12,C164>=12),SUM(F153:F164),SUM($F$22:F164)))))))) -> 
C165: =IF(B165=0,0,'INPUT LENING'!E170) ->  | D165: =IF(B165=0,0,IF($E$5='INPUT LENING'!$N$5,IF(A165>=$E$13,E164,$E$14),IF(A165>=$E$13,E164,ROUND($E$14-E164*$E$16/$E$7,2)))) ->  | H165: =IF(OR($E$5='INPUT LENING'!$N$5,$E$8=$E$7)," ",IF(D165=0," ",D165+IF(AND($E$8/$E$7=2,C165>=2),SUM(F164:F165),IF(AND($E$8/$E$7=3,C165>=3),SUM(F163:F165),IF(AND($E$8/$E$7=4,C165>=4),SUM(F162:F165),IF(AND($E$8/$E$7=6,C165>=6),SUM(F160:F165),IF(AND($E$8/$E$7=12,C165>=12),SUM(F154:F165),SUM($F$22:F165)))))))) -> 
C166: =IF(B166=0,0,'INPUT LENING'!E171) ->  | D166: =IF(B166=0,0,IF($E$5='INPUT LENING'!$N$5,IF(A166>=$E$13,E165,$E$14),IF(A166>=$E$13,E165,ROUND($E$14-E165*$E$16/$E$7,2)))) ->  | H166: =IF(OR($E$5='INPUT LENING'!$N$5,$E$8=$E$7)," ",IF(D166=0," ",D166+IF(AND($E$8/$E$7=2,C166>=2),SUM(F165:F166),IF(AND($E$8/$E$7=3,C166>=3),SUM(F164:F166),IF(AND($E$8/$E$7=4,C166>=4),SUM(F163:F166),IF(AND($E$8/$E$7=6,C166>=6),SUM(F161:F166),IF(AND($E$8/$E$7=12,C166>=12),SUM(F155:F166),SUM($F$22:F166)))))))) -> 
C167: =IF(B167=0,0,'INPUT LENING'!E172) ->  | D167: =IF(B167=0,0,IF($E$5='INPUT LENING'!$N$5,IF(A167>=$E$13,E166,$E$14),IF(A167>=$E$13,E166,ROUND($E$14-E166*$E$16/$E$7,2)))) ->  | H167: =IF(OR($E$5='INPUT LENING'!$N$5,$E$8=$E$7)," ",IF(D167=0," ",D167+IF(AND($E$8/$E$7=2,C167>=2),SUM(F166:F167),IF(AND($E$8/$E$7=3,C167>=3),SUM(F165:F167),IF(AND($E$8/$E$7=4,C167>=4),SUM(F164:F167),IF(AND($E$8/$E$7=6,C167>=6),SUM(F162:F167),IF(AND($E$8/$E$7=12,C167>=12),SUM(F156:F167),SUM($F$22:F167)))))))) -> 
C168: =IF(B168=0,0,'INPUT LENING'!E173) ->  | D168: =IF(B168=0,0,IF($E$5='INPUT LENING'!$N$5,IF(A168>=$E$13,E167,$E$14),IF(A168>=$E$13,E167,ROUND($E$14-E167*$E$16/$E$7,2)))) ->  | H168: =IF(OR($E$5='INPUT LENING'!$N$5,$E$8=$E$7)," ",IF(D168=0," ",D168+IF(AND($E$8/$E$7=2,C168>=2),SUM(F167:F168),IF(AND($E$8/$E$7=3,C168>=3),SUM(F166:F168),IF(AND($E$8/$E$7=4,C168>=4),SUM(F165:F168),IF(AND($E$8/$E$7=6,C168>=6),SUM(F163:F168),IF(AND($E$8/$E$7=12,C168>=12),SUM(F157:F168),SUM($F$22:F168)))))))) -> 
C169: =IF(B169=0,0,'INPUT LENING'!E174) ->  | D169: =IF(B169=0,0,IF($E$5='INPUT LENING'!$N$5,IF(A169>=$E$13,E168,$E$14),IF(A169>=$E$13,E168,ROUND($E$14-E168*$E$16/$E$7,2)))) ->  | H169: =IF(OR($E$5='INPUT LENING'!$N$5,$E$8=$E$7)," ",IF(D169=0," ",D169+IF(AND($E$8/$E$7=2,C169>=2),SUM(F168:F169),IF(AND($E$8/$E$7=3,C169>=3),SUM(F167:F169),IF(AND($E$8/$E$7=4,C169>=4),SUM(F166:F169),IF(AND($E$8/$E$7=6,C169>=6),SUM(F164:F169),IF(AND($E$8/$E$7=12,C169>=12),SUM(F158:F169),SUM($F$22:F169)))))))) -> 
C170: =IF(B170=0,0,'INPUT LENING'!E175) ->  | D170: =IF(B170=0,0,IF($E$5='INPUT LENING'!$N$5,IF(A170>=$E$13,E169,$E$14),IF(A170>=$E$13,E169,ROUND($E$14-E169*$E$16/$E$7,2)))) ->  | H170: =IF(OR($E$5='INPUT LENING'!$N$5,$E$8=$E$7)," ",IF(D170=0," ",D170+IF(AND($E$8/$E$7=2,C170>=2),SUM(F169:F170),IF(AND($E$8/$E$7=3,C170>=3),SUM(F168:F170),IF(AND($E$8/$E$7=4,C170>=4),SUM(F167:F170),IF(AND($E$8/$E$7=6,C170>=6),SUM(F165:F170),IF(AND($E$8/$E$7=12,C170>=12),SUM(F159:F170),SUM($F$22:F170)))))))) -> 
C171: =IF(B171=0,0,'INPUT LENING'!E176) ->  | D171: =IF(B171=0,0,IF($E$5='INPUT LENING'!$N$5,IF(A171>=$E$13,E170,$E$14),IF(A171>=$E$13,E170,ROUND($E$14-E170*$E$16/$E$7,2)))) ->  | H171: =IF(OR($E$5='INPUT LENING'!$N$5,$E$8=$E$7)," ",IF(D171=0," ",D171+IF(AND($E$8/$E$7=2,C171>=2),SUM(F170:F171),IF(AND($E$8/$E$7=3,C171>=3),SUM(F169:F171),IF(AND($E$8/$E$7=4,C171>=4),SUM(F168:F171),IF(AND($E$8/$E$7=6,C171>=6),SUM(F166:F171),IF(AND($E$8/$E$7=12,C171>=12),SUM(F160:F171),SUM($F$22:F171)))))))) -> 
C172: =IF(B172=0,0,'INPUT LENING'!E177) ->  | D172: =IF(B172=0,0,IF($E$5='INPUT LENING'!$N$5,IF(A172>=$E$13,E171,$E$14),IF(A172>=$E$13,E171,ROUND($E$14-E171*$E$16/$E$7,2)))) ->  | H172: =IF(OR($E$5='INPUT LENING'!$N$5,$E$8=$E$7)," ",IF(D172=0," ",D172+IF(AND($E$8/$E$7=2,C172>=2),SUM(F171:F172),IF(AND($E$8/$E$7=3,C172>=3),SUM(F170:F172),IF(AND($E$8/$E$7=4,C172>=4),SUM(F169:F172),IF(AND($E$8/$E$7=6,C172>=6),SUM(F167:F172),IF(AND($E$8/$E$7=12,C172>=12),SUM(F161:F172),SUM($F$22:F172)))))))) -> 
C173: =IF(B173=0,0,'INPUT LENING'!E178) ->  | D173: =IF(B173=0,0,IF($E$5='INPUT LENING'!$N$5,IF(A173>=$E$13,E172,$E$14),IF(A173>=$E$13,E172,ROUND($E$14-E172*$E$16/$E$7,2)))) ->  | H173: =IF(OR($E$5='INPUT LENING'!$N$5,$E$8=$E$7)," ",IF(D173=0," ",D173+IF(AND($E$8/$E$7=2,C173>=2),SUM(F172:F173),IF(AND($E$8/$E$7=3,C173>=3),SUM(F171:F173),IF(AND($E$8/$E$7=4,C173>=4),SUM(F170:F173),IF(AND($E$8/$E$7=6,C173>=6),SUM(F168:F173),IF(AND($E$8/$E$7=12,C173>=12),SUM(F162:F173),SUM($F$22:F173)))))))) -> 
C174: =IF(B174=0,0,'INPUT LENING'!E179) ->  | D174: =IF(B174=0,0,IF($E$5='INPUT LENING'!$N$5,IF(A174>=$E$13,E173,$E$14),IF(A174>=$E$13,E173,ROUND($E$14-E173*$E$16/$E$7,2)))) ->  | H174: =IF(OR($E$5='INPUT LENING'!$N$5,$E$8=$E$7)," ",IF(D174=0," ",D174+IF(AND($E$8/$E$7=2,C174>=2),SUM(F173:F174),IF(AND($E$8/$E$7=3,C174>=3),SUM(F172:F174),IF(AND($E$8/$E$7=4,C174>=4),SUM(F171:F174),IF(AND($E$8/$E$7=6,C174>=6),SUM(F169:F174),IF(AND($E$8/$E$7=12,C174>=12),SUM(F163:F174),SUM($F$22:F174)))))))) -> 
C175: =IF(B175=0,0,'INPUT LENING'!E180) ->  | D175: =IF(B175=0,0,IF($E$5='INPUT LENING'!$N$5,IF(A175>=$E$13,E174,$E$14),IF(A175>=$E$13,E174,ROUND($E$14-E174*$E$16/$E$7,2)))) ->  | H175: =IF(OR($E$5='INPUT LENING'!$N$5,$E$8=$E$7)," ",IF(D175=0," ",D175+IF(AND($E$8/$E$7=2,C175>=2),SUM(F174:F175),IF(AND($E$8/$E$7=3,C175>=3),SUM(F173:F175),IF(AND($E$8/$E$7=4,C175>=4),SUM(F172:F175),IF(AND($E$8/$E$7=6,C175>=6),SUM(F170:F175),IF(AND($E$8/$E$7=12,C175>=12),SUM(F164:F175),SUM($F$22:F175)))))))) -> 
C176: =IF(B176=0,0,'INPUT LENING'!E181) ->  | D176: =IF(B176=0,0,IF($E$5='INPUT LENING'!$N$5,IF(A176>=$E$13,E175,$E$14),IF(A176>=$E$13,E175,ROUND($E$14-E175*$E$16/$E$7,2)))) ->  | H176: =IF(OR($E$5='INPUT LENING'!$N$5,$E$8=$E$7)," ",IF(D176=0," ",D176+IF(AND($E$8/$E$7=2,C176>=2),SUM(F175:F176),IF(AND($E$8/$E$7=3,C176>=3),SUM(F174:F176),IF(AND($E$8/$E$7=4,C176>=4),SUM(F173:F176),IF(AND($E$8/$E$7=6,C176>=6),SUM(F171:F176),IF(AND($E$8/$E$7=12,C176>=12),SUM(F165:F176),SUM($F$22:F176)))))))) -> 
C177: =IF(B177=0,0,'INPUT LENING'!E182) ->  | D177: =IF(B177=0,0,IF($E$5='INPUT LENING'!$N$5,IF(A177>=$E$13,E176,$E$14),IF(A177>=$E$13,E176,ROUND($E$14-E176*$E$16/$E$7,2)))) ->  | H177: =IF(OR($E$5='INPUT LENING'!$N$5,$E$8=$E$7)," ",IF(D177=0," ",D177+IF(AND($E$8/$E$7=2,C177>=2),SUM(F176:F177),IF(AND($E$8/$E$7=3,C177>=3),SUM(F175:F177),IF(AND($E$8/$E$7=4,C177>=4),SUM(F174:F177),IF(AND($E$8/$E$7=6,C177>=6),SUM(F172:F177),IF(AND($E$8/$E$7=12,C177>=12),SUM(F166:F177),SUM($F$22:F177)))))))) -> 
C178: =IF(B178=0,0,'INPUT LENING'!E183) ->  | D178: =IF(B178=0,0,IF($E$5='INPUT LENING'!$N$5,IF(A178>=$E$13,E177,$E$14),IF(A178>=$E$13,E177,ROUND($E$14-E177*$E$16/$E$7,2)))) ->  | H178: =IF(OR($E$5='INPUT LENING'!$N$5,$E$8=$E$7)," ",IF(D178=0," ",D178+IF(AND($E$8/$E$7=2,C178>=2),SUM(F177:F178),IF(AND($E$8/$E$7=3,C178>=3),SUM(F176:F178),IF(AND($E$8/$E$7=4,C178>=4),SUM(F175:F178),IF(AND($E$8/$E$7=6,C178>=6),SUM(F173:F178),IF(AND($E$8/$E$7=12,C178>=12),SUM(F167:F178),SUM($F$22:F178)))))))) -> 
C179: =IF(B179=0,0,'INPUT LENING'!E184) ->  | D179: =IF(B179=0,0,IF($E$5='INPUT LENING'!$N$5,IF(A179>=$E$13,E178,$E$14),IF(A179>=$E$13,E178,ROUND($E$14-E178*$E$16/$E$7,2)))) ->  | H179: =IF(OR($E$5='INPUT LENING'!$N$5,$E$8=$E$7)," ",IF(D179=0," ",D179+IF(AND($E$8/$E$7=2,C179>=2),SUM(F178:F179),IF(AND($E$8/$E$7=3,C179>=3),SUM(F177:F179),IF(AND($E$8/$E$7=4,C179>=4),SUM(F176:F179),IF(AND($E$8/$E$7=6,C179>=6),SUM(F174:F179),IF(AND($E$8/$E$7=12,C179>=12),SUM(F168:F179),SUM($F$22:F179)))))))) -> 
C180: =IF(B180=0,0,'INPUT LENING'!E185) ->  | D180: =IF(B180=0,0,IF($E$5='INPUT LENING'!$N$5,IF(A180>=$E$13,E179,$E$14),IF(A180>=$E$13,E179,ROUND($E$14-E179*$E$16/$E$7,2)))) ->  | H180: =IF(OR($E$5='INPUT LENING'!$N$5,$E$8=$E$7)," ",IF(D180=0," ",D180+IF(AND($E$8/$E$7=2,C180>=2),SUM(F179:F180),IF(AND($E$8/$E$7=3,C180>=3),SUM(F178:F180),IF(AND($E$8/$E$7=4,C180>=4),SUM(F177:F180),IF(AND($E$8/$E$7=6,C180>=6),SUM(F175:F180),IF(AND($E$8/$E$7=12,C180>=12),SUM(F169:F180),SUM($F$22:F180)))))))) -> 
C181: =IF(B181=0,0,'INPUT LENING'!E186) ->  | D181: =IF(B181=0,0,IF($E$5='INPUT LENING'!$N$5,IF(A181>=$E$13,E180,$E$14),IF(A181>=$E$13,E180,ROUND($E$14-E180*$E$16/$E$7,2)))) ->  | H181: =IF(OR($E$5='INPUT LENING'!$N$5,$E$8=$E$7)," ",IF(D181=0," ",D181+IF(AND($E$8/$E$7=2,C181>=2),SUM(F180:F181),IF(AND($E$8/$E$7=3,C181>=3),SUM(F179:F181),IF(AND($E$8/$E$7=4,C181>=4),SUM(F178:F181),IF(AND($E$8/$E$7=6,C181>=6),SUM(F176:F181),IF(AND($E$8/$E$7=12,C181>=12),SUM(F170:F181),SUM($F$22:F181)))))))) -> 
C182: =IF(B182=0,0,'INPUT LENING'!E187) ->  | D182: =IF(B182=0,0,IF($E$5='INPUT LENING'!$N$5,IF(A182>=$E$13,E181,$E$14),IF(A182>=$E$13,E181,ROUND($E$14-E181*$E$16/$E$7,2)))) ->  | H182: =IF(OR($E$5='INPUT LENING'!$N$5,$E$8=$E$7)," ",IF(D182=0," ",D182+IF(AND($E$8/$E$7=2,C182>=2),SUM(F181:F182),IF(AND($E$8/$E$7=3,C182>=3),SUM(F180:F182),IF(AND($E$8/$E$7=4,C182>=4),SUM(F179:F182),IF(AND($E$8/$E$7=6,C182>=6),SUM(F177:F182),IF(AND($E$8/$E$7=12,C182>=12),SUM(F171:F182),SUM($F$22:F182)))))))) -> 
C183: =IF(B183=0,0,'INPUT LENING'!E188) ->  | D183: =IF(B183=0,0,IF($E$5='INPUT LENING'!$N$5,IF(A183>=$E$13,E182,$E$14),IF(A183>=$E$13,E182,ROUND($E$14-E182*$E$16/$E$7,2)))) ->  | H183: =IF(OR($E$5='INPUT LENING'!$N$5,$E$8=$E$7)," ",IF(D183=0," ",D183+IF(AND($E$8/$E$7=2,C183>=2),SUM(F182:F183),IF(AND($E$8/$E$7=3,C183>=3),SUM(F181:F183),IF(AND($E$8/$E$7=4,C183>=4),SUM(F180:F183),IF(AND($E$8/$E$7=6,C183>=6),SUM(F178:F183),IF(AND($E$8/$E$7=12,C183>=12),SUM(F172:F183),SUM($F$22:F183)))))))) -> 
C184: =IF(B184=0,0,'INPUT LENING'!E189) ->  | D184: =IF(B184=0,0,IF($E$5='INPUT LENING'!$N$5,IF(A184>=$E$13,E183,$E$14),IF(A184>=$E$13,E183,ROUND($E$14-E183*$E$16/$E$7,2)))) ->  | H184: =IF(OR($E$5='INPUT LENING'!$N$5,$E$8=$E$7)," ",IF(D184=0," ",D184+IF(AND($E$8/$E$7=2,C184>=2),SUM(F183:F184),IF(AND($E$8/$E$7=3,C184>=3),SUM(F182:F184),IF(AND($E$8/$E$7=4,C184>=4),SUM(F181:F184),IF(AND($E$8/$E$7=6,C184>=6),SUM(F179:F184),IF(AND($E$8/$E$7=12,C184>=12),SUM(F173:F184),SUM($F$22:F184)))))))) -> 
C185: =IF(B185=0,0,'INPUT LENING'!E190) ->  | D185: =IF(B185=0,0,IF($E$5='INPUT LENING'!$N$5,IF(A185>=$E$13,E184,$E$14),IF(A185>=$E$13,E184,ROUND($E$14-E184*$E$16/$E$7,2)))) ->  | H185: =IF(OR($E$5='INPUT LENING'!$N$5,$E$8=$E$7)," ",IF(D185=0," ",D185+IF(AND($E$8/$E$7=2,C185>=2),SUM(F184:F185),IF(AND($E$8/$E$7=3,C185>=3),SUM(F183:F185),IF(AND($E$8/$E$7=4,C185>=4),SUM(F182:F185),IF(AND($E$8/$E$7=6,C185>=6),SUM(F180:F185),IF(AND($E$8/$E$7=12,C185>=12),SUM(F174:F185),SUM($F$22:F185)))))))) -> 
C186: =IF(B186=0,0,'INPUT LENING'!E191) ->  | D186: =IF(B186=0,0,IF($E$5='INPUT LENING'!$N$5,IF(A186>=$E$13,E185,$E$14),IF(A186>=$E$13,E185,ROUND($E$14-E185*$E$16/$E$7,2)))) ->  | H186: =IF(OR($E$5='INPUT LENING'!$N$5,$E$8=$E$7)," ",IF(D186=0," ",D186+IF(AND($E$8/$E$7=2,C186>=2),SUM(F185:F186),IF(AND($E$8/$E$7=3,C186>=3),SUM(F184:F186),IF(AND($E$8/$E$7=4,C186>=4),SUM(F183:F186),IF(AND($E$8/$E$7=6,C186>=6),SUM(F181:F186),IF(AND($E$8/$E$7=12,C186>=12),SUM(F175:F186),SUM($F$22:F186)))))))) -> 
C187: =IF(B187=0,0,'INPUT LENING'!E192) ->  | D187: =IF(B187=0,0,IF($E$5='INPUT LENING'!$N$5,IF(A187>=$E$13,E186,$E$14),IF(A187>=$E$13,E186,ROUND($E$14-E186*$E$16/$E$7,2)))) ->  | H187: =IF(OR($E$5='INPUT LENING'!$N$5,$E$8=$E$7)," ",IF(D187=0," ",D187+IF(AND($E$8/$E$7=2,C187>=2),SUM(F186:F187),IF(AND($E$8/$E$7=3,C187>=3),SUM(F185:F187),IF(AND($E$8/$E$7=4,C187>=4),SUM(F184:F187),IF(AND($E$8/$E$7=6,C187>=6),SUM(F182:F187),IF(AND($E$8/$E$7=12,C187>=12),SUM(F176:F187),SUM($F$22:F187)))))))) -> 
C188: =IF(B188=0,0,'INPUT LENING'!E193) ->  | D188: =IF(B188=0,0,IF($E$5='INPUT LENING'!$N$5,IF(A188>=$E$13,E187,$E$14),IF(A188>=$E$13,E187,ROUND($E$14-E187*$E$16/$E$7,2)))) ->  | H188: =IF(OR($E$5='INPUT LENING'!$N$5,$E$8=$E$7)," ",IF(D188=0," ",D188+IF(AND($E$8/$E$7=2,C188>=2),SUM(F187:F188),IF(AND($E$8/$E$7=3,C188>=3),SUM(F186:F188),IF(AND($E$8/$E$7=4,C188>=4),SUM(F185:F188),IF(AND($E$8/$E$7=6,C188>=6),SUM(F183:F188),IF(AND($E$8/$E$7=12,C188>=12),SUM(F177:F188),SUM($F$22:F188)))))))) -> 
C189: =IF(B189=0,0,'INPUT LENING'!E194) ->  | D189: =IF(B189=0,0,IF($E$5='INPUT LENING'!$N$5,IF(A189>=$E$13,E188,$E$14),IF(A189>=$E$13,E188,ROUND($E$14-E188*$E$16/$E$7,2)))) ->  | H189: =IF(OR($E$5='INPUT LENING'!$N$5,$E$8=$E$7)," ",IF(D189=0," ",D189+IF(AND($E$8/$E$7=2,C189>=2),SUM(F188:F189),IF(AND($E$8/$E$7=3,C189>=3),SUM(F187:F189),IF(AND($E$8/$E$7=4,C189>=4),SUM(F186:F189),IF(AND($E$8/$E$7=6,C189>=6),SUM(F184:F189),IF(AND($E$8/$E$7=12,C189>=12),SUM(F178:F189),SUM($F$22:F189)))))))) -> 
C190: =IF(B190=0,0,'INPUT LENING'!E195) ->  | D190: =IF(B190=0,0,IF($E$5='INPUT LENING'!$N$5,IF(A190>=$E$13,E189,$E$14),IF(A190>=$E$13,E189,ROUND($E$14-E189*$E$16/$E$7,2)))) ->  | H190: =IF(OR($E$5='INPUT LENING'!$N$5,$E$8=$E$7)," ",IF(D190=0," ",D190+IF(AND($E$8/$E$7=2,C190>=2),SUM(F189:F190),IF(AND($E$8/$E$7=3,C190>=3),SUM(F188:F190),IF(AND($E$8/$E$7=4,C190>=4),SUM(F187:F190),IF(AND($E$8/$E$7=6,C190>=6),SUM(F185:F190),IF(AND($E$8/$E$7=12,C190>=12),SUM(F179:F190),SUM($F$22:F190)))))))) -> 
C191: =IF(B191=0,0,'INPUT LENING'!E196) ->  | D191: =IF(B191=0,0,IF($E$5='INPUT LENING'!$N$5,IF(A191>=$E$13,E190,$E$14),IF(A191>=$E$13,E190,ROUND($E$14-E190*$E$16/$E$7,2)))) ->  | H191: =IF(OR($E$5='INPUT LENING'!$N$5,$E$8=$E$7)," ",IF(D191=0," ",D191+IF(AND($E$8/$E$7=2,C191>=2),SUM(F190:F191),IF(AND($E$8/$E$7=3,C191>=3),SUM(F189:F191),IF(AND($E$8/$E$7=4,C191>=4),SUM(F188:F191),IF(AND($E$8/$E$7=6,C191>=6),SUM(F186:F191),IF(AND($E$8/$E$7=12,C191>=12),SUM(F180:F191),SUM($F$22:F191)))))))) -> 
C192: =IF(B192=0,0,'INPUT LENING'!E197) ->  | D192: =IF(B192=0,0,IF($E$5='INPUT LENING'!$N$5,IF(A192>=$E$13,E191,$E$14),IF(A192>=$E$13,E191,ROUND($E$14-E191*$E$16/$E$7,2)))) ->  | H192: =IF(OR($E$5='INPUT LENING'!$N$5,$E$8=$E$7)," ",IF(D192=0," ",D192+IF(AND($E$8/$E$7=2,C192>=2),SUM(F191:F192),IF(AND($E$8/$E$7=3,C192>=3),SUM(F190:F192),IF(AND($E$8/$E$7=4,C192>=4),SUM(F189:F192),IF(AND($E$8/$E$7=6,C192>=6),SUM(F187:F192),IF(AND($E$8/$E$7=12,C192>=12),SUM(F181:F192),SUM($F$22:F192)))))))) -> 
C193: =IF(B193=0,0,'INPUT LENING'!E198) ->  | D193: =IF(B193=0,0,IF($E$5='INPUT LENING'!$N$5,IF(A193>=$E$13,E192,$E$14),IF(A193>=$E$13,E192,ROUND($E$14-E192*$E$16/$E$7,2)))) ->  | H193: =IF(OR($E$5='INPUT LENING'!$N$5,$E$8=$E$7)," ",IF(D193=0," ",D193+IF(AND($E$8/$E$7=2,C193>=2),SUM(F192:F193),IF(AND($E$8/$E$7=3,C193>=3),SUM(F191:F193),IF(AND($E$8/$E$7=4,C193>=4),SUM(F190:F193),IF(AND($E$8/$E$7=6,C193>=6),SUM(F188:F193),IF(AND($E$8/$E$7=12,C193>=12),SUM(F182:F193),SUM($F$22:F193)))))))) -> 
C194: =IF(B194=0,0,'INPUT LENING'!E199) ->  | D194: =IF(B194=0,0,IF($E$5='INPUT LENING'!$N$5,IF(A194>=$E$13,E193,$E$14),IF(A194>=$E$13,E193,ROUND($E$14-E193*$E$16/$E$7,2)))) ->  | H194: =IF(OR($E$5='INPUT LENING'!$N$5,$E$8=$E$7)," ",IF(D194=0," ",D194+IF(AND($E$8/$E$7=2,C194>=2),SUM(F193:F194),IF(AND($E$8/$E$7=3,C194>=3),SUM(F192:F194),IF(AND($E$8/$E$7=4,C194>=4),SUM(F191:F194),IF(AND($E$8/$E$7=6,C194>=6),SUM(F189:F194),IF(AND($E$8/$E$7=12,C194>=12),SUM(F183:F194),SUM($F$22:F194)))))))) -> 
C195: =IF(B195=0,0,'INPUT LENING'!E200) ->  | D195: =IF(B195=0,0,IF($E$5='INPUT LENING'!$N$5,IF(A195>=$E$13,E194,$E$14),IF(A195>=$E$13,E194,ROUND($E$14-E194*$E$16/$E$7,2)))) ->  | H195: =IF(OR($E$5='INPUT LENING'!$N$5,$E$8=$E$7)," ",IF(D195=0," ",D195+IF(AND($E$8/$E$7=2,C195>=2),SUM(F194:F195),IF(AND($E$8/$E$7=3,C195>=3),SUM(F193:F195),IF(AND($E$8/$E$7=4,C195>=4),SUM(F192:F195),IF(AND($E$8/$E$7=6,C195>=6),SUM(F190:F195),IF(AND($E$8/$E$7=12,C195>=12),SUM(F184:F195),SUM($F$22:F195)))))))) -> 
C196: =IF(B196=0,0,'INPUT LENING'!E201) ->  | D196: =IF(B196=0,0,IF($E$5='INPUT LENING'!$N$5,IF(A196>=$E$13,E195,$E$14),IF(A196>=$E$13,E195,ROUND($E$14-E195*$E$16/$E$7,2)))) ->  | H196: =IF(OR($E$5='INPUT LENING'!$N$5,$E$8=$E$7)," ",IF(D196=0," ",D196+IF(AND($E$8/$E$7=2,C196>=2),SUM(F195:F196),IF(AND($E$8/$E$7=3,C196>=3),SUM(F194:F196),IF(AND($E$8/$E$7=4,C196>=4),SUM(F193:F196),IF(AND($E$8/$E$7=6,C196>=6),SUM(F191:F196),IF(AND($E$8/$E$7=12,C196>=12),SUM(F185:F196),SUM($F$22:F196)))))))) -> 
C197: =IF(B197=0,0,'INPUT LENING'!E202) ->  | D197: =IF(B197=0,0,IF($E$5='INPUT LENING'!$N$5,IF(A197>=$E$13,E196,$E$14),IF(A197>=$E$13,E196,ROUND($E$14-E196*$E$16/$E$7,2)))) ->  | H197: =IF(OR($E$5='INPUT LENING'!$N$5,$E$8=$E$7)," ",IF(D197=0," ",D197+IF(AND($E$8/$E$7=2,C197>=2),SUM(F196:F197),IF(AND($E$8/$E$7=3,C197>=3),SUM(F195:F197),IF(AND($E$8/$E$7=4,C197>=4),SUM(F194:F197),IF(AND($E$8/$E$7=6,C197>=6),SUM(F192:F197),IF(AND($E$8/$E$7=12,C197>=12),SUM(F186:F197),SUM($F$22:F197)))))))) -> 
C198: =IF(B198=0,0,'INPUT LENING'!E203) ->  | D198: =IF(B198=0,0,IF($E$5='INPUT LENING'!$N$5,IF(A198>=$E$13,E197,$E$14),IF(A198>=$E$13,E197,ROUND($E$14-E197*$E$16/$E$7,2)))) ->  | H198: =IF(OR($E$5='INPUT LENING'!$N$5,$E$8=$E$7)," ",IF(D198=0," ",D198+IF(AND($E$8/$E$7=2,C198>=2),SUM(F197:F198),IF(AND($E$8/$E$7=3,C198>=3),SUM(F196:F198),IF(AND($E$8/$E$7=4,C198>=4),SUM(F195:F198),IF(AND($E$8/$E$7=6,C198>=6),SUM(F193:F198),IF(AND($E$8/$E$7=12,C198>=12),SUM(F187:F198),SUM($F$22:F198)))))))) -> 
C199: =IF(B199=0,0,'INPUT LENING'!E204) ->  | D199: =IF(B199=0,0,IF($E$5='INPUT LENING'!$N$5,IF(A199>=$E$13,E198,$E$14),IF(A199>=$E$13,E198,ROUND($E$14-E198*$E$16/$E$7,2)))) ->  | H199: =IF(OR($E$5='INPUT LENING'!$N$5,$E$8=$E$7)," ",IF(D199=0," ",D199+IF(AND($E$8/$E$7=2,C199>=2),SUM(F198:F199),IF(AND($E$8/$E$7=3,C199>=3),SUM(F197:F199),IF(AND($E$8/$E$7=4,C199>=4),SUM(F196:F199),IF(AND($E$8/$E$7=6,C199>=6),SUM(F194:F199),IF(AND($E$8/$E$7=12,C199>=12),SUM(F188:F199),SUM($F$22:F199)))))))) -> 
C200: =IF(B200=0,0,'INPUT LENING'!E205) ->  | D200: =IF(B200=0,0,IF($E$5='INPUT LENING'!$N$5,IF(A200>=$E$13,E199,$E$14),IF(A200>=$E$13,E199,ROUND($E$14-E199*$E$16/$E$7,2)))) ->  | H200: =IF(OR($E$5='INPUT LENING'!$N$5,$E$8=$E$7)," ",IF(D200=0," ",D200+IF(AND($E$8/$E$7=2,C200>=2),SUM(F199:F200),IF(AND($E$8/$E$7=3,C200>=3),SUM(F198:F200),IF(AND($E$8/$E$7=4,C200>=4),SUM(F197:F200),IF(AND($E$8/$E$7=6,C200>=6),SUM(F195:F200),IF(AND($E$8/$E$7=12,C200>=12),SUM(F189:F200),SUM($F$22:F200)))))))) -> 
C201: =IF(B201=0,0,'INPUT LENING'!E206) ->  | D201: =IF(B201=0,0,IF($E$5='INPUT LENING'!$N$5,IF(A201>=$E$13,E200,$E$14),IF(A201>=$E$13,E200,ROUND($E$14-E200*$E$16/$E$7,2)))) ->  | H201: =IF(OR($E$5='INPUT LENING'!$N$5,$E$8=$E$7)," ",IF(D201=0," ",D201+IF(AND($E$8/$E$7=2,C201>=2),SUM(F200:F201),IF(AND($E$8/$E$7=3,C201>=3),SUM(F199:F201),IF(AND($E$8/$E$7=4,C201>=4),SUM(F198:F201),IF(AND($E$8/$E$7=6,C201>=6),SUM(F196:F201),IF(AND($E$8/$E$7=12,C201>=12),SUM(F190:F201),SUM($F$22:F201)))))))) -> 
C202: =IF(B202=0,0,'INPUT LENING'!E207) ->  | D202: =IF(B202=0,0,IF($E$5='INPUT LENING'!$N$5,IF(A202>=$E$13,E201,$E$14),IF(A202>=$E$13,E201,ROUND($E$14-E201*$E$16/$E$7,2)))) ->  | H202: =IF(OR($E$5='INPUT LENING'!$N$5,$E$8=$E$7)," ",IF(D202=0," ",D202+IF(AND($E$8/$E$7=2,C202>=2),SUM(F201:F202),IF(AND($E$8/$E$7=3,C202>=3),SUM(F200:F202),IF(AND($E$8/$E$7=4,C202>=4),SUM(F199:F202),IF(AND($E$8/$E$7=6,C202>=6),SUM(F197:F202),IF(AND($E$8/$E$7=12,C202>=12),SUM(F191:F202),SUM($F$22:F202)))))))) -> 
C203: =IF(B203=0,0,'INPUT LENING'!E208) ->  | D203: =IF(B203=0,0,IF($E$5='INPUT LENING'!$N$5,IF(A203>=$E$13,E202,$E$14),IF(A203>=$E$13,E202,ROUND($E$14-E202*$E$16/$E$7,2)))) ->  | H203: =IF(OR($E$5='INPUT LENING'!$N$5,$E$8=$E$7)," ",IF(D203=0," ",D203+IF(AND($E$8/$E$7=2,C203>=2),SUM(F202:F203),IF(AND($E$8/$E$7=3,C203>=3),SUM(F201:F203),IF(AND($E$8/$E$7=4,C203>=4),SUM(F200:F203),IF(AND($E$8/$E$7=6,C203>=6),SUM(F198:F203),IF(AND($E$8/$E$7=12,C203>=12),SUM(F192:F203),SUM($F$22:F203)))))))) -> 
C204: =IF(B204=0,0,'INPUT LENING'!E209) ->  | D204: =IF(B204=0,0,IF($E$5='INPUT LENING'!$N$5,IF(A204>=$E$13,E203,$E$14),IF(A204>=$E$13,E203,ROUND($E$14-E203*$E$16/$E$7,2)))) ->  | H204: =IF(OR($E$5='INPUT LENING'!$N$5,$E$8=$E$7)," ",IF(D204=0," ",D204+IF(AND($E$8/$E$7=2,C204>=2),SUM(F203:F204),IF(AND($E$8/$E$7=3,C204>=3),SUM(F202:F204),IF(AND($E$8/$E$7=4,C204>=4),SUM(F201:F204),IF(AND($E$8/$E$7=6,C204>=6),SUM(F199:F204),IF(AND($E$8/$E$7=12,C204>=12),SUM(F193:F204),SUM($F$22:F204)))))))) -> 
... 180 more rows

Sheet VERVALDAGEN (hidden)
B1: ='INPUT LENING'!G10 -> 
B2: Maandelijks | C2: Trimestriëel | D2: Semestriëel | E2: jaarlijks
B3: =IF(endmonth(LOOKUP($B$1,B$6:B$42),1)-1=$B$1,endmonth(LOOKUP($B$1,B$6:B$42),2),endmonth(LOOKUP($B$1,B$6:B$42),1)) ->  | C3: =IF(endmonth(LOOKUP($B$1,C$6:C$42),3)-1=$B$1,endmonth(LOOKUP($B$1,C$6:C$42),6),endmonth(LOOKUP($B$1,C$6:C$42),3)) ->  | D3: =IF(endmonth(LOOKUP($B$1,D$6:D$42),6)-1=$B$1,endmonth(LOOKUP($B$1,D$6:D$42),12),endmonth(LOOKUP($B$1,D$6:D$42),6)) ->  | E3: =IF(endmonth(LOOKUP($B$1,E$6:E$42),12)-1=$B$1,endmonth(LOOKUP($B$1,E$6:E$42),24),endmonth(LOOKUP($B$1,E$6:E$42),12)) -> 
B4: =LOOKUP(endmonth(B3,1),B$7:B$42) ->  | C4: =LOOKUP(endmonth(C3,3),C$7:C$42) ->  | D4: =LOOKUP(endmonth(D3,6),D$7:D$42) ->  | E4: =LOOKUP(endmonth(E3,12),E$7:E$42) -> 
B6: =DATE(YEAR($B$1),1,1)-1 ->  | C6: =DATE(YEAR($B$1),1,1)-1 ->  | D6: =DATE(YEAR($B$1),1,1)-1 ->  | E6: =DATE(YEAR($B$1),1,1)-1 -> 
B7: =endmonth(B6,1) -> 
C9: =B9 -> 
C12: =B12 ->  | D12: =C12 -> 
C15: =B15 -> 
C18: =B18 ->  | D18: =C18 ->  | E18: =D18 -> 
C21: =B21 -> 
C24: =B24 ->  | D24: =C24 -> 
C27: =B27 -> 
C30: =B30 ->  | D30: =C30 ->  | E30: =D30 -> 
C33: =B33 -> 
C36: =B36 ->  | D36: =C36 -> 
C39: =B39 -> 
C42: =B42 ->  | D42: =C42 ->  | E42: =D42 -> 

Sheet ZC-Rentevoeten (hidden)
A1: Month/Years | B1: nDays360 | C1: Rates360 | D1: Missing tenors | F1: ZC | G1: DF | I1: 8 | J1: TRUE | K1: C
A2: 0D | B2: 0 | C2: =IF(ISNA(MATCH($B2,'INPUT RENTEVOETEN'!$G$10:$G$28,0)),"",INDIRECT("'INPUT RENTEVOETEN'!F"&MATCH($B2,'INPUT RENTEVOETEN'!$G$10:$G$28,0)+9)) ->  | D2: =D3-(D4-D3) ->  | F2: =D2 ->  | G2: =IF($F2="","",ROUND(1/(1+$F2)^($B2/360),$I$1)) -> 
A3: =IF(B3<360,B3/30&"M",B3/360&"Y") -> 1M | B3: 30 | C3: =IF(ISNA(MATCH($B3,'INPUT RENTEVOETEN'!$G$10:$G$28,0)),"",INDIRECT("'INPUT RENTEVOETEN'!F"&MATCH($B3,'INPUT RENTEVOETEN'!$G$10:$G$28,0)+9)) -> -0.00373 | D3: =cspline($B$2:$B$47,$C$2:$C$47,$B3,$K$1,$I$1,$J$1) ->  | F3: =ROUND((1+$D3*$B3/360)^(360/$B3)-1,$I$1) ->  | G3: =IF($F3="","",ROUND(1/(1+$F3)^($B3/360),$I$1)) -> 
A4: =IF(B4<360,B4/30&"M",B4/360&"Y") -> 2M | B4: =B3+30 -> 60 | C4: =IF(ISNA(MATCH($B4,'INPUT RENTEVOETEN'!$G$10:$G$28,0)),"",INDIRECT("'INPUT RENTEVOETEN'!F"&MATCH($B4,'INPUT RENTEVOETEN'!$G$10:$G$28,0)+9)) ->  | D4: =cspline($B$2:$B$47,$C$2:$C$47,$B4,$K$1,$I$1,$J$1) ->  | F4: =ROUND((1+$D4*$B4/360)^(360/$B4)-1,$I$1) ->  | G4: =IF($F4="","",ROUND(1/(1+$F4)^($B4/360),$I$1)) -> 
A5: 3M | B5: =B4+30 -> 90 | C5: =IF(ISNA(MATCH($B5,'INPUT RENTEVOETEN'!$G$10:$G$28,0)),"",INDIRECT("'INPUT RENTEVOETEN'!F"&MATCH($B5,'INPUT RENTEVOETEN'!$G$10:$G$28,0)+9)) -> -0.00312
A6: 4M | B6: 120 | C6: =IF(ISNA(MATCH($B6,'INPUT RENTEVOETEN'!$G$10:$G$28,0)),"",INDIRECT("'INPUT RENTEVOETEN'!F"&MATCH($B6,'INPUT RENTEVOETEN'!$G$10:$G$28,0)+9)) -> 
A7: 5M | B7: 150 | C7: =IF(ISNA(MATCH($B7,'INPUT RENTEVOETEN'!$G$10:$G$28,0)),"",INDIRECT("'INPUT RENTEVOETEN'!F"&MATCH($B7,'INPUT RENTEVOETEN'!$G$10:$G$28,0)+9)) -> 
A8: 6M | B8: 180 | C8: =IF(ISNA(MATCH($B8,'INPUT RENTEVOETEN'!$G$10:$G$28,0)),"",INDIRECT("'INPUT RENTEVOETEN'!F"&MATCH($B8,'INPUT RENTEVOETEN'!$G$10:$G$28,0)+9)) -> -0.0024
A9: 7M | B9: 210 | C9: =IF(ISNA(MATCH($B9,'INPUT RENTEVOETEN'!$G$10:$G$28,0)),"",INDIRECT("'INPUT RENTEVOETEN'!F"&MATCH($B9,'INPUT RENTEVOETEN'!$G$10:$G$28,0)+9)) -> 
A10: 8M | B10: 240 | C10: =IF(ISNA(MATCH($B10,'INPUT RENTEVOETEN'!$G$10:$G$28,0)),"",INDIRECT("'INPUT RENTEVOETEN'!F"&MATCH($B10,'INPUT RENTEVOETEN'!$G$10:$G$28,0)+9)) -> 
A11: 9M | B11: 270 | C11: =IF(ISNA(MATCH($B11,'INPUT RENTEVOETEN'!$G$10:$G$28,0)),"",INDIRECT("'INPUT RENTEVOETEN'!F"&MATCH($B11,'INPUT RENTEVOETEN'!$G$10:$G$28,0)+9)) -> 
A12: 10M | B12: 300 | C12: =IF(ISNA(MATCH($B12,'INPUT RENTEVOETEN'!$G$10:$G$28,0)),"",INDIRECT("'INPUT RENTEVOETEN'!F"&MATCH($B12,'INPUT RENTEVOETEN'!$G$10:$G$28,0)+9)) -> 
A13: 11M | B13: 330 | C13: =IF(ISNA(MATCH($B13,'INPUT RENTEVOETEN'!$G$10:$G$28,0)),"",INDIRECT("'INPUT RENTEVOETEN'!F"&MATCH($B13,'INPUT RENTEVOETEN'!$G$10:$G$28,0)+9)) -> 
A14: 12M | B14: =B13+30 -> 360 | C14: ='INPUT RENTEVOETEN'!F13 -> -0.00118 | D14: =cspline($B$2:$B$47,$C$2:$C$47,$B14,$K$1,$I$1,FALSE) ->  | F14: =ROUND((1+$D14*$B14/360)^(360/$B14)-1,$I$1) ->  | G14: =IF($F14="","",ROUND(1/(1+$F14)^($B14/360),$I$1)) -> 
A15: 1Y | B15: =B14 -> 360 | C15: ='INPUT RENTEVOETEN'!F14 -> -0.0029 | D15: =cspline($B$2:$B$47,$C$2:$C$47,$B15,$K$1,$I$1,TRUE) ->  | F15: =ROUND((1+$D15*$B15/360)^(360/$B15)-1,$I$1) -> 
A16: 2Y | B16: =B15+360 -> 720 | C16: =IF(ISNA(MATCH($B16,'INPUT RENTEVOETEN'!$G$10:$G$28,0)),"",INDIRECT("'INPUT RENTEVOETEN'!F"&MATCH($B16,'INPUT RENTEVOETEN'!$G$10:$G$28,0)+9)) -> -0.00156 | D16: =cspline($B$2:$B$47,$C$2:$C$47,$B16,$K$1,$I$1,$J$1) ->  | F16: =IF(OR(F15="",($D16*SUM(G$15:G15))>1),"",ROUND(((1+$D16)/(1-($D16*SUM(G$15:G15))))^(360/$B16)-1,$I$1)) -> 
A17: 3Y | B17: =B16+360 -> 1080 | C17: =IF(ISNA(MATCH($B17,'INPUT RENTEVOETEN'!$G$10:$G$28,0)),"",INDIRECT("'INPUT RENTEVOETEN'!F"&MATCH($B17,'INPUT RENTEVOETEN'!$G$10:$G$28,0)+9)) -> -0.00057 | D17: =cspline($B$2:$B$47,$C$2:$C$47,$B17,$K$1,$I$1,$J$1) ->  | F17: =IF(OR(F16="",($D17*SUM(G$15:G16))>1),"",ROUND(((1+$D17)/(1-($D17*SUM(G$15:G16))))^(360/$B17)-1,$I$1)) -> 
A18: 4Y | B18: 1440 | C18: =IF(ISNA(MATCH($B18,'INPUT RENTEVOETEN'!$G$10:$G$28,0)),"",INDIRECT("'INPUT RENTEVOETEN'!F"&MATCH($B18,'INPUT RENTEVOETEN'!$G$10:$G$28,0)+9)) -> 0.00062 | F18: =IF(OR(F17="",($D18*SUM(G$15:G17))>1),"",ROUND(((1+$D18)/(1-($D18*SUM(G$15:G17))))^(360/$B18)-1,$I$1)) -> 
A19: 5Y | B19: 1800 | C19: =IF(ISNA(MATCH($B19,'INPUT RENTEVOETEN'!$G$10:$G$28,0)),"",INDIRECT("'INPUT RENTEVOETEN'!F"&MATCH($B19,'INPUT RENTEVOETEN'!$G$10:$G$28,0)+9)) -> 0.00188 | F19: =IF(OR(F18="",($D19*SUM(G$15:G18))>1),"",ROUND(((1+$D19)/(1-($D19*SUM(G$15:G18))))^(360/$B19)-1,$I$1)) -> 
A20: 6Y | B20: =B19+360 -> 2160 | C20: =IF(ISNA(MATCH($B20,'INPUT RENTEVOETEN'!$G$10:$G$28,0)),"",INDIRECT("'INPUT RENTEVOETEN'!F"&MATCH($B20,'INPUT RENTEVOETEN'!$G$10:$G$28,0)+9)) -> 0.00317 | F20: =IF(OR(F19="",($D20*SUM(G$15:G19))>1),"",ROUND(((1+$D20)/(1-($D20*SUM(G$15:G19))))^(360/$B20)-1,$I$1)) -> 
A21: 7Y | B21: 2520 | C21: =IF(ISNA(MATCH($B21,'INPUT RENTEVOETEN'!$G$10:$G$28,0)),"",INDIRECT("'INPUT RENTEVOETEN'!F"&MATCH($B21,'INPUT RENTEVOETEN'!$G$10:$G$28,0)+9)) -> 0.00443 | F21: =IF(OR(F20="",($D21*SUM(G$15:G20))>1),"",ROUND(((1+$D21)/(1-($D21*SUM(G$15:G20))))^(360/$B21)-1,$I$1)) -> 
A22: 8Y | B22: 2880 | C22: =IF(ISNA(MATCH($B22,'INPUT RENTEVOETEN'!$G$10:$G$28,0)),"",INDIRECT("'INPUT RENTEVOETEN'!F"&MATCH($B22,'INPUT RENTEVOETEN'!$G$10:$G$28,0)+9)) -> 0.00564 | F22: =IF(OR(F21="",($D22*SUM(G$15:G21))>1),"",ROUND(((1+$D22)/(1-($D22*SUM(G$15:G21))))^(360/$B22)-1,$I$1)) -> 
A23: 9Y | B23: 3240 | C23: =IF(ISNA(MATCH($B23,'INPUT RENTEVOETEN'!$G$10:$G$28,0)),"",INDIRECT("'INPUT RENTEVOETEN'!F"&MATCH($B23,'INPUT RENTEVOETEN'!$G$10:$G$28,0)+9)) -> 0.00677 | F23: =IF(OR(F22="",($D23*SUM(G$15:G22))>1),"",ROUND(((1+$D23)/(1-($D23*SUM(G$15:G22))))^(360/$B23)-1,$I$1)) -> 
A24: 10Y | B24: 3600 | C24: =IF(ISNA(MATCH($B24,'INPUT RENTEVOETEN'!$G$10:$G$28,0)),"",INDIRECT("'INPUT RENTEVOETEN'!F"&MATCH($B24,'INPUT RENTEVOETEN'!$G$10:$G$28,0)+9)) -> 0.00778 | F24: =IF(OR(F23="",($D24*SUM(G$15:G23))>1),"",ROUND(((1+$D24)/(1-($D24*SUM(G$15:G23))))^(360/$B24)-1,$I$1)) -> 
A25: 11Y | B25: 3960 | C25: =IF(ISNA(MATCH($B25,'INPUT RENTEVOETEN'!$G$10:$G$28,0)),"",INDIRECT("'INPUT RENTEVOETEN'!F"&MATCH($B25,'INPUT RENTEVOETEN'!$G$10:$G$28,0)+9)) ->  | F25: =IF(OR(F24="",($D25*SUM(G$15:G24))>1),"",ROUND(((1+$D25)/(1-($D25*SUM(G$15:G24))))^(360/$B25)-1,$I$1)) -> 
A26: 12Y | B26: 4320 | C26: =IF(ISNA(MATCH($B26,'INPUT RENTEVOETEN'!$G$10:$G$28,0)),"",INDIRECT("'INPUT RENTEVOETEN'!F"&MATCH($B26,'INPUT RENTEVOETEN'!$G$10:$G$28,0)+9)) -> 0.00953 | F26: =IF(OR(F25="",($D26*SUM(G$15:G25))>1),"",ROUND(((1+$D26)/(1-($D26*SUM(G$15:G25))))^(360/$B26)-1,$I$1)) -> 
A27: 13Y | B27: 4680 | C27: =IF(ISNA(MATCH($B27,'INPUT RENTEVOETEN'!$G$10:$G$28,0)),"",INDIRECT("'INPUT RENTEVOETEN'!F"&MATCH($B27,'INPUT RENTEVOETEN'!$G$10:$G$28,0)+9)) ->  | F27: =IF(OR(F26="",($D27*SUM(G$15:G26))>1),"",ROUND(((1+$D27)/(1-($D27*SUM(G$15:G26))))^(360/$B27)-1,$I$1)) -> 
A28: 14Y | B28: 5040 | C28: =IF(ISNA(MATCH($B28,'INPUT RENTEVOETEN'!$G$10:$G$28,0)),"",INDIRECT("'INPUT RENTEVOETEN'!F"&MATCH($B28,'INPUT RENTEVOETEN'!$G$10:$G$28,0)+9)) ->  | D28: =cspline($B$2:$B$47,$C$2:$C$47,$B28,$K$1,$I$1,$J$1) ->  | F28: =IF(OR(F27="",($D28*SUM(G$15:G27))>1),"",ROUND(((1+$D28)/(1-($D28*SUM(G$15:G27))))^(360/$B28)-1,$I$1)) -> 
A29: 15Y | B29: 5400 | C29: =IF(ISNA(MATCH($B29,'INPUT RENTEVOETEN'!$G$10:$G$28,0)),"",INDIRECT("'INPUT RENTEVOETEN'!F"&MATCH($B29,'INPUT RENTEVOETEN'!$G$10:$G$28,0)+9)) -> 0.01141 | F29: =IF(OR(F28="",($D29*SUM(G$15:G28))>1),"",ROUND(((1+$D29)/(1-($D29*SUM(G$15:G28))))^(360/$B29)-1,$I$1)) -> 
A30: 16Y | B30: 5760 | C30: =IF(ISNA(MATCH($B30,'INPUT RENTEVOETEN'!$G$10:$G$28,0)),"",INDIRECT("'INPUT RENTEVOETEN'!F"&MATCH($B30,'INPUT RENTEVOETEN'!$G$10:$G$28,0)+9)) ->  | F30: =IF(OR(F29="",($D30*SUM(G$15:G29))>1),"",ROUND(((1+$D30)/(1-($D30*SUM(G$15:G29))))^(360/$B30)-1,$I$1)) -> 
A31: 17Y | B31: 6120 | C31: =IF(ISNA(MATCH($B31,'INPUT RENTEVOETEN'!$G$10:$G$28,0)),"",INDIRECT("'INPUT RENTEVOETEN'!F"&MATCH($B31,'INPUT RENTEVOETEN'!$G$10:$G$28,0)+9)) ->  | F31: =IF(OR(F30="",($D31*SUM(G$15:G30))>1),"",ROUND(((1+$D31)/(1-($D31*SUM(G$15:G30))))^(360/$B31)-1,$I$1)) -> 
A32: 18Y | B32: 6480 | C32: =IF(ISNA(MATCH($B32,'INPUT RENTEVOETEN'!$G$10:$G$28,0)),"",INDIRECT("'INPUT RENTEVOETEN'!F"&MATCH($B32,'INPUT RENTEVOETEN'!$G$10:$G$28,0)+9)) ->  | F32: =IF(OR(F31="",($D32*SUM(G$15:G31))>1),"",ROUND(((1+$D32)/(1-($D32*SUM(G$15:G31))))^(360/$B32)-1,$I$1)) -> 
A33: 19Y | B33: 6840 | C33: =IF(ISNA(MATCH($B33,'INPUT RENTEVOETEN'!$G$10:$G$28,0)),"",INDIRECT("'INPUT RENTEVOETEN'!F"&MATCH($B33,'INPUT RENTEVOETEN'!$G$10:$G$28,0)+9)) ->  | F33: =IF(OR(F32="",($D33*SUM(G$15:G32))>1),"",ROUND(((1+$D33)/(1-($D33*SUM(G$15:G32))))^(360/$B33)-1,$I$1)) -> 
A34: 20Y | B34: 7200 | C34: =IF(ISNA(MATCH($B34,'INPUT RENTEVOETEN'!$G$10:$G$28,0)),"",INDIRECT("'INPUT RENTEVOETEN'!F"&MATCH($B34,'INPUT RENTEVOETEN'!$G$10:$G$28,0)+9)) -> 0.01303 | F34: =IF(OR(F33="",($D34*SUM(G$15:G33))>1),"",ROUND(((1+$D34)/(1-($D34*SUM(G$15:G33))))^(360/$B34)-1,$I$1)) -> 
A35: 21Y | B35: 7560 | C35: =IF(ISNA(MATCH($B35,'INPUT RENTEVOETEN'!$G$10:$G$28,0)),"",INDIRECT("'INPUT RENTEVOETEN'!F"&MATCH($B35,'INPUT RENTEVOETEN'!$G$10:$G$28,0)+9)) ->  | F35: =IF(OR(F34="",($D35*SUM(G$15:G34))>1),"",ROUND(((1+$D35)/(1-($D35*SUM(G$15:G34))))^(360/$B35)-1,$I$1)) -> 
A36: 22Y | B36: 7920 | C36: =IF(ISNA(MATCH($B36,'INPUT RENTEVOETEN'!$G$10:$G$28,0)),"",INDIRECT("'INPUT RENTEVOETEN'!F"&MATCH($B36,'INPUT RENTEVOETEN'!$G$10:$G$28,0)+9)) ->  | F36: =IF(OR(F35="",($D36*SUM(G$15:G35))>1),"",ROUND(((1+$D36)/(1-($D36*SUM(G$15:G35))))^(360/$B36)-1,$I$1)) -> 
A37: 23Y | B37: 8280 | C37: =IF(ISNA(MATCH($B37,'INPUT RENTEVOETEN'!$G$10:$G$28,0)),"",INDIRECT("'INPUT RENTEVOETEN'!F"&MATCH($B37,'INPUT RENTEVOETEN'!$G$10:$G$28,0)+9)) ->  | F37: =IF(OR(F36="",($D37*SUM(G$15:G36))>1),"",ROUND(((1+$D37)/(1-($D37*SUM(G$15:G36))))^(360/$B37)-1,$I$1)) -> 
A38: 24Y | B38: 8640 | C38: =IF(ISNA(MATCH($B38,'INPUT RENTEVOETEN'!$G$10:$G$28,0)),"",INDIRECT("'INPUT RENTEVOETEN'!F"&MATCH($B38,'INPUT RENTEVOETEN'!$G$10:$G$28,0)+9)) ->  | F38: =IF(OR(F37="",($D38*SUM(G$15:G37))>1),"",ROUND(((1+$D38)/(1-($D38*SUM(G$15:G37))))^(360/$B38)-1,$I$1)) -> 
A39: 25Y | B39: 9000 | C39: =IF(ISNA(MATCH($B39,'INPUT RENTEVOETEN'!$G$10:$G$28,0)),"",INDIRECT("'INPUT RENTEVOETEN'!F"&MATCH($B39,'INPUT RENTEVOETEN'!$G$10:$G$28,0)+9)) -> 0.01353 | F39: =IF(OR(F38="",($D39*SUM(G$15:G38))>1),"",ROUND(((1+$D39)/(1-($D39*SUM(G$15:G38))))^(360/$B39)-1,$I$1)) -> 
A40: 26Y | B40: 9360 | C40: =IF(ISNA(MATCH($B40,'INPUT RENTEVOETEN'!$G$10:$G$28,0)),"",INDIRECT("'INPUT RENTEVOETEN'!F"&MATCH($B40,'INPUT RENTEVOETEN'!$G$10:$G$28,0)+9)) ->  | F40: =IF(OR(F39="",($D40*SUM(G$15:G39))>1),"",ROUND(((1+$D40)/(1-($D40*SUM(G$15:G39))))^(360/$B40)-1,$I$1)) -> 
A41: 27Y | B41: 9720 | C41: =IF(ISNA(MATCH($B41,'INPUT RENTEVOETEN'!$G$10:$G$28,0)),"",INDIRECT("'INPUT RENTEVOETEN'!F"&MATCH($B41,'INPUT RENTEVOETEN'!$G$10:$G$28,0)+9)) ->  | F41: =IF(OR(F40="",($D41*SUM(G$15:G40))>1),"",ROUND(((1+$D41)/(1-($D41*SUM(G$15:G40))))^(360/$B41)-1,$I$1)) -> 
A42: 28Y | B42: 10080 | C42: =IF(ISNA(MATCH($B42,'INPUT RENTEVOETEN'!$G$10:$G$28,0)),"",INDIRECT("'INPUT RENTEVOETEN'!F"&MATCH($B42,'INPUT RENTEVOETEN'!$G$10:$G$28,0)+9)) ->  | F42: =IF(OR(F41="",($D42*SUM(G$15:G41))>1),"",ROUND(((1+$D42)/(1-($D42*SUM(G$15:G41))))^(360/$B42)-1,$I$1)) -> 
A43: 29Y | B43: 10440 | C43: =IF(ISNA(MATCH($B43,'INPUT RENTEVOETEN'!$G$10:$G$28,0)),"",INDIRECT("'INPUT RENTEVOETEN'!F"&MATCH($B43,'INPUT RENTEVOETEN'!$G$10:$G$28,0)+9)) ->  | F43: =IF(OR(F42="",($D43*SUM(G$15:G42))>1),"",ROUND(((1+$D43)/(1-($D43*SUM(G$15:G42))))^(360/$B43)-1,$I$1)) -> 
A44: 30Y | B44: 10800 | C44: =IF(ISNA(MATCH($B44,'INPUT RENTEVOETEN'!$G$10:$G$28,0)),"",INDIRECT("'INPUT RENTEVOETEN'!F"&MATCH($B44,'INPUT RENTEVOETEN'!$G$10:$G$28,0)+9)) -> 0.01362 | F44: =IF(OR(F43="",($D44*SUM(G$15:G43))>1),"",ROUND(((1+$D44)/(1-($D44*SUM(G$15:G43))))^(360/$B44)-1,$I$1)) -> 
A45: 31Y | B45: 11160 | C45: =IF(ISNA(MATCH($B45,'INPUT RENTEVOETEN'!$G$10:$G$28,0)),"",INDIRECT("'INPUT RENTEVOETEN'!F"&MATCH($B45,'INPUT RENTEVOETEN'!$G$10:$G$28,0)+9)) ->  | D45: =cspline($B$2:$B$47,$C$2:$C$47,$B45,$K$1,$I$1,$J$1) ->  | F45: =IF(OR(F44="",($D45*SUM(G$15:G44))>1),"",ROUND(((1+$D45)/(1-($D45*SUM(G$15:G44))))^(360/$B45)-1,$I$1)) -> 
A46: 32Y | B46: 11520 | C46: =IF(ISNA(MATCH($B46,'INPUT RENTEVOETEN'!$G$10:$G$28,0)),"",INDIRECT("'INPUT RENTEVOETEN'!F"&MATCH($B46,'INPUT RENTEVOETEN'!$G$10:$G$28,0)+9)) ->  | F46: =IF(OR(F45="",($D46*SUM(G$15:G45))>1),"",ROUND(((1+$D46)/(1-($D46*SUM(G$15:G45))))^(360/$B46)-1,$I$1)) -> 
A47: 33Y | B47: 11880 | C47: =IF(ISNA(MATCH($B47,'INPUT RENTEVOETEN'!$G$10:$G$28,0)),"",INDIRECT("'INPUT RENTEVOETEN'!F"&MATCH($B47,'INPUT RENTEVOETEN'!$G$10:$G$28,0)+9)) ->  | D47: =cspline($B$2:$B$47,$C$2:$C$47,$B47,$K$1,$I$1,$J$1) ->  | F47: =IF(OR(F46="",($D47*SUM(G$15:G46))>1),"",ROUND(((1+$D47)/(1-($D47*SUM(G$15:G46))))^(360/$B47)-1,$I$1)) -> 

Sheet Rentevoet analyse (hidden)
A1: Month/Years | B1: nDays360 | C1: Rates360 | D1: Missing tenors | F1: ZC | G1: DF | I1: 8 | J1: TRUE | K1: C | R1: P | S1: C | T1: L | Y1: P | Z1: C | AA1: L
A2: 0D | B2: 0 | C2: =IF(ISNA(MATCH($B2,'INPUT RENTEVOETEN'!$G$10:$G$28,0)),"",INDIRECT("'INPUT RENTEVOETEN'!F"&MATCH($B2,'INPUT RENTEVOETEN'!$G$10:$G$28,0)+9)) ->  | D2: =D3-(D4-D3) ->  | F2: =D2 ->  | G2: =IF($F2="","",ROUND(1/(1+$F2)^($B2/360),$I$1)) ->  | Q2: Days | R2: Published | S2: Cubic | T2: Linear | U2: Delta C-L | X2: Days | Y2: Published | Z2: Cubic | AA2: Linear | AB2: Delta C-L
A3: =IF(B3<360,B3/30&"M",B3/360&"Y") -> 1M | B3: 30 | C3: =IF(ISNA(MATCH($B3,'INPUT RENTEVOETEN'!$G$10:$G$28,0)),"",INDIRECT("'INPUT RENTEVOETEN'!F"&MATCH($B3,'INPUT RENTEVOETEN'!$G$10:$G$28,0)+9)) -> -0.00373 | D3: =cspline($B$2:$B$47,$C$2:$C$47,$B3,$K$1,$I$1,$J$1) ->  | F3: =ROUND((1+$D3*$B3/360)^(360/$B3)-1,$I$1) ->  | G3: =IF($F3="","",ROUND(1/(1+$F3)^($B3/360),$I$1)) ->  | Q3: 0 | R3: =C3 -> -0.00373 | S3: =cspline($Q$3:$Q$146,$R$3:$R$146,$Q3,S$1,5) ->  | U3: =S3-T3 ->  | V3: =IF($Q3<360,IF(MOD($Q3,60)=0,$Q3/30&" M",""),IF(MOD($Q3-360,720)=0,$Q3/360&" Y","")) -> 0 M | X3: 0 | Y3: =D2 ->  | Z3: =cspline($X$3:$X$112,$Y$3:$Y$112,$X3,Z$1,5,$J$1) ->  | AA3: =cspline($X$3:$X$112,$Y$3:$Y$112,$X3,AA$1,5,$J$1) ->  | AB3: =Z3-AA3 ->  | AC3: =IF(MOD($X3,30)=0,$X3/30&" M","") -> 0 M
A4: =IF(B4<360,B4/30&"M",B4/360&"Y") -> 2M | B4: =B3+30 -> 60 | C4: =IF(ISNA(MATCH($B4,'INPUT RENTEVOETEN'!$G$10:$G$28,0)),"",INDIRECT("'INPUT RENTEVOETEN'!F"&MATCH($B4,'INPUT RENTEVOETEN'!$G$10:$G$28,0)+9)) ->  | D4: =cspline($B$2:$B$47,$C$2:$C$47,$B4,$K$1,$I$1,$J$1) ->  | F4: =ROUND((1+$D4*$B4/360)^(360/$B4)-1,$I$1) ->  | G4: =IF($F4="","",ROUND(1/(1+$F4)^($B4/360),$I$1)) ->  | Q4: =Q3+IF(Q3>=360,90,15) -> 15 | R4: =IF(ISNA(MATCH(Q4,$B$1:$B$47,0)),"",INDIRECT("C"&MATCH(Q4,$B$1:$B$47,0))) ->  | U4: =S4-T4 ->  | V4: =IF($Q4<360,IF(MOD($Q4,60)=0,$Q4/30&" M",""),IF(MOD($Q4-360,720)=0,$Q4/360&" Y","")) ->  | X4: =X3+10 -> 10 | Y4: =IF(ISNA(MATCH(X4,$B$1:$B$47,0)),"",INDIRECT("C"&MATCH(X4,$B$1:$B$47,0))) ->  | Z4: =cspline($X$3:$X$112,$Y$3:$Y$112,$X4,Z$1,5,$J$1) ->  | AB4: =Z4-AA4 ->  | AC4: =IF(MOD($X4,30)=0,$X4/30&" M","") -> 
A5: 3M | B5: =B4+30 -> 90 | C5: =IF(ISNA(MATCH($B5,'INPUT RENTEVOETEN'!$G$10:$G$28,0)),"",INDIRECT("'INPUT RENTEVOETEN'!F"&MATCH($B5,'INPUT RENTEVOETEN'!$G$10:$G$28,0)+9)) -> -0.00312 | Q5: =Q4+IF(Q4>=360,90,15) -> 30 | R5: -0.00373 | X5: =X4+10 -> 20 | AB5: =Z5-AA5 -> 
A6: 4M | B6: 120 | C6: =IF(ISNA(MATCH($B6,'INPUT RENTEVOETEN'!$G$10:$G$28,0)),"",INDIRECT("'INPUT RENTEVOETEN'!F"&MATCH($B6,'INPUT RENTEVOETEN'!$G$10:$G$28,0)+9)) ->  | Q6: 45 | X6: 30 | Y6: -0.00373 | AC6: 1 M
A7: 5M | B7: 150 | C7: =IF(ISNA(MATCH($B7,'INPUT RENTEVOETEN'!$G$10:$G$28,0)),"",INDIRECT("'INPUT RENTEVOETEN'!F"&MATCH($B7,'INPUT RENTEVOETEN'!$G$10:$G$28,0)+9)) ->  | Q7: 60 | V7: 2 M | X7: 40
A8: 6M | B8: 180 | C8: =IF(ISNA(MATCH($B8,'INPUT RENTEVOETEN'!$G$10:$G$28,0)),"",INDIRECT("'INPUT RENTEVOETEN'!F"&MATCH($B8,'INPUT RENTEVOETEN'!$G$10:$G$28,0)+9)) -> -0.0024 | Q8: 75 | X8: 50
A9: 7M | B9: 210 | C9: =IF(ISNA(MATCH($B9,'INPUT RENTEVOETEN'!$G$10:$G$28,0)),"",INDIRECT("'INPUT RENTEVOETEN'!F"&MATCH($B9,'INPUT RENTEVOETEN'!$G$10:$G$28,0)+9)) ->  | Q9: 90 | R9: -0.00312 | X9: 60 | AC9: 2 M
A10: 8M | B10: 240 | C10: =IF(ISNA(MATCH($B10,'INPUT RENTEVOETEN'!$G$10:$G$28,0)),"",INDIRECT("'INPUT RENTEVOETEN'!F"&MATCH($B10,'INPUT RENTEVOETEN'!$G$10:$G$28,0)+9)) ->  | Q10: 105 | X10: 70
A11: 9M | B11: 270 | C11: =IF(ISNA(MATCH($B11,'INPUT RENTEVOETEN'!$G$10:$G$28,0)),"",INDIRECT("'INPUT RENTEVOETEN'!F"&MATCH($B11,'INPUT RENTEVOETEN'!$G$10:$G$28,0)+9)) ->  | Q11: 120 | V11: 4 M | X11: 80
A12: 10M | B12: 300 | C12: =IF(ISNA(MATCH($B12,'INPUT RENTEVOETEN'!$G$10:$G$28,0)),"",INDIRECT("'INPUT RENTEVOETEN'!F"&MATCH($B12,'INPUT RENTEVOETEN'!$G$10:$G$28,0)+9)) ->  | Q12: 135 | X12: 90 | Y12: -0.00312 | AC12: 3 M
A13: 11M | B13: 330 | C13: =IF(ISNA(MATCH($B13,'INPUT RENTEVOETEN'!$G$10:$G$28,0)),"",INDIRECT("'INPUT RENTEVOETEN'!F"&MATCH($B13,'INPUT RENTEVOETEN'!$G$10:$G$28,0)+9)) ->  | Q13: 150 | X13: 100
A14: 12M | B14: =B13+30 -> 360 | C14: ='INPUT RENTEVOETEN'!F13 -> -0.00118 | D14: =cspline($B$2:$B$47,$C$2:$C$47,$B14,$K$1,$I$1,$J$1) ->  | Q14: 165 | X14: 110
A15: 1Y | B15: =B14 -> 360 | C15: ='INPUT RENTEVOETEN'!F14 -> -0.0029 | D15: =cspline($B$2:$B$47,$C$2:$C$47,$B15,$K$1,$I$1,$J$1) ->  | Q15: 180 | R15: -0.0024 | V15: 6 M | X15: 120 | AC15: 4 M
A16: 2Y | B16: =B15+360 -> 720 | C16: =IF(ISNA(MATCH($B16,'INPUT RENTEVOETEN'!$G$10:$G$28,0)),"",INDIRECT("'INPUT RENTEVOETEN'!F"&MATCH($B16,'INPUT RENTEVOETEN'!$G$10:$G$28,0)+9)) -> -0.00156 | D16: =cspline($B$2:$B$47,$C$2:$C$47,$B16,$K$1,$I$1,$J$1) ->  | F16: =IF(OR(F15="",($D16*SUM(G$15:G15))>1),"",ROUND(((1+$D16)/(1-($D16*SUM(G$15:G15))))^(360/$B16)-1,$I$1)) ->  | Q16: 195 | X16: 130
A17: 3Y | B17: =B16+360 -> 1080 | C17: =IF(ISNA(MATCH($B17,'INPUT RENTEVOETEN'!$G$10:$G$28,0)),"",INDIRECT("'INPUT RENTEVOETEN'!F"&MATCH($B17,'INPUT RENTEVOETEN'!$G$10:$G$28,0)+9)) -> -0.00057 | D17: =cspline($B$2:$B$47,$C$2:$C$47,$B17,$K$1,$I$1,$J$1) ->  | F17: =IF(OR(F16="",($D17*SUM(G$15:G16))>1),"",ROUND(((1+$D17)/(1-($D17*SUM(G$15:G16))))^(360/$B17)-1,$I$1)) ->  | Q17: 210 | X17: 140
A18: 4Y | B18: 1440 | C18: =IF(ISNA(MATCH($B18,'INPUT RENTEVOETEN'!$G$10:$G$28,0)),"",INDIRECT("'INPUT RENTEVOETEN'!F"&MATCH($B18,'INPUT RENTEVOETEN'!$G$10:$G$28,0)+9)) -> 0.00062 | F18: =IF(OR(F17="",($D18*SUM(G$15:G17))>1),"",ROUND(((1+$D18)/(1-($D18*SUM(G$15:G17))))^(360/$B18)-1,$I$1)) ->  | Q18: 225 | X18: 150 | AC18: 5 M
A19: 5Y | B19: 1800 | C19: =IF(ISNA(MATCH($B19,'INPUT RENTEVOETEN'!$G$10:$G$28,0)),"",INDIRECT("'INPUT RENTEVOETEN'!F"&MATCH($B19,'INPUT RENTEVOETEN'!$G$10:$G$28,0)+9)) -> 0.00188 | F19: =IF(OR(F18="",($D19*SUM(G$15:G18))>1),"",ROUND(((1+$D19)/(1-($D19*SUM(G$15:G18))))^(360/$B19)-1,$I$1)) ->  | Q19: 240 | V19: 8 M | X19: 160
A20: 6Y | B20: 2160 | C20: =IF(ISNA(MATCH($B20,'INPUT RENTEVOETEN'!$G$10:$G$28,0)),"",INDIRECT("'INPUT RENTEVOETEN'!F"&MATCH($B20,'INPUT RENTEVOETEN'!$G$10:$G$28,0)+9)) -> 0.00317 | F20: =IF(OR(F19="",($D20*SUM(G$15:G19))>1),"",ROUND(((1+$D20)/(1-($D20*SUM(G$15:G19))))^(360/$B20)-1,$I$1)) ->  | Q20: 255 | X20: 170
A21: 7Y | B21: 2520 | C21: =IF(ISNA(MATCH($B21,'INPUT RENTEVOETEN'!$G$10:$G$28,0)),"",INDIRECT("'INPUT RENTEVOETEN'!F"&MATCH($B21,'INPUT RENTEVOETEN'!$G$10:$G$28,0)+9)) -> 0.00443 | F21: =IF(OR(F20="",($D21*SUM(G$15:G20))>1),"",ROUND(((1+$D21)/(1-($D21*SUM(G$15:G20))))^(360/$B21)-1,$I$1)) ->  | Q21: 270 | X21: 180 | Y21: -0.0024 | AC21: 6 M
A22: 8Y | B22: 2880 | C22: =IF(ISNA(MATCH($B22,'INPUT RENTEVOETEN'!$G$10:$G$28,0)),"",INDIRECT("'INPUT RENTEVOETEN'!F"&MATCH($B22,'INPUT RENTEVOETEN'!$G$10:$G$28,0)+9)) -> 0.00564 | F22: =IF(OR(F21="",($D22*SUM(G$15:G21))>1),"",ROUND(((1+$D22)/(1-($D22*SUM(G$15:G21))))^(360/$B22)-1,$I$1)) ->  | Q22: 285 | X22: 190
A23: 9Y | B23: 3240 | C23: =IF(ISNA(MATCH($B23,'INPUT RENTEVOETEN'!$G$10:$G$28,0)),"",INDIRECT("'INPUT RENTEVOETEN'!F"&MATCH($B23,'INPUT RENTEVOETEN'!$G$10:$G$28,0)+9)) -> 0.00677 | F23: =IF(OR(F22="",($D23*SUM(G$15:G22))>1),"",ROUND(((1+$D23)/(1-($D23*SUM(G$15:G22))))^(360/$B23)-1,$I$1)) ->  | Q23: 300 | S23: =cspline($Q$3:$Q$146,$R$3:$R$146,$Q23,S$1,5) ->  | V23: 10 M | X23: 200
A24: 10Y | B24: 3600 | C24: =IF(ISNA(MATCH($B24,'INPUT RENTEVOETEN'!$G$10:$G$28,0)),"",INDIRECT("'INPUT RENTEVOETEN'!F"&MATCH($B24,'INPUT RENTEVOETEN'!$G$10:$G$28,0)+9)) -> 0.00778 | F24: =IF(OR(F23="",($D24*SUM(G$15:G23))>1),"",ROUND(((1+$D24)/(1-($D24*SUM(G$15:G23))))^(360/$B24)-1,$I$1)) ->  | Q24: 315 | X24: 210 | AC24: 7 M
A25: 11Y | B25: 3960 | C25: =IF(ISNA(MATCH($B25,'INPUT RENTEVOETEN'!$G$10:$G$28,0)),"",INDIRECT("'INPUT RENTEVOETEN'!F"&MATCH($B25,'INPUT RENTEVOETEN'!$G$10:$G$28,0)+9)) ->  | F25: =IF(OR(F24="",($D25*SUM(G$15:G24))>1),"",ROUND(((1+$D25)/(1-($D25*SUM(G$15:G24))))^(360/$B25)-1,$I$1)) ->  | Q25: 330 | X25: 220
A26: 12Y | B26: 4320 | C26: =IF(ISNA(MATCH($B26,'INPUT RENTEVOETEN'!$G$10:$G$28,0)),"",INDIRECT("'INPUT RENTEVOETEN'!F"&MATCH($B26,'INPUT RENTEVOETEN'!$G$10:$G$28,0)+9)) -> 0.00953 | F26: =IF(OR(F25="",($D26*SUM(G$15:G25))>1),"",ROUND(((1+$D26)/(1-($D26*SUM(G$15:G25))))^(360/$B26)-1,$I$1)) ->  | Q26: 345 | X26: 230
A27: 13Y | B27: 4680 | C27: =IF(ISNA(MATCH($B27,'INPUT RENTEVOETEN'!$G$10:$G$28,0)),"",INDIRECT("'INPUT RENTEVOETEN'!F"&MATCH($B27,'INPUT RENTEVOETEN'!$G$10:$G$28,0)+9)) ->  | F27: =IF(OR(F26="",($D27*SUM(G$15:G26))>1),"",ROUND(((1+$D27)/(1-($D27*SUM(G$15:G26))))^(360/$B27)-1,$I$1)) ->  | Q27: =Q26+IF(Q26>=360,90,15) -> 360 | R27: =C14 -> -0.00118 | V27: 1 Y | X27: 240 | AC27: 8 M
A28: 14Y | B28: 5040 | C28: =IF(ISNA(MATCH($B28,'INPUT RENTEVOETEN'!$G$10:$G$28,0)),"",INDIRECT("'INPUT RENTEVOETEN'!F"&MATCH($B28,'INPUT RENTEVOETEN'!$G$10:$G$28,0)+9)) ->  | D28: =cspline($B$2:$B$47,$C$2:$C$47,$B28,$K$1,$I$1,$J$1) ->  | F28: =IF(OR(F27="",($D28*SUM(G$15:G27))>1),"",ROUND(((1+$D28)/(1-($D28*SUM(G$15:G27))))^(360/$B28)-1,$I$1)) ->  | Q28: =Q27 -> 360 | R28: =C15 -> -0.0029 | V28: 1 Y | X28: 250
A29: 15Y | B29: 5400 | C29: =IF(ISNA(MATCH($B29,'INPUT RENTEVOETEN'!$G$10:$G$28,0)),"",INDIRECT("'INPUT RENTEVOETEN'!F"&MATCH($B29,'INPUT RENTEVOETEN'!$G$10:$G$28,0)+9)) -> 0.01141 | F29: =IF(OR(F28="",($D29*SUM(G$15:G28))>1),"",ROUND(((1+$D29)/(1-($D29*SUM(G$15:G28))))^(360/$B29)-1,$I$1)) ->  | Q29: =Q28+IF(Q28>=360,90,15) -> 450 | R29: =IF(ISNA(MATCH(Q29,$B$1:$B$47,0)),"",INDIRECT("C"&MATCH(Q29,$B$1:$B$47,0))) ->  | X29: 260
A30: 16Y | B30: 5760 | C30: =IF(ISNA(MATCH($B30,'INPUT RENTEVOETEN'!$G$10:$G$28,0)),"",INDIRECT("'INPUT RENTEVOETEN'!F"&MATCH($B30,'INPUT RENTEVOETEN'!$G$10:$G$28,0)+9)) ->  | F30: =IF(OR(F29="",($D30*SUM(G$15:G29))>1),"",ROUND(((1+$D30)/(1-($D30*SUM(G$15:G29))))^(360/$B30)-1,$I$1)) ->  | Q30: 540 | X30: 270 | AC30: 9 M
A31: 17Y | B31: 6120 | C31: =IF(ISNA(MATCH($B31,'INPUT RENTEVOETEN'!$G$10:$G$28,0)),"",INDIRECT("'INPUT RENTEVOETEN'!F"&MATCH($B31,'INPUT RENTEVOETEN'!$G$10:$G$28,0)+9)) ->  | F31: =IF(OR(F30="",($D31*SUM(G$15:G30))>1),"",ROUND(((1+$D31)/(1-($D31*SUM(G$15:G30))))^(360/$B31)-1,$I$1)) ->  | Q31: 630 | X31: 280
A32: 18Y | B32: 6480 | C32: =IF(ISNA(MATCH($B32,'INPUT RENTEVOETEN'!$G$10:$G$28,0)),"",INDIRECT("'INPUT RENTEVOETEN'!F"&MATCH($B32,'INPUT RENTEVOETEN'!$G$10:$G$28,0)+9)) ->  | F32: =IF(OR(F31="",($D32*SUM(G$15:G31))>1),"",ROUND(((1+$D32)/(1-($D32*SUM(G$15:G31))))^(360/$B32)-1,$I$1)) ->  | Q32: 720 | R32: -0.00156 | X32: 290
A33: 19Y | B33: 6840 | C33: =IF(ISNA(MATCH($B33,'INPUT RENTEVOETEN'!$G$10:$G$28,0)),"",INDIRECT("'INPUT RENTEVOETEN'!F"&MATCH($B33,'INPUT RENTEVOETEN'!$G$10:$G$28,0)+9)) ->  | F33: =IF(OR(F32="",($D33*SUM(G$15:G32))>1),"",ROUND(((1+$D33)/(1-($D33*SUM(G$15:G32))))^(360/$B33)-1,$I$1)) ->  | Q33: 810 | X33: 300 | AC33: 10 M
A34: 20Y | B34: 7200 | C34: =IF(ISNA(MATCH($B34,'INPUT RENTEVOETEN'!$G$10:$G$28,0)),"",INDIRECT("'INPUT RENTEVOETEN'!F"&MATCH($B34,'INPUT RENTEVOETEN'!$G$10:$G$28,0)+9)) -> 0.01303 | F34: =IF(OR(F33="",($D34*SUM(G$15:G33))>1),"",ROUND(((1+$D34)/(1-($D34*SUM(G$15:G33))))^(360/$B34)-1,$I$1)) ->  | Q34: 900 | X34: 310
A35: 21Y | B35: 7560 | C35: =IF(ISNA(MATCH($B35,'INPUT RENTEVOETEN'!$G$10:$G$28,0)),"",INDIRECT("'INPUT RENTEVOETEN'!F"&MATCH($B35,'INPUT RENTEVOETEN'!$G$10:$G$28,0)+9)) ->  | F35: =IF(OR(F34="",($D35*SUM(G$15:G34))>1),"",ROUND(((1+$D35)/(1-($D35*SUM(G$15:G34))))^(360/$B35)-1,$I$1)) ->  | Q35: 990 | X35: 320
A36: 22Y | B36: 7920 | C36: =IF(ISNA(MATCH($B36,'INPUT RENTEVOETEN'!$G$10:$G$28,0)),"",INDIRECT("'INPUT RENTEVOETEN'!F"&MATCH($B36,'INPUT RENTEVOETEN'!$G$10:$G$28,0)+9)) ->  | F36: =IF(OR(F35="",($D36*SUM(G$15:G35))>1),"",ROUND(((1+$D36)/(1-($D36*SUM(G$15:G35))))^(360/$B36)-1,$I$1)) ->  | Q36: 1080 | R36: -0.00057 | V36: 3 Y | X36: 330 | Z36: =cspline($X$3:$X$112,$Y$3:$Y$112,$X36,Z$1,5,$J$1) ->  | AC36: 11 M
A37: 23Y | B37: 8280 | C37: =IF(ISNA(MATCH($B37,'INPUT RENTEVOETEN'!$G$10:$G$28,0)),"",INDIRECT("'INPUT RENTEVOETEN'!F"&MATCH($B37,'INPUT RENTEVOETEN'!$G$10:$G$28,0)+9)) ->  | F37: =IF(OR(F36="",($D37*SUM(G$15:G36))>1),"",ROUND(((1+$D37)/(1-($D37*SUM(G$15:G36))))^(360/$B37)-1,$I$1)) ->  | Q37: 1170 | X37: 340
A38: 24Y | B38: 8640 | C38: =IF(ISNA(MATCH($B38,'INPUT RENTEVOETEN'!$G$10:$G$28,0)),"",INDIRECT("'INPUT RENTEVOETEN'!F"&MATCH($B38,'INPUT RENTEVOETEN'!$G$10:$G$28,0)+9)) ->  | F38: =IF(OR(F37="",($D38*SUM(G$15:G37))>1),"",ROUND(((1+$D38)/(1-($D38*SUM(G$15:G37))))^(360/$B38)-1,$I$1)) ->  | Q38: 1260 | X38: 350
A39: 25Y | B39: 9000 | C39: =IF(ISNA(MATCH($B39,'INPUT RENTEVOETEN'!$G$10:$G$28,0)),"",INDIRECT("'INPUT RENTEVOETEN'!F"&MATCH($B39,'INPUT RENTEVOETEN'!$G$10:$G$28,0)+9)) -> 0.01353 | F39: =IF(OR(F38="",($D39*SUM(G$15:G38))>1),"",ROUND(((1+$D39)/(1-($D39*SUM(G$15:G38))))^(360/$B39)-1,$I$1)) ->  | Q39: 1350 | X39: 360 | Y39: =C14 -> -0.00118 | AC39: 12 M
A40: 26Y | B40: 9360 | C40: =IF(ISNA(MATCH($B40,'INPUT RENTEVOETEN'!$G$10:$G$28,0)),"",INDIRECT("'INPUT RENTEVOETEN'!F"&MATCH($B40,'INPUT RENTEVOETEN'!$G$10:$G$28,0)+9)) ->  | F40: =IF(OR(F39="",($D40*SUM(G$15:G39))>1),"",ROUND(((1+$D40)/(1-($D40*SUM(G$15:G39))))^(360/$B40)-1,$I$1)) ->  | Q40: 1440 | R40: 0.00062 | X40: =X39 -> 360 | Y40: =C15 -> -0.0029 | AC40: 12 M
A41: 27Y | B41: 9720 | C41: =IF(ISNA(MATCH($B41,'INPUT RENTEVOETEN'!$G$10:$G$28,0)),"",INDIRECT("'INPUT RENTEVOETEN'!F"&MATCH($B41,'INPUT RENTEVOETEN'!$G$10:$G$28,0)+9)) ->  | F41: =IF(OR(F40="",($D41*SUM(G$15:G40))>1),"",ROUND(((1+$D41)/(1-($D41*SUM(G$15:G40))))^(360/$B41)-1,$I$1)) ->  | Q41: 1530 | X41: 370
A42: 28Y | B42: 10080 | C42: =IF(ISNA(MATCH($B42,'INPUT RENTEVOETEN'!$G$10:$G$28,0)),"",INDIRECT("'INPUT RENTEVOETEN'!F"&MATCH($B42,'INPUT RENTEVOETEN'!$G$10:$G$28,0)+9)) ->  | F42: =IF(OR(F41="",($D42*SUM(G$15:G41))>1),"",ROUND(((1+$D42)/(1-($D42*SUM(G$15:G41))))^(360/$B42)-1,$I$1)) ->  | Q42: 1620 | X42: 380
A43: 29Y | B43: 10440 | C43: =IF(ISNA(MATCH($B43,'INPUT RENTEVOETEN'!$G$10:$G$28,0)),"",INDIRECT("'INPUT RENTEVOETEN'!F"&MATCH($B43,'INPUT RENTEVOETEN'!$G$10:$G$28,0)+9)) ->  | F43: =IF(OR(F42="",($D43*SUM(G$15:G42))>1),"",ROUND(((1+$D43)/(1-($D43*SUM(G$15:G42))))^(360/$B43)-1,$I$1)) ->  | Q43: 1710 | S43: =cspline($Q$3:$Q$146,$R$3:$R$146,$Q43,S$1,5) ->  | X43: 390 | AC43: 13 M
A44: 30Y | B44: 10800 | C44: =IF(ISNA(MATCH($B44,'INPUT RENTEVOETEN'!$G$10:$G$28,0)),"",INDIRECT("'INPUT RENTEVOETEN'!F"&MATCH($B44,'INPUT RENTEVOETEN'!$G$10:$G$28,0)+9)) -> 0.01362 | F44: =IF(OR(F43="",($D44*SUM(G$15:G43))>1),"",ROUND(((1+$D44)/(1-($D44*SUM(G$15:G43))))^(360/$B44)-1,$I$1)) ->  | Q44: 1800 | R44: 0.00188 | V44: 5 Y | X44: 400
A45: 31Y | B45: 11160 | C45: =IF(ISNA(MATCH($B45,'INPUT RENTEVOETEN'!$G$10:$G$28,0)),"",INDIRECT("'INPUT RENTEVOETEN'!F"&MATCH($B45,'INPUT RENTEVOETEN'!$G$10:$G$28,0)+9)) ->  | D45: =cspline($B$2:$B$47,$C$2:$C$47,$B45,$K$1,$I$1,$J$1) ->  | F45: =IF(OR(F44="",($D45*SUM(G$15:G44))>1),"",ROUND(((1+$D45)/(1-($D45*SUM(G$15:G44))))^(360/$B45)-1,$I$1)) ->  | Q45: 1890 | X45: 410
A46: 32Y | B46: 11520 | C46: =IF(ISNA(MATCH($B46,'INPUT RENTEVOETEN'!$G$10:$G$28,0)),"",INDIRECT("'INPUT RENTEVOETEN'!F"&MATCH($B46,'INPUT RENTEVOETEN'!$G$10:$G$28,0)+9)) ->  | F46: =IF(OR(F45="",($D46*SUM(G$15:G45))>1),"",ROUND(((1+$D46)/(1-($D46*SUM(G$15:G45))))^(360/$B46)-1,$I$1)) ->  | Q46: 1980 | X46: 420 | AC46: 14 M
A47: 33Y | B47: 11880 | C47: =IF(ISNA(MATCH($B47,'INPUT RENTEVOETEN'!$G$10:$G$28,0)),"",INDIRECT("'INPUT RENTEVOETEN'!F"&MATCH($B47,'INPUT RENTEVOETEN'!$G$10:$G$28,0)+9)) ->  | D47: =cspline($B$2:$B$47,$C$2:$C$47,$B47,$K$1,$I$1,$J$1) ->  | F47: =IF(OR(F46="",($D47*SUM(G$15:G46))>1),"",ROUND(((1+$D47)/(1-($D47*SUM(G$15:G46))))^(360/$B47)-1,$I$1)) ->  | Q47: 2070 | X47: 430
Q48: 2160 | R48: 0.00317 | X48: 440
Q49: 2250 | X49: 450 | AC49: 15 M
Q50: 2340 | X50: 460
Q51: 2430 | X51: 470
Q52: 2520 | R52: 0.00443 | V52: 7 Y | X52: 480 | AC52: 16 M
Q53: 2610 | X53: 490
Q54: 2700 | X54: 500
Q55: 2790 | X55: 510 | AC55: 17 M
Q56: 2880 | R56: 0.00564 | X56: 520
Q57: 2970 | X57: 530
Q58: 3060 | X58: 540 | AC58: 18 M
Q59: 3150 | X59: 550
Q60: 3240 | R60: 0.00677 | V60: 9 Y | X60: 560
Q61: 3330 | X61: 570 | AC61: 19 M
Q62: 3420 | X62: 580
Q63: 3510 | S63: =cspline($Q$3:$Q$146,$R$3:$R$146,$Q63,S$1,5) ->  | X63: 590
Q64: 3600 | R64: 0.00778 | X64: 600 | AC64: 20 M
Q65: 3690 | X65: 610
Q66: 3780 | X66: 620
Q67: 3870 | X67: 630 | AC67: 21 M
Q68: 3960 | U68: =S68-T68 ->  | V68: =IF($Q68<360,IF(MOD($Q68,60)=0,$Q68/30&" M",""),IF(MOD($Q68-360,720)=0,$Q68/360&" Y","")) -> 11 Y | X68: 640 | Y68: =IF(ISNA(MATCH(X68,$B$1:$B$47,0)),"",INDIRECT("C"&MATCH(X68,$B$1:$B$47,0))) ->  | Z68: =cspline($X$3:$X$112,$Y$3:$Y$112,$X68,Z$1,5,$J$1) ->  | AC68: =IF(MOD($X68,30)=0,$X68/30&" M","") -> 
Q69: 4050 | X69: =X68+10 -> 650 | AB69: =Z69-AA69 -> 
Q70: 4140 | X70: 660 | AC70: 22 M
Q71: 4230 | X71: 670
Q72: 4320 | R72: 0.00953 | X72: 680
Q73: 4410 | X73: 690 | AC73: 23 M
Q74: 4500 | X74: 700
Q75: 4590 | X75: 710
Q76: 4680 | V76: 13 Y | X76: 720 | Y76: -0.00156 | AC76: 24 M
Q77: 4770 | X77: 730
Q78: 4860 | X78: 740
Q79: 4950 | X79: 750 | AC79: 25 M
Q80: 5040 | X80: 760
Q81: 5130 | X81: 770
Q82: 5220 | X82: 780 | AC82: 26 M
Q83: 5310 | S83: =cspline($Q$3:$Q$146,$R$3:$R$146,$Q83,S$1,5) ->  | X83: 790
Q84: 5400 | R84: 0.01141 | V84: 15 Y | X84: 800
Q85: 5490 | X85: 810 | AC85: 27 M
Q86: 5580 | X86: 820
Q87: 5670 | X87: 830
Q88: 5760 | X88: 840 | AC88: 28 M
Q89: 5850 | X89: 850
Q90: 5940 | X90: 860
Q91: 6030 | X91: 870 | AC91: 29 M
Q92: 6120 | V92: 17 Y | X92: 880
Q93: =Q92+IF(Q92>=360,90,15) -> 6210 | R93: =IF(ISNA(MATCH(Q93,$B$1:$B$47,0)),"",INDIRECT("C"&MATCH(Q93,$B$1:$B$47,0))) ->  | X93: 890
Q94: 6300 | X94: 900 | AC94: 30 M
Q95: 6390 | X95: 910
Q96: 6480 | X96: 920
Q97: 6570 | X97: 930 | AC97: 31 M
Q98: 6660 | X98: 940
Q99: 6750 | X99: 950
Q100: 6840 | V100: 19 Y | X100: 960 | AC100: 32 M
Q101: 6930 | X101: 970
Q102: 7020 | X102: 980
Q103: 7110 | S103: =cspline($Q$3:$Q$146,$R$3:$R$146,$Q103,S$1,5) ->  | X103: 990 | AC103: 33 M
Q104: 7200 | R104: 0.01303 | X104: 1000
Q105: 7290 | X105: 1010
Q106: 7380 | X106: 1020 | AC106: 34 M
Q107: 7470 | X107: 1030
Q108: 7560 | V108: 21 Y | X108: 1040
Q109: 7650 | X109: 1050 | AC109: 35 M
Q110: 7740 | X110: 1060
Q111: 7830 | X111: 1070
Q112: 7920 | X112: 1080 | Y112: -0.00057 | AC112: 36 M
Q113: 8010
Q114: 8100
Q115: 8190
Q116: 8280 | V116: 23 Y
Q117: 8370
Q118: 8460
Q119: 8550
Q120: 8640
Q121: 8730
Q122: 8820
Q123: 8910 | S123: =cspline($Q$3:$Q$146,$R$3:$R$146,$Q123,S$1,5) -> 
Q124: 9000 | R124: 0.01353 | V124: 25 Y
Q125: 9090
Q126: 9180
Q127: 9270
Q128: 9360
Q129: 9450
Q130: 9540
Q131: 9630
Q132: 9720 | U132: =S132-T132 ->  | V132: =IF($Q132<360,IF(MOD($Q132,60)=0,$Q132/30&" M",""),IF(MOD($Q132-360,720)=0,$Q132/360&" Y","")) -> 27 Y
Q133: 9810
Q134: 9900
Q135: 9990
Q136: 10080
Q137: 10170
Q138: 10260
Q139: 10350
Q140: 10440 | V140: 29 Y
Q141: 10530
Q142: 10620
Q143: 10710
Q144: 10800 | R144: 0.01362
Q145: 10890
Q146: 10980
